Departmental Family,Entity,Date,Expense Type,Expense Area,Supplier,Supplier Type,Expense Description,Transaction Number,Amount
Department for Education,DEPARTMENT FOR EDUCATION,16/02/2012,Current Grants to Arms Length Bodies,Supporting Children and Young People Group 2,OFFICE OF THE CHILDRENS COMMISSIONER,Public Sector,Funding to arms length bodies for DfE's contribution to fund activity,2000542,"137,254.73"
Department for Education,DEPARTMENT FOR EDUCATION,23/02/2012,Current Grants,Children Young People and Families Early Years Extended Schools and Special Needs Group,LONDON BOROUGH OF BEXLEY COUNCIL,Public Sector,Current grant paid to local authorities within the aggregate external funding total,4000072531,-248
Department for Education,DEPARTMENT FOR EDUCATION,23/02/2012,Current Grants,Children Young People and Families Early Years Extended Schools and Special Needs Group,NOTTINGHAMSHIRE COUNTY COUNCIL,Public Sector,Current grant paid to local authorities within the aggregate external funding total,4000072572,"-38,971.00"
Department for Education,DEPARTMENT FOR EDUCATION,13/02/2012,DfE Programme Costs,Families Group,BRITISH ASSOCIATION FOR ADOPTION & FOSTERING,VCS,Funding to deliver DfE policies (excluding consultancy) paid to third parties via a service delivery contract,4000071636,"73,204.72"
Department for Education,DEPARTMENT FOR EDUCATION,16/02/2012,Marketing and Media,Families Group,PROLOG,Commercial,Publications and related services,4000071992,486.8
Department for Education,DEPARTMENT FOR EDUCATION,24/02/2012,DfE Programme Costs,Families Group,BRITISH ASSOCIATION FOR ADOPTION & FOSTERING,VCS,Funding to deliver DfE policies (excluding consultancy) paid to third parties via a service delivery contract,4000072702,"70,014.72"
Department for Education,DEPARTMENT FOR EDUCATION,23/02/2012,Capital Grants,Children Young People and Families Early Years Extended Schools and Special Needs Group,BARNSLEY MBC,Public Sector,Capital grants paid to Local Authorities,4000072479,"38,848.00"
Department for Education,DEPARTMENT FOR EDUCATION,23/02/2012,Capital Grants,Children Young People and Families Early Years Extended Schools and Special Needs Group,BATH & NORTH EAST SOMERSET COUNCIL,Public Sector,Capital grants paid to Local Authorities,4000072480,"5,942.00"
Department for Education,DEPARTMENT FOR EDUCATION,23/02/2012,Capital Grants,Children Young People and Families Early Years Extended Schools and Special Needs Group,BEDFORD BOROUGH COUNCIL,Public Sector,Capital grants paid to Local Authorities,4000072481,"-33,503.00"
Department for Education,DEPARTMENT FOR EDUCATION,23/02/2012,Capital Grants,Children Young People and Families Early Years Extended Schools and Special Needs Group,BIRMINGHAM CITY COUNCIL,Public Sector,Capital grants paid to Local Authorities,4000072482,"196,874.00"
Department for Education,DEPARTMENT FOR EDUCATION,23/02/2012,Capital Grants,Children Young People and Families Early Years Extended Schools and Special Needs Group,BLACKBURN WITH DARWEN BOROUGH COUNCIL,Public Sector,Capital grants paid to Local Authorities,4000072483,"23,182.00"
Department for Education,DEPARTMENT FOR EDUCATION,23/02/2012,Capital Grants,Children Young People and Families Early Years Extended Schools and Special Needs Group,BLACKPOOL BOROUGH COUNCIL,Public Sector,Capital grants paid to Local Authorities,4000072484,"21,869.00"
Department for Education,DEPARTMENT FOR EDUCATION,23/02/2012,Capital Grants,Children Young People and Families Early Years Extended Schools and Special Needs Group,BOLTON MBC,Public Sector,Capital grants paid to Local Authorities,4000072485,"100,364.00"
Department for Education,DEPARTMENT FOR EDUCATION,23/02/2012,Capital Grants,Children Young People and Families Early Years Extended Schools and Special Needs Group,BOURNEMOUTH BOROUGH COUNCIL,Public Sector,Capital grants paid to Local Authorities,4000072486,"40,061.00"
Department for Education,DEPARTMENT FOR EDUCATION,23/02/2012,Capital Grants,Children Young People and Families Early Years Extended Schools and Special Needs Group,BRACKNELL FOREST BOROUGH COUNCIL,Public Sector,Capital grants paid to Local Authorities,4000072487,"22,151.00"
Department for Education,DEPARTMENT FOR EDUCATION,23/02/2012,Capital Grants,Children Young People and Families Early Years Extended Schools and Special Needs Group,BRIGHTON & HOVE CITY COUNCIL,Public Sector,Capital grants paid to Local Authorities,4000072488,"94,849.00"
Department for Education,DEPARTMENT FOR EDUCATION,23/02/2012,Capital Grants,Children Young People and Families Early Years Extended Schools and Special Needs Group,BRISTOL CITY COUNCIL,Public Sector,Capital grants paid to Local Authorities,4000072489,"64,515.00"
Department for Education,DEPARTMENT FOR EDUCATION,23/02/2012,Capital Grants,Children Young People and Families Early Years Extended Schools and Special Needs Group,BUCKINGHAMSHIRE COUNTY COUNCIL,Public Sector,Capital grants paid to Local Authorities,4000072490,"61,620.00"
Department for Education,DEPARTMENT FOR EDUCATION,23/02/2012,Capital Grants,Children Young People and Families Early Years Extended Schools and Special Needs Group,BURY MBC,Public Sector,Capital grants paid to Local Authorities,4000072491,"31,364.00"
Department for Education,DEPARTMENT FOR EDUCATION,23/02/2012,Capital Grants,Children Young People and Families Early Years Extended Schools and Special Needs Group,CALDERDALE MBC,Public Sector,Capital grants paid to Local Authorities,4000072492,"32,121.00"
Department for Education,DEPARTMENT FOR EDUCATION,23/02/2012,Capital Grants,Children Young People and Families Early Years Extended Schools and Special Needs Group,CAMBRIDGESHIRE COUNTY COUNCIL,Public Sector,Capital grants paid to Local Authorities,4000072493,"71,485.00"
Department for Education,DEPARTMENT FOR EDUCATION,23/02/2012,Capital Grants,Children Young People and Families Early Years Extended Schools and Special Needs Group,CENTRAL BEDFORDSHIRE COUNCIL,Public Sector,Capital grants paid to Local Authorities,4000072494,"-44,865.00"
Department for Education,DEPARTMENT FOR EDUCATION,23/02/2012,Capital Grants,Children Young People and Families Early Years Extended Schools and Special Needs Group,CHESHIRE EAST COUNCIL,Public Sector,Capital grants paid to Local Authorities,4000072495,"39,047.00"
Department for Education,DEPARTMENT FOR EDUCATION,23/02/2012,Capital Grants,Children Young People and Families Early Years Extended Schools and Special Needs Group,CHESHIRE WEST & CHESTER COUNCIL,Public Sector,Capital grants paid to Local Authorities,4000072496,"50,333.00"
Department for Education,DEPARTMENT FOR EDUCATION,23/02/2012,Capital Grants,Children Young People and Families Early Years Extended Schools and Special Needs Group,CITY OF BRADFORD METROPOLITAN DISTRICT COUNCIL,Public Sector,Capital grants paid to Local Authorities,4000072497,"200,880.00"
Department for Education,DEPARTMENT FOR EDUCATION,23/02/2012,Capital Grants,Children Young People and Families Early Years Extended Schools and Special Needs Group,CORNWALL COUNCIL,Public Sector,Capital grants paid to Local Authorities,4000072498,"31,974.00"
Department for Education,DEPARTMENT FOR EDUCATION,23/02/2012,Capital Grants,Children Young People and Families Early Years Extended Schools and Special Needs Group,COVENTRY CITY COUNCIL,Public Sector,Capital grants paid to Local Authorities,4000072500,"15,247.00"
Department for Education,DEPARTMENT FOR EDUCATION,23/02/2012,Capital Grants,Children Young People and Families Early Years Extended Schools and Special Needs Group,CUMBRIA COUNTY COUNCIL,Public Sector,Capital grants paid to Local Authorities,4000072501,"68,303.00"
Department for Education,DEPARTMENT FOR EDUCATION,23/02/2012,Capital Grants,Children Young People and Families Early Years Extended Schools and Special Needs Group,DARLINGTON BOROUGH COUNCIL,Public Sector,Capital grants paid to Local Authorities,4000072502,"14,879.00"
Department for Education,DEPARTMENT FOR EDUCATION,23/02/2012,Capital Grants,Children Young People and Families Early Years Extended Schools and Special Needs Group,DERBY CITY COUNCIL,Public Sector,Capital grants paid to Local Authorities,4000072503,"31,938.00"
Department for Education,DEPARTMENT FOR EDUCATION,23/02/2012,Capital Grants,Children Young People and Families Early Years Extended Schools and Special Needs Group,DERBYSHIRE COUNTY COUNCIL,Public Sector,Capital grants paid to Local Authorities,4000072504,"249,547.00"
Department for Education,DEPARTMENT FOR EDUCATION,23/02/2012,Capital Grants,Children Young People and Families Early Years Extended Schools and Special Needs Group,DEVON COUNTY COUNCIL,Public Sector,Capital grants paid to Local Authorities,4000072505,"80,243.00"
Department for Education,DEPARTMENT FOR EDUCATION,23/02/2012,Capital Grants,Children Young People and Families Early Years Extended Schools and Special Needs Group,DONCASTER MBC,Public Sector,Capital grants paid to Local Authorities,4000072506,"24,495.00"
Department for Education,DEPARTMENT FOR EDUCATION,23/02/2012,Capital Grants,Children Young People and Families Early Years Extended Schools and Special Needs Group,DORSET COUNTY COUNCIL,Public Sector,Capital grants paid to Local Authorities,4000072507,"105,364.00"
Department for Education,DEPARTMENT FOR EDUCATION,23/02/2012,Capital Grants,Children Young People and Families Early Years Extended Schools and Special Needs Group,DUDLEY MBC,Public Sector,Capital grants paid to Local Authorities,4000072508,"99,454.00"
Department for Education,DEPARTMENT FOR EDUCATION,23/02/2012,Capital Grants,Children Young People and Families Early Years Extended Schools and Special Needs Group,DURHAM COUNTY COUNCIL,Public Sector,Capital grants paid to Local Authorities,4000072509,"49,922.00"
Department for Education,DEPARTMENT FOR EDUCATION,23/02/2012,Capital Grants,Children Young People and Families Early Years Extended Schools and Special Needs Group,EAST RIDING OF YORKSHIRE,Public Sector,Capital grants paid to Local Authorities,4000072510,"42,333.00"
Department for Education,DEPARTMENT FOR EDUCATION,23/02/2012,Capital Grants,Children Young People and Families Early Years Extended Schools and Special Needs Group,EAST SUSSEX COUNTY COUNCIL,Public Sector,Capital grants paid to Local Authorities,4000072511,"77,667.00"
Department for Education,DEPARTMENT FOR EDUCATION,23/02/2012,Capital Grants,Children Young People and Families Early Years Extended Schools and Special Needs Group,GATESHEAD MBC,Public Sector,Capital grants paid to Local Authorities,4000072512,"69,121.00"
Department for Education,DEPARTMENT FOR EDUCATION,23/02/2012,Capital Grants,Children Young People and Families Early Years Extended Schools and Special Needs Group,GLOUCESTERSHIRE COUNTY COUNCIL,Public Sector,Capital grants paid to Local Authorities,4000072513,"141,420.00"
Department for Education,DEPARTMENT FOR EDUCATION,23/02/2012,Capital Grants,Children Young People and Families Early Years Extended Schools and Special Needs Group,HALTON BOROUGH COUNCIL,Public Sector,Capital grants paid to Local Authorities,4000072514,"60,485.00"
Department for Education,DEPARTMENT FOR EDUCATION,23/02/2012,Capital Grants,Children Young People and Families Early Years Extended Schools and Special Needs Group,HAMPSHIRE COUNTY COUNCIL,Public Sector,Capital grants paid to Local Authorities,4000072515,"206,244.00"
Department for Education,DEPARTMENT FOR EDUCATION,23/02/2012,Capital Grants,Children Young People and Families Early Years Extended Schools and Special Needs Group,HARTLEPOOL BOROUGH COUNCIL,Public Sector,Capital grants paid to Local Authorities,4000072516,"16,242.00"
Department for Education,DEPARTMENT FOR EDUCATION,23/02/2012,Capital Grants,Children Young People and Families Early Years Extended Schools and Special Needs Group,HEREFORDSHIRE COUNCIL,Public Sector,Capital grants paid to Local Authorities,4000072517,"-49,694.00"
Department for Education,DEPARTMENT FOR EDUCATION,23/02/2012,Capital Grants,Children Young People and Families Early Years Extended Schools and Special Needs Group,HERTFORDSHIRE,Public Sector,Capital grants paid to Local Authorities,4000072518,"178,395.00"
Department for Education,DEPARTMENT FOR EDUCATION,23/02/2012,Capital Grants,Children Young People and Families Early Years Extended Schools and Special Needs Group,ISLE OF WIGHT COUNCIL,Public Sector,Capital grants paid to Local Authorities,4000072519,"19,608.00"
Department for Education,DEPARTMENT FOR EDUCATION,23/02/2012,Capital Grants,Children Young People and Families Early Years Extended Schools and Special Needs Group,KENT COUNTY COUNCIL,Public Sector,Capital grants paid to Local Authorities,4000072520,"570,732.00"
Department for Education,DEPARTMENT FOR EDUCATION,23/02/2012,Capital Grants,Children Young People and Families Early Years Extended Schools and Special Needs Group,KIRKLEES COUNCIL,Public Sector,Capital grants paid to Local Authorities,4000072521,"60,818.00"
Department for Education,DEPARTMENT FOR EDUCATION,23/02/2012,Capital Grants,Children Young People and Families Early Years Extended Schools and Special Needs Group,KNOWSLEY MBC,Public Sector,Capital grants paid to Local Authorities,4000072522,"-34,545.00"
Department for Education,DEPARTMENT FOR EDUCATION,23/02/2012,Capital Grants,Children Young People and Families Early Years Extended Schools and Special Needs Group,LANCASHIRE COUNTY COUNCIL,Public Sector,Capital grants paid to Local Authorities,4000072523,"181,092.00"
Department for Education,DEPARTMENT FOR EDUCATION,23/02/2012,Capital Grants,Children Young People and Families Early Years Extended Schools and Special Needs Group,LEEDS CITY COUNCIL,Public Sector,Capital grants paid to Local Authorities,4000072524,"95,838.00"
Department for Education,DEPARTMENT FOR EDUCATION,23/02/2012,Capital Grants,Children Young People and Families Early Years Extended Schools and Special Needs Group,LEICESTER CITY COUNCIL,Public Sector,Capital grants paid to Local Authorities,4000072525,"44,010.00"
Department for Education,DEPARTMENT FOR EDUCATION,23/02/2012,Capital Grants,Children Young People and Families Early Years Extended Schools and Special Needs Group,LEICESTERSHIRE COUNTY COUNCIL,Public Sector,Capital grants paid to Local Authorities,4000072526,"21,548.00"
Department for Education,DEPARTMENT FOR EDUCATION,23/02/2012,Capital Grants,Children Young People and Families Early Years Extended Schools and Special Needs Group,LINCOLNSHIRE COUNTY COUNCIL,Public Sector,Capital grants paid to Local Authorities,4000072527,"98,607.00"
Department for Education,DEPARTMENT FOR EDUCATION,23/02/2012,Capital Grants,Children Young People and Families Early Years Extended Schools and Special Needs Group,LIVERPOOL CITY COUNCIL,Public Sector,Capital grants paid to Local Authorities,4000072528,"98,697.00"
Department for Education,DEPARTMENT FOR EDUCATION,23/02/2012,Capital Grants,Children Young People and Families Early Years Extended Schools and Special Needs Group,LONDON BOROUGH OF BARKING & DAGENHAM COUNCIL,Public Sector,Capital grants paid to Local Authorities,4000072529,"-19,140.00"
Department for Education,DEPARTMENT FOR EDUCATION,23/02/2012,Capital Grants,Children Young People and Families Early Years Extended Schools and Special Needs Group,LONDON BOROUGH OF BARNET COUNCIL,Public Sector,Capital grants paid to Local Authorities,4000072530,"57,637.00"
Department for Education,DEPARTMENT FOR EDUCATION,23/02/2012,Capital Grants,Children Young People and Families Early Years Extended Schools and Special Needs Group,LONDON BOROUGH OF BEXLEY COUNCIL,Public Sector,Capital grants paid to Local Authorities,4000072531,"18,648.00"
Department for Education,DEPARTMENT FOR EDUCATION,23/02/2012,Capital Grants,Children Young People and Families Early Years Extended Schools and Special Needs Group,LONDON BOROUGH OF BRENT,Public Sector,Capital grants paid to Local Authorities,4000072532,"-249,970.00"
Department for Education,DEPARTMENT FOR EDUCATION,23/02/2012,Capital Grants,Children Young People and Families Early Years Extended Schools and Special Needs Group,LONDON BOROUGH OF BROMLEY COUNCIL,Public Sector,Capital grants paid to Local Authorities,4000072533,"56,000.00"
Department for Education,DEPARTMENT FOR EDUCATION,23/02/2012,Capital Grants,Children Young People and Families Early Years Extended Schools and Special Needs Group,LONDON BOROUGH OF CAMDEN,Public Sector,Capital grants paid to Local Authorities,4000072534,"35,394.00"
Department for Education,DEPARTMENT FOR EDUCATION,23/02/2012,Capital Grants,Children Young People and Families Early Years Extended Schools and Special Needs Group,LONDON BOROUGH OF CROYDON COUNCIL,Public Sector,Capital grants paid to Local Authorities,4000072535,"57,904.00"
Department for Education,DEPARTMENT FOR EDUCATION,23/02/2012,Capital Grants,Children Young People and Families Early Years Extended Schools and Special Needs Group,LONDON BOROUGH OF EALING COUNCIL,Public Sector,Capital grants paid to Local Authorities,4000072536,"49,818.00"
Department for Education,DEPARTMENT FOR EDUCATION,23/02/2012,Capital Grants,Children Young People and Families Early Years Extended Schools and Special Needs Group,LONDON BOROUGH OF ENFIELD COUNCIL,Public Sector,Capital grants paid to Local Authorities,4000072537,"110,879.00"
Department for Education,DEPARTMENT FOR EDUCATION,23/02/2012,Capital Grants,Children Young People and Families Early Years Extended Schools and Special Needs Group,LONDON BOROUGH OF GREENWICH,Public Sector,Capital grants paid to Local Authorities,4000072538,"53,182.00"
Department for Education,DEPARTMENT FOR EDUCATION,23/02/2012,Capital Grants,Children Young People and Families Early Years Extended Schools and Special Needs Group,LONDON BOROUGH OF HAMMERSMITH & FULHAM COUNCIL,Public Sector,Capital grants paid to Local Authorities,4000072539,"-251,664.00"
Department for Education,DEPARTMENT FOR EDUCATION,23/02/2012,Capital Grants,Children Young People and Families Early Years Extended Schools and Special Needs Group,LONDON BOROUGH OF HARINGEY,Public Sector,Capital grants paid to Local Authorities,4000072540,"42,758.00"
Department for Education,DEPARTMENT FOR EDUCATION,23/02/2012,Capital Grants,Children Young People and Families Early Years Extended Schools and Special Needs Group,LONDON BOROUGH OF HARROW COUNCIL,Public Sector,Capital grants paid to Local Authorities,4000072652,"27,920.00"
Department for Education,DEPARTMENT FOR EDUCATION,23/02/2012,Capital Grants,Children Young People and Families Early Years Extended Schools and Special Needs Group,LONDON BOROUGH OF HAVERING COUNCIL,Public Sector,Capital grants paid to Local Authorities,4000072541,"31,461.00"
Department for Education,DEPARTMENT FOR EDUCATION,23/02/2012,Capital Grants,Children Young People and Families Early Years Extended Schools and Special Needs Group,LONDON BOROUGH OF HILLINGDON  COUNCIL,Public Sector,Capital grants paid to Local Authorities,4000072542,"42,160.00"
Department for Education,DEPARTMENT FOR EDUCATION,23/02/2012,Capital Grants,Children Young People and Families Early Years Extended Schools and Special Needs Group,LONDON BOROUGH OF HOUNSLOW COUNCIL,Public Sector,Capital grants paid to Local Authorities,4000072543,"24,094.00"
Department for Education,DEPARTMENT FOR EDUCATION,23/02/2012,Capital Grants,Children Young People and Families Early Years Extended Schools and Special Needs Group,LONDON BOROUGH OF ISLINGTON COUNCIL,Public Sector,Capital grants paid to Local Authorities,4000072544,"33,194.00"
Department for Education,DEPARTMENT FOR EDUCATION,23/02/2012,Capital Grants,Children Young People and Families Early Years Extended Schools and Special Needs Group,LONDON BOROUGH OF LAMBETH COUNCIL,Public Sector,Capital grants paid to Local Authorities,4000072545,"19,973.00"
Department for Education,DEPARTMENT FOR EDUCATION,23/02/2012,Capital Grants,Children Young People and Families Early Years Extended Schools and Special Needs Group,LONDON BOROUGH OF LEWISHAM,Public Sector,Capital grants paid to Local Authorities,4000072546,"45,601.00"
Department for Education,DEPARTMENT FOR EDUCATION,23/02/2012,Capital Grants,Children Young People and Families Early Years Extended Schools and Special Needs Group,LONDON BOROUGH OF MERTON COUNCIL,Public Sector,Capital grants paid to Local Authorities,4000072547,"29,394.00"
Department for Education,DEPARTMENT FOR EDUCATION,23/02/2012,Capital Grants,Children Young People and Families Early Years Extended Schools and Special Needs Group,LONDON BOROUGH OF NEWHAM,Public Sector,Capital grants paid to Local Authorities,4000072548,"8,609.00"
Department for Education,DEPARTMENT FOR EDUCATION,23/02/2012,Capital Grants,Children Young People and Families Early Years Extended Schools and Special Needs Group,LONDON BOROUGH OF REDBRIDGE,Public Sector,Capital grants paid to Local Authorities,4000072549,"41,402.00"
Department for Education,DEPARTMENT FOR EDUCATION,23/02/2012,Capital Grants,Children Young People and Families Early Years Extended Schools and Special Needs Group,LONDON BOROUGH OF RICHMOND UPON THAMES,Public Sector,Capital grants paid to Local Authorities,4000072550,"26,788.00"
Department for Education,DEPARTMENT FOR EDUCATION,23/02/2012,Capital Grants,Children Young People and Families Early Years Extended Schools and Special Needs Group,LONDON BOROUGH OF SOUTHWARK COUNCIL,Public Sector,Capital grants paid to Local Authorities,4000072551,"44,824.00"
Department for Education,DEPARTMENT FOR EDUCATION,23/02/2012,Capital Grants,Children Young People and Families Early Years Extended Schools and Special Needs Group,LONDON BOROUGH OF SUTTON,Public Sector,Capital grants paid to Local Authorities,4000072552,"29,126.00"
Department for Education,DEPARTMENT FOR EDUCATION,23/02/2012,Capital Grants,Children Young People and Families Early Years Extended Schools and Special Needs Group,LONDON BOROUGH OF TOWER HAMLETS COUNCIL,Public Sector,Capital grants paid to Local Authorities,4000072553,"-27,281.00"
Department for Education,DEPARTMENT FOR EDUCATION,23/02/2012,Capital Grants,Children Young People and Families Early Years Extended Schools and Special Needs Group,LONDON BOROUGH OF WALTHAM FOREST COUNCIL,Public Sector,Capital grants paid to Local Authorities,4000072554,"40,697.00"
Department for Education,DEPARTMENT FOR EDUCATION,23/02/2012,Capital Grants,Children Young People and Families Early Years Extended Schools and Special Needs Group,LONDON BOROUGH OF WANDSWORTH COUNCIL,Public Sector,Capital grants paid to Local Authorities,4000072555,"43,303.00"
Department for Education,DEPARTMENT FOR EDUCATION,23/02/2012,Capital Grants,Children Young People and Families Early Years Extended Schools and Special Needs Group,LUTON BOROUGH COUNCIL,Public Sector,Capital grants paid to Local Authorities,4000072556,"35,364.00"
Department for Education,DEPARTMENT FOR EDUCATION,23/02/2012,Capital Grants,Children Young People and Families Early Years Extended Schools and Special Needs Group,MANCHESTER CITY COUNCIL,Public Sector,Capital grants paid to Local Authorities,4000072557,"35,660.00"
Department for Education,DEPARTMENT FOR EDUCATION,23/02/2012,Capital Grants,Children Young People and Families Early Years Extended Schools and Special Needs Group,MEDWAY COUNCIL,Public Sector,Capital grants paid to Local Authorities,4000072558,"50,909.00"
Department for Education,DEPARTMENT FOR EDUCATION,23/02/2012,Capital Grants,Children Young People and Families Early Years Extended Schools and Special Needs Group,METROPOLITAN BOROUGH OF WIRRAL,Public Sector,Capital grants paid to Local Authorities,4000072559,"76,425.00"
Department for Education,DEPARTMENT FOR EDUCATION,23/02/2012,Capital Grants,Children Young People and Families Early Years Extended Schools and Special Needs Group,MIDDLESBROUGH COUNCIL,Public Sector,Capital grants paid to Local Authorities,4000072560,"33,212.00"
Department for Education,DEPARTMENT FOR EDUCATION,23/02/2012,Capital Grants,Children Young People and Families Early Years Extended Schools and Special Needs Group,MILTON KEYNES COUNCIL,Public Sector,Capital grants paid to Local Authorities,4000072561,552
Department for Education,DEPARTMENT FOR EDUCATION,23/02/2012,Capital Grants,Children Young People and Families Early Years Extended Schools and Special Needs Group,NEWCASTLE CITY COUNCIL,Public Sector,Capital grants paid to Local Authorities,4000072562,"45,697.00"
Department for Education,DEPARTMENT FOR EDUCATION,23/02/2012,Capital Grants,Children Young People and Families Early Years Extended Schools and Special Needs Group,NORFOLK COUNTY COUNCIL,Public Sector,Capital grants paid to Local Authorities,4000072563,"259,760.00"
Department for Education,DEPARTMENT FOR EDUCATION,23/02/2012,Capital Grants,Children Young People and Families Early Years Extended Schools and Special Needs Group,NORTH EAST LINCOLNSHIRE COUNCIL,Public Sector,Capital grants paid to Local Authorities,4000072564,"29,848.00"
Department for Education,DEPARTMENT FOR EDUCATION,23/02/2012,Capital Grants,Children Young People and Families Early Years Extended Schools and Special Needs Group,NORTH LINCOLNSHIRE COUNCIL,Public Sector,Capital grants paid to Local Authorities,4000072565,"26,910.00"
Department for Education,DEPARTMENT FOR EDUCATION,23/02/2012,Capital Grants,Children Young People and Families Early Years Extended Schools and Special Needs Group,NORTH SOMERSET COUNCIL,Public Sector,Capital grants paid to Local Authorities,4000072566,"-13,822.00"
Department for Education,DEPARTMENT FOR EDUCATION,23/02/2012,Capital Grants,Children Young People and Families Early Years Extended Schools and Special Needs Group,NORTH TYNESIDE,Public Sector,Capital grants paid to Local Authorities,4000072567,"35,676.00"
Department for Education,DEPARTMENT FOR EDUCATION,23/02/2012,Capital Grants,Children Young People and Families Early Years Extended Schools and Special Needs Group,NORTH YORKSHIRE COUNTY COUNCIL,Public Sector,Capital grants paid to Local Authorities,4000072568,"169,001.00"
Department for Education,DEPARTMENT FOR EDUCATION,23/02/2012,Capital Grants,Children Young People and Families Early Years Extended Schools and Special Needs Group,NORTHAMPTONSHIRE COUNTY COUNCIL,Public Sector,Capital grants paid to Local Authorities,4000072569,"24,548.00"
Department for Education,DEPARTMENT FOR EDUCATION,23/02/2012,Capital Grants,Children Young People and Families Early Years Extended Schools and Special Needs Group,NORTHUMBERLAND COUNTY COUNCIL,Public Sector,Capital grants paid to Local Authorities,4000072570,"45,121.00"
Department for Education,DEPARTMENT FOR EDUCATION,23/02/2012,Capital Grants,Children Young People and Families Early Years Extended Schools and Special Needs Group,NOTTINGHAM CITY COUNCIL,Public Sector,Capital grants paid to Local Authorities,4000072571,"51,059.00"
Department for Education,DEPARTMENT FOR EDUCATION,23/02/2012,Capital Grants,Children Young People and Families Early Years Extended Schools and Special Needs Group,NOTTINGHAMSHIRE COUNTY COUNCIL,Public Sector,Capital grants paid to Local Authorities,4000072572,"152,794.00"
Department for Education,DEPARTMENT FOR EDUCATION,23/02/2012,Capital Grants,Children Young People and Families Early Years Extended Schools and Special Needs Group,OLDHAM MBC,Public Sector,Capital grants paid to Local Authorities,4000072573,"36,865.00"
Department for Education,DEPARTMENT FOR EDUCATION,23/02/2012,Capital Grants,Children Young People and Families Early Years Extended Schools and Special Needs Group,OXFORDSHIRE COUNTY COUNCIL,Public Sector,Capital grants paid to Local Authorities,4000072574,"88,717.00"
Department for Education,DEPARTMENT FOR EDUCATION,23/02/2012,Capital Grants,Children Young People and Families Early Years Extended Schools and Special Needs Group,PETERBOROUGH CITY COUNCIL,Public Sector,Capital grants paid to Local Authorities,4000072575,"27,165.00"
Department for Education,DEPARTMENT FOR EDUCATION,23/02/2012,Capital Grants,Children Young People and Families Early Years Extended Schools and Special Needs Group,PLYMOUTH CITY COUNCIL,Public Sector,Capital grants paid to Local Authorities,4000072576,"35,061.00"
Department for Education,DEPARTMENT FOR EDUCATION,23/02/2012,Capital Grants,Children Young People and Families Early Years Extended Schools and Special Needs Group,POOLE BOROUGH COUNCIL,Public Sector,Capital grants paid to Local Authorities,4000072577,"33,201.00"
Department for Education,DEPARTMENT FOR EDUCATION,23/02/2012,Capital Grants,Children Young People and Families Early Years Extended Schools and Special Needs Group,PORTSMOUTH CITY COUNCIL,Public Sector,Capital grants paid to Local Authorities,4000072578,"27,848.00"
Department for Education,DEPARTMENT FOR EDUCATION,23/02/2012,Capital Grants,Children Young People and Families Early Years Extended Schools and Special Needs Group,READING BOROUGH COUNCIL,Public Sector,Capital grants paid to Local Authorities,4000072579,"22,363.00"
Department for Education,DEPARTMENT FOR EDUCATION,23/02/2012,Capital Grants,Children Young People and Families Early Years Extended Schools and Special Needs Group,REDCAR & CLEVELAND BOROUGH COUNCIL,Public Sector,Capital grants paid to Local Authorities,4000072580,"26,788.00"
Department for Education,DEPARTMENT FOR EDUCATION,23/02/2012,Capital Grants,Children Young People and Families Early Years Extended Schools and Special Needs Group,ROCHDALE MBC,Public Sector,Capital grants paid to Local Authorities,4000072581,"-170,352.00"
Department for Education,DEPARTMENT FOR EDUCATION,23/02/2012,Capital Grants,Children Young People and Families Early Years Extended Schools and Special Needs Group,ROTHERHAM MBC,Public Sector,Capital grants paid to Local Authorities,4000072582,"52,000.00"
Department for Education,DEPARTMENT FOR EDUCATION,23/02/2012,Capital Grants,Children Young People and Families Early Years Extended Schools and Special Needs Group,ROYAL BOROUGH OF KINGSTON UPON THAMES COUNCIL,Public Sector,Capital grants paid to Local Authorities,4000072583,"22,545.00"
Department for Education,DEPARTMENT FOR EDUCATION,23/02/2012,Capital Grants,Children Young People and Families Early Years Extended Schools and Special Needs Group,RUTLAND COUNTY COUNCIL,Public Sector,Capital grants paid to Local Authorities,4000072584,"2,783.00"
Department for Education,DEPARTMENT FOR EDUCATION,23/02/2012,Capital Grants,Children Young People and Families Early Years Extended Schools and Special Needs Group,SALFORD CITY COUNCIL,Public Sector,Capital grants paid to Local Authorities,4000072585,"-15,029.00"
Department for Education,DEPARTMENT FOR EDUCATION,23/02/2012,Capital Grants,Children Young People and Families Early Years Extended Schools and Special Needs Group,SANDWELL MBC,Public Sector,Capital grants paid to Local Authorities,4000072586,"41,364.00"
Department for Education,DEPARTMENT FOR EDUCATION,23/02/2012,Capital Grants,Children Young People and Families Early Years Extended Schools and Special Needs Group,SEFTON COUNCIL,Public Sector,Capital grants paid to Local Authorities,4000072587,"50,788.00"
Department for Education,DEPARTMENT FOR EDUCATION,23/02/2012,Capital Grants,Children Young People and Families Early Years Extended Schools and Special Needs Group,SHEFFIELD CITY COUNCIL,Public Sector,Capital grants paid to Local Authorities,4000072588,"94,866.00"
Department for Education,DEPARTMENT FOR EDUCATION,23/02/2012,Capital Grants,Children Young People and Families Early Years Extended Schools and Special Needs Group,SHROPSHIRE COUNCIL,Public Sector,Capital grants paid to Local Authorities,4000072589,"33,150.00"
Department for Education,DEPARTMENT FOR EDUCATION,23/02/2012,Capital Grants,Children Young People and Families Early Years Extended Schools and Special Needs Group,SLOUGH BOROUGH COUNCIL,Public Sector,Capital grants paid to Local Authorities,4000072590,"18,196.00"
Department for Education,DEPARTMENT FOR EDUCATION,23/02/2012,Capital Grants,Children Young People and Families Early Years Extended Schools and Special Needs Group,SOLIHULL MBC,Public Sector,Capital grants paid to Local Authorities,4000072591,"30,636.00"
Department for Education,DEPARTMENT FOR EDUCATION,23/02/2012,Capital Grants,Children Young People and Families Early Years Extended Schools and Special Needs Group,SOMERSET COUNTY COUNCIL,Public Sector,Capital grants paid to Local Authorities,4000072592,"60,091.00"
Department for Education,DEPARTMENT FOR EDUCATION,23/02/2012,Capital Grants,Children Young People and Families Early Years Extended Schools and Special Needs Group,SOUTH GLOUCEST,Public Sector,Capital grants paid to Local Authorities,4000072593,"38,364.00"
Department for Education,DEPARTMENT FOR EDUCATION,23/02/2012,Capital Grants,Children Young People and Families Early Years Extended Schools and Special Needs Group,SOUTH TYNESIDE,Public Sector,Capital grants paid to Local Authorities,4000072594,"25,515.00"
Department for Education,DEPARTMENT FOR EDUCATION,23/02/2012,Capital Grants,Children Young People and Families Early Years Extended Schools and Special Needs Group,SOUTHAMPTON CITY COUNCIL,Public Sector,Capital grants paid to Local Authorities,4000072595,"33,316.00"
Department for Education,DEPARTMENT FOR EDUCATION,23/02/2012,Capital Grants,Children Young People and Families Early Years Extended Schools and Special Needs Group,SOUTHEND ON SEA BOROUGH COUNCIL,Public Sector,Capital grants paid to Local Authorities,4000072596,"18,767.00"
Department for Education,DEPARTMENT FOR EDUCATION,23/02/2012,Capital Grants,Children Young People and Families Early Years Extended Schools and Special Needs Group,ST HELENS MBC,Public Sector,Capital grants paid to Local Authorities,4000072597,"32,364.00"
Department for Education,DEPARTMENT FOR EDUCATION,23/02/2012,Capital Grants,Children Young People and Families Early Years Extended Schools and Special Needs Group,STAFFORDSHIRE COUNCIL,Public Sector,Capital grants paid to Local Authorities,4000072598,"116,425.00"
Department for Education,DEPARTMENT FOR EDUCATION,23/02/2012,Capital Grants,Children Young People and Families Early Years Extended Schools and Special Needs Group,STOCKPORT MBC,Public Sector,Capital grants paid to Local Authorities,4000072599,"32,739.00"
Department for Education,DEPARTMENT FOR EDUCATION,23/02/2012,Capital Grants,Children Young People and Families Early Years Extended Schools and Special Needs Group,STOCKTON ON TEES,Public Sector,Capital grants paid to Local Authorities,4000072600,"-1,151.00"
Department for Education,DEPARTMENT FOR EDUCATION,23/02/2012,Capital Grants,Children Young People and Families Early Years Extended Schools and Special Needs Group,STOKE ON TRENT CITY COUNCIL,Public Sector,Capital grants paid to Local Authorities,4000072601,"26,654.00"
Department for Education,DEPARTMENT FOR EDUCATION,23/02/2012,Capital Grants,Children Young People and Families Early Years Extended Schools and Special Needs Group,SUFFOLK COUNTY COUNCIL,Public Sector,Capital grants paid to Local Authorities,4000072602,"224,647.00"
Department for Education,DEPARTMENT FOR EDUCATION,23/02/2012,Capital Grants,Children Young People and Families Early Years Extended Schools and Special Needs Group,SUNDERLAND CITY COUNCIL,Public Sector,Capital grants paid to Local Authorities,4000072603,"104,149.00"
Department for Education,DEPARTMENT FOR EDUCATION,23/02/2012,Capital Grants,Children Young People and Families Early Years Extended Schools and Special Needs Group,SURREY COUNTY COUNCIL,Public Sector,Capital grants paid to Local Authorities,4000072604,"184,759.00"
Department for Education,DEPARTMENT FOR EDUCATION,23/02/2012,Capital Grants,Children Young People and Families Early Years Extended Schools and Special Needs Group,SWINDON BOROUGH COUNCIL,Public Sector,Capital grants paid to Local Authorities,4000072605,"26,204.00"
Department for Education,DEPARTMENT FOR EDUCATION,23/02/2012,Capital Grants,Children Young People and Families Early Years Extended Schools and Special Needs Group,TAMESIDE MBC,Public Sector,Capital grants paid to Local Authorities,4000072606,"22,474.00"
Department for Education,DEPARTMENT FOR EDUCATION,23/02/2012,Capital Grants,Children Young People and Families Early Years Extended Schools and Special Needs Group,TELFORD & WREKIN COUNCIL,Public Sector,Capital grants paid to Local Authorities,4000072607,"74,243.00"
Department for Education,DEPARTMENT FOR EDUCATION,23/02/2012,Capital Grants,Children Young People and Families Early Years Extended Schools and Special Needs Group,THE LONDON BOROUGH OF HACKNEY,Public Sector,Capital grants paid to Local Authorities,4000072608,"44,675.00"
Department for Education,DEPARTMENT FOR EDUCATION,23/02/2012,Capital Grants,Children Young People and Families Early Years Extended Schools and Special Needs Group,THE ROYAL BOROUGH OF KENSINGTON & CHELSEA COUNCIL,Public Sector,Capital grants paid to Local Authorities,4000072609,"6,540.00"
Department for Education,DEPARTMENT FOR EDUCATION,23/02/2012,Capital Grants,Children Young People and Families Early Years Extended Schools and Special Needs Group,THE ROYAL BOROUGH OF WINDSOR & MAIDENHEAD,Public Sector,Capital grants paid to Local Authorities,4000072610,"20,666.00"
Department for Education,DEPARTMENT FOR EDUCATION,23/02/2012,Capital Grants,Children Young People and Families Early Years Extended Schools and Special Needs Group,THURROCK COUNCIL,Public Sector,Capital grants paid to Local Authorities,4000072611,"32,667.00"
Department for Education,DEPARTMENT FOR EDUCATION,23/02/2012,Capital Grants,Children Young People and Families Early Years Extended Schools and Special Needs Group,TORBAY COUNCIL,Public Sector,Capital grants paid to Local Authorities,4000072612,"18,969.00"
Department for Education,DEPARTMENT FOR EDUCATION,23/02/2012,Capital Grants,Children Young People and Families Early Years Extended Schools and Special Needs Group,TRAFFORD MB COUNCIL,Public Sector,Capital grants paid to Local Authorities,4000072613,"-15,207.00"
Department for Education,DEPARTMENT FOR EDUCATION,23/02/2012,Capital Grants,Children Young People and Families Early Years Extended Schools and Special Needs Group,WAKEFIELD MDC,Public Sector,Capital grants paid to Local Authorities,4000072614,"52,364.00"
Department for Education,DEPARTMENT FOR EDUCATION,23/02/2012,Capital Grants,Children Young People and Families Early Years Extended Schools and Special Needs Group,WALSALL MBC,Public Sector,Capital grants paid to Local Authorities,4000072615,"-46,501.00"
Department for Education,DEPARTMENT FOR EDUCATION,23/02/2012,Capital Grants,Children Young People and Families Early Years Extended Schools and Special Needs Group,WARRINGTON BOROUGH COUNCIL,Public Sector,Capital grants paid to Local Authorities,4000072616,"-75,900.00"
Department for Education,DEPARTMENT FOR EDUCATION,23/02/2012,Capital Grants,Children Young People and Families Early Years Extended Schools and Special Needs Group,WARWICKSHIRE COUNTY COUNCIL,Public Sector,Capital grants paid to Local Authorities,4000072617,"75,459.00"
Department for Education,DEPARTMENT FOR EDUCATION,23/02/2012,Capital Grants,Children Young People and Families Early Years Extended Schools and Special Needs Group,WEST BERKSHIRE COUNCIL,Public Sector,Capital grants paid to Local Authorities,4000072618,"21,838.00"
Department for Education,DEPARTMENT FOR EDUCATION,23/02/2012,Capital Grants,Children Young People and Families Early Years Extended Schools and Special Needs Group,WEST SUSSEX COUNTY COUNCIL,Public Sector,Capital grants paid to Local Authorities,4000072619,"109,849.00"
Department for Education,DEPARTMENT FOR EDUCATION,23/02/2012,Capital Grants,Children Young People and Families Early Years Extended Schools and Special Needs Group,WIGAN MBC,Public Sector,Capital grants paid to Local Authorities,4000072620,"31,476.00"
Department for Education,DEPARTMENT FOR EDUCATION,23/02/2012,Capital Grants,Children Young People and Families Early Years Extended Schools and Special Needs Group,WILTSHIRE COUNCIL,Public Sector,Capital grants paid to Local Authorities,4000072621,"61,033.00"
Department for Education,DEPARTMENT FOR EDUCATION,23/02/2012,Capital Grants,Children Young People and Families Early Years Extended Schools and Special Needs Group,WOKINGHAM BOROUGH COUNCIL,Public Sector,Capital grants paid to Local Authorities,4000072622,"24,818.00"
Department for Education,DEPARTMENT FOR EDUCATION,23/02/2012,Capital Grants,Children Young People and Families Early Years Extended Schools and Special Needs Group,WOLVERHAMPTON CITY COUNCIL,Public Sector,Capital grants paid to Local Authorities,4000072623,"37,243.00"
Department for Education,DEPARTMENT FOR EDUCATION,23/02/2012,Capital Grants,Children Young People and Families Early Years Extended Schools and Special Needs Group,WORCESTERSHIRE COUNTY COUNCIL,Public Sector,Capital grants paid to Local Authorities,4000072624,"85,940.00"
Department for Education,DEPARTMENT FOR EDUCATION,23/02/2012,Capital Grants,Children Young People and Families Early Years Extended Schools and Special Needs Group,YORK CITY COUNCIL,Public Sector,Capital grants paid to Local Authorities,4000072625,"-17,388.00"
Department for Education,DEPARTMENT FOR EDUCATION,23/02/2012,Current Grants,Children Young People and Families Early Years Extended Schools and Special Needs Group,BARNSLEY MBC,Public Sector,Current grant paid to local authorities within the aggregate external funding total,4000072479,"-2,639.00"
Department for Education,DEPARTMENT FOR EDUCATION,23/02/2012,Current Grants,Children Young People and Families Early Years Extended Schools and Special Needs Group,BATH & NORTH EAST SOMERSET COUNCIL,Public Sector,Current grant paid to local authorities within the aggregate external funding total,4000072480,"-25,844.00"
Department for Education,DEPARTMENT FOR EDUCATION,23/02/2012,Current Grants,Children Young People and Families Early Years Extended Schools and Special Needs Group,BLACKPOOL BOROUGH COUNCIL,Public Sector,Current grant paid to local authorities within the aggregate external funding total,4000072484,"-20,075.00"
Department for Education,DEPARTMENT FOR EDUCATION,23/02/2012,Current Grants,Children Young People and Families Early Years Extended Schools and Special Needs Group,BRIGHTON & HOVE CITY COUNCIL,Public Sector,Current grant paid to local authorities within the aggregate external funding total,4000072488,"37,500.00"
Department for Education,DEPARTMENT FOR EDUCATION,23/02/2012,Current Grants,Children Young People and Families Early Years Extended Schools and Special Needs Group,BUCKINGHAMSHIRE COUNTY COUNCIL,Public Sector,Current grant paid to local authorities within the aggregate external funding total,4000072490,"-1,695.00"
Department for Education,DEPARTMENT FOR EDUCATION,23/02/2012,Current Grants,Children Young People and Families Early Years Extended Schools and Special Needs Group,CALDERDALE MBC,Public Sector,Current grant paid to local authorities within the aggregate external funding total,4000072492,"37,330.00"
Department for Education,DEPARTMENT FOR EDUCATION,23/02/2012,Current Grants,Children Young People and Families Early Years Extended Schools and Special Needs Group,CENTRAL BEDFORDSHIRE COUNCIL,Public Sector,Current grant paid to local authorities within the aggregate external funding total,4000072494,"-47,500.00"
Department for Education,DEPARTMENT FOR EDUCATION,23/02/2012,Current Grants,Children Young People and Families Early Years Extended Schools and Special Needs Group,CHESHIRE EAST COUNCIL,Public Sector,Current grant paid to local authorities within the aggregate external funding total,4000072495,"-10,830.00"
Department for Education,DEPARTMENT FOR EDUCATION,23/02/2012,Current Grants,Children Young People and Families Early Years Extended Schools and Special Needs Group,CHESHIRE WEST & CHESTER COUNCIL,Public Sector,Current grant paid to local authorities within the aggregate external funding total,4000072496,"-27,133.00"
Department for Education,DEPARTMENT FOR EDUCATION,23/02/2012,Current Grants,Children Young People and Families Early Years Extended Schools and Special Needs Group,CITY OF BRADFORD METROPOLITAN DISTRICT COUNCIL,Public Sector,Current grant paid to local authorities within the aggregate external funding total,4000072497,"-10,148.00"
Department for Education,DEPARTMENT FOR EDUCATION,23/02/2012,Current Grants,Children Young People and Families Early Years Extended Schools and Special Needs Group,CORNWALL COUNCIL,Public Sector,Current grant paid to local authorities within the aggregate external funding total,4000072498,"37,500.00"
Department for Education,DEPARTMENT FOR EDUCATION,23/02/2012,Current Grants,Children Young People and Families Early Years Extended Schools and Special Needs Group,CORPORATION OF LONDON,Public Sector,Current grant paid to local authorities within the aggregate external funding total,4000072499,"-19,125.00"
Department for Education,DEPARTMENT FOR EDUCATION,23/02/2012,Current Grants,Children Young People and Families Early Years Extended Schools and Special Needs Group,COVENTRY CITY COUNCIL,Public Sector,Current grant paid to local authorities within the aggregate external funding total,4000072500,"49,999.00"
Department for Education,DEPARTMENT FOR EDUCATION,23/02/2012,Current Grants,Children Young People and Families Early Years Extended Schools and Special Needs Group,CUMBRIA COUNTY COUNCIL,Public Sector,Current grant paid to local authorities within the aggregate external funding total,4000072501,"-8,030.00"
Department for Education,DEPARTMENT FOR EDUCATION,23/02/2012,Current Grants,Children Young People and Families Early Years Extended Schools and Special Needs Group,DARLINGTON BOROUGH COUNCIL,Public Sector,Current grant paid to local authorities within the aggregate external funding total,4000072502,"37,500.00"
Department for Education,DEPARTMENT FOR EDUCATION,23/02/2012,Current Grants,Children Young People and Families Early Years Extended Schools and Special Needs Group,DERBY CITY COUNCIL,Public Sector,Current grant paid to local authorities within the aggregate external funding total,4000072503,"-153,345.00"
Department for Education,DEPARTMENT FOR EDUCATION,23/02/2012,Current Grants,Children Young People and Families Early Years Extended Schools and Special Needs Group,DERBYSHIRE COUNTY COUNCIL,Public Sector,Current grant paid to local authorities within the aggregate external funding total,4000072504,"50,000.00"
Department for Education,DEPARTMENT FOR EDUCATION,23/02/2012,Current Grants,Children Young People and Families Early Years Extended Schools and Special Needs Group,DEVON COUNTY COUNCIL,Public Sector,Current grant paid to local authorities within the aggregate external funding total,4000072505,"37,500.00"
Department for Education,DEPARTMENT FOR EDUCATION,23/02/2012,Current Grants,Children Young People and Families Early Years Extended Schools and Special Needs Group,DONCASTER MBC,Public Sector,Current grant paid to local authorities within the aggregate external funding total,4000072506,"-11,430.00"
Department for Education,DEPARTMENT FOR EDUCATION,23/02/2012,Current Grants,Children Young People and Families Early Years Extended Schools and Special Needs Group,DUDLEY MBC,Public Sector,Current grant paid to local authorities within the aggregate external funding total,4000072508,"-3,108.00"
Department for Education,DEPARTMENT FOR EDUCATION,23/02/2012,Current Grants,Children Young People and Families Early Years Extended Schools and Special Needs Group,EAST SUSSEX COUNTY COUNCIL,Public Sector,Current grant paid to local authorities within the aggregate external funding total,4000072511,"-23,329.00"
Department for Education,DEPARTMENT FOR EDUCATION,23/02/2012,Current Grants,Children Young People and Families Early Years Extended Schools and Special Needs Group,GATESHEAD MBC,Public Sector,Current grant paid to local authorities within the aggregate external funding total,4000072512,"87,500.00"
Department for Education,DEPARTMENT FOR EDUCATION,23/02/2012,Current Grants,Children Young People and Families Early Years Extended Schools and Special Needs Group,GLOUCESTERSHIRE COUNTY COUNCIL,Public Sector,Current grant paid to local authorities within the aggregate external funding total,4000072513,"50,000.00"
Department for Education,DEPARTMENT FOR EDUCATION,23/02/2012,Current Grants,Children Young People and Families Early Years Extended Schools and Special Needs Group,HALTON BOROUGH COUNCIL,Public Sector,Current grant paid to local authorities within the aggregate external funding total,4000072514,"-7,543.00"
Department for Education,DEPARTMENT FOR EDUCATION,23/02/2012,Current Grants,Children Young People and Families Early Years Extended Schools and Special Needs Group,HAMPSHIRE COUNTY COUNCIL,Public Sector,Current grant paid to local authorities within the aggregate external funding total,4000072515,"37,500.00"
Department for Education,DEPARTMENT FOR EDUCATION,23/02/2012,Current Grants,Children Young People and Families Early Years Extended Schools and Special Needs Group,HARTLEPOOL BOROUGH COUNCIL,Public Sector,Current grant paid to local authorities within the aggregate external funding total,4000072516,"37,500.00"
Department for Education,DEPARTMENT FOR EDUCATION,23/02/2012,Current Grants,Children Young People and Families Early Years Extended Schools and Special Needs Group,HEREFORDSHIRE COUNCIL,Public Sector,Current grant paid to local authorities within the aggregate external funding total,4000072517,-1
Department for Education,DEPARTMENT FOR EDUCATION,23/02/2012,Current Grants,Children Young People and Families Early Years Extended Schools and Special Needs Group,HERTFORDSHIRE,Public Sector,Current grant paid to local authorities within the aggregate external funding total,4000072518,"-213,606.00"
Department for Education,DEPARTMENT FOR EDUCATION,23/02/2012,Current Grants,Children Young People and Families Early Years Extended Schools and Special Needs Group,ISLE OF WIGHT COUNCIL,Public Sector,Current grant paid to local authorities within the aggregate external funding total,4000072519,"-53,539.00"
Department for Education,DEPARTMENT FOR EDUCATION,23/02/2012,Current Grants,Children Young People and Families Early Years Extended Schools and Special Needs Group,KENT COUNTY COUNCIL,Public Sector,Current grant paid to local authorities within the aggregate external funding total,4000072520,"21,670.00"
Department for Education,DEPARTMENT FOR EDUCATION,23/02/2012,Current Grants,Children Young People and Families Early Years Extended Schools and Special Needs Group,KNOWSLEY MBC,Public Sector,Current grant paid to local authorities within the aggregate external funding total,4000072522,"-10,830.00"
Department for Education,DEPARTMENT FOR EDUCATION,23/02/2012,Current Grants,Children Young People and Families Early Years Extended Schools and Special Needs Group,LEEDS CITY COUNCIL,Public Sector,Current grant paid to local authorities within the aggregate external funding total,4000072524,"-42,100.00"
Department for Education,DEPARTMENT FOR EDUCATION,23/02/2012,Current Grants,Children Young People and Families Early Years Extended Schools and Special Needs Group,LEICESTER CITY COUNCIL,Public Sector,Current grant paid to local authorities within the aggregate external funding total,4000072525,"1,804.00"
Department for Education,DEPARTMENT FOR EDUCATION,23/02/2012,Current Grants,Children Young People and Families Early Years Extended Schools and Special Needs Group,LEICESTERSHIRE COUNTY COUNCIL,Public Sector,Current grant paid to local authorities within the aggregate external funding total,4000072526,"-7,694.00"
Department for Education,DEPARTMENT FOR EDUCATION,23/02/2012,Current Grants,Children Young People and Families Early Years Extended Schools and Special Needs Group,LINCOLNSHIRE COUNTY COUNCIL,Public Sector,Current grant paid to local authorities within the aggregate external funding total,4000072527,"-31,011.00"
Department for Education,DEPARTMENT FOR EDUCATION,23/02/2012,Current Grants,Children Young People and Families Early Years Extended Schools and Special Needs Group,LONDON BOROUGH OF BARKING & DAGENHAM COUNCIL,Public Sector,Current grant paid to local authorities within the aggregate external funding total,4000072529,-496
Department for Education,DEPARTMENT FOR EDUCATION,23/02/2012,Current Grants,Children Young People and Families Early Years Extended Schools and Special Needs Group,LONDON BOROUGH OF BEXLEY COUNCIL,Public Sector,Current grant paid to local authorities within the aggregate external funding total,4000072531,"37,500.00"
Department for Education,DEPARTMENT FOR EDUCATION,23/02/2012,Current Grants,Children Young People and Families Early Years Extended Schools and Special Needs Group,LONDON BOROUGH OF BROMLEY COUNCIL,Public Sector,Current grant paid to local authorities within the aggregate external funding total,4000072533,"37,500.00"
Department for Education,DEPARTMENT FOR EDUCATION,23/02/2012,Current Grants,Children Young People and Families Early Years Extended Schools and Special Needs Group,LONDON BOROUGH OF CROYDON COUNCIL,Public Sector,Current grant paid to local authorities within the aggregate external funding total,4000072535,"-14,825.00"
Department for Education,DEPARTMENT FOR EDUCATION,23/02/2012,Current Grants,Children Young People and Families Early Years Extended Schools and Special Needs Group,LONDON BOROUGH OF GREENWICH,Public Sector,Current grant paid to local authorities within the aggregate external funding total,4000072538,"37,500.00"
Department for Education,DEPARTMENT FOR EDUCATION,23/02/2012,Current Grants,Children Young People and Families Early Years Extended Schools and Special Needs Group,LONDON BOROUGH OF HARINGEY,Public Sector,Current grant paid to local authorities within the aggregate external funding total,4000072540,-145
Department for Education,DEPARTMENT FOR EDUCATION,23/02/2012,Current Grants,Children Young People and Families Early Years Extended Schools and Special Needs Group,LONDON BOROUGH OF HAVERING COUNCIL,Public Sector,Current grant paid to local authorities within the aggregate external funding total,4000072541,"-8,310.00"
Department for Education,DEPARTMENT FOR EDUCATION,23/02/2012,Current Grants,Children Young People and Families Early Years Extended Schools and Special Needs Group,LONDON BOROUGH OF HOUNSLOW COUNCIL,Public Sector,Current grant paid to local authorities within the aggregate external funding total,4000072543,"-38,088.00"
Department for Education,DEPARTMENT FOR EDUCATION,23/02/2012,Current Grants,Children Young People and Families Early Years Extended Schools and Special Needs Group,LONDON BOROUGH OF LEWISHAM,Public Sector,Current grant paid to local authorities within the aggregate external funding total,4000072546,"36,531.00"
Department for Education,DEPARTMENT FOR EDUCATION,23/02/2012,Current Grants,Children Young People and Families Early Years Extended Schools and Special Needs Group,LONDON BOROUGH OF MERTON COUNCIL,Public Sector,Current grant paid to local authorities within the aggregate external funding total,4000072547,"-10,203.00"
Department for Education,DEPARTMENT FOR EDUCATION,23/02/2012,Current Grants,Children Young People and Families Early Years Extended Schools and Special Needs Group,LONDON BOROUGH OF REDBRIDGE,Public Sector,Current grant paid to local authorities within the aggregate external funding total,4000072549,-336
Department for Education,DEPARTMENT FOR EDUCATION,23/02/2012,Current Grants,Children Young People and Families Early Years Extended Schools and Special Needs Group,LONDON BOROUGH OF RICHMOND UPON THAMES,Public Sector,Current grant paid to local authorities within the aggregate external funding total,4000072550,"-14,304.00"
Department for Education,DEPARTMENT FOR EDUCATION,23/02/2012,Current Grants,Children Young People and Families Early Years Extended Schools and Special Needs Group,LONDON BOROUGH OF WALTHAM FOREST COUNCIL,Public Sector,Current grant paid to local authorities within the aggregate external funding total,4000072554,-564
Department for Education,DEPARTMENT FOR EDUCATION,23/02/2012,Current Grants,Children Young People and Families Early Years Extended Schools and Special Needs Group,MANCHESTER CITY COUNCIL,Public Sector,Current grant paid to local authorities within the aggregate external funding total,4000072557,"-90,616.00"
Department for Education,DEPARTMENT FOR EDUCATION,23/02/2012,Current Grants,Children Young People and Families Early Years Extended Schools and Special Needs Group,MEDWAY COUNCIL,Public Sector,Current grant paid to local authorities within the aggregate external funding total,4000072558,"37,500.00"
Department for Education,DEPARTMENT FOR EDUCATION,23/02/2012,Current Grants,Children Young People and Families Early Years Extended Schools and Special Needs Group,MILTON KEYNES COUNCIL,Public Sector,Current grant paid to local authorities within the aggregate external funding total,4000072561,"-73,144.00"
Department for Education,DEPARTMENT FOR EDUCATION,23/02/2012,Current Grants,Children Young People and Families Early Years Extended Schools and Special Needs Group,NEWCASTLE CITY COUNCIL,Public Sector,Current grant paid to local authorities within the aggregate external funding total,4000072562,"49,735.00"
Department for Education,DEPARTMENT FOR EDUCATION,23/02/2012,Current Grants,Children Young People and Families Early Years Extended Schools and Special Needs Group,NORFOLK COUNTY COUNCIL,Public Sector,Current grant paid to local authorities within the aggregate external funding total,4000072563,"-10,830.00"
Department for Education,DEPARTMENT FOR EDUCATION,23/02/2012,Current Grants,Children Young People and Families Early Years Extended Schools and Special Needs Group,NORTH EAST LINCOLNSHIRE COUNCIL,Public Sector,Current grant paid to local authorities within the aggregate external funding total,4000072564,"-39,355.00"
Department for Education,DEPARTMENT FOR EDUCATION,23/02/2012,Current Grants,Children Young People and Families Early Years Extended Schools and Special Needs Group,NORTH LINCOLNSHIRE COUNCIL,Public Sector,Current grant paid to local authorities within the aggregate external funding total,4000072565,"-39,502.00"
Department for Education,DEPARTMENT FOR EDUCATION,23/02/2012,Current Grants,Children Young People and Families Early Years Extended Schools and Special Needs Group,NORTH SOMERSET COUNCIL,Public Sector,Current grant paid to local authorities within the aggregate external funding total,4000072566,"-14,866.00"
Department for Education,DEPARTMENT FOR EDUCATION,23/02/2012,Current Grants,Children Young People and Families Early Years Extended Schools and Special Needs Group,NORTH YORKSHIRE COUNTY COUNCIL,Public Sector,Current grant paid to local authorities within the aggregate external funding total,4000072568,"37,500.00"
Department for Education,DEPARTMENT FOR EDUCATION,23/02/2012,Current Grants,Children Young People and Families Early Years Extended Schools and Special Needs Group,NORTHAMPTONSHIRE COUNTY COUNCIL,Public Sector,Current grant paid to local authorities within the aggregate external funding total,4000072569,"37,498.00"
Department for Education,DEPARTMENT FOR EDUCATION,23/02/2012,Current Grants,Children Young People and Families Early Years Extended Schools and Special Needs Group,NOTTINGHAMSHIRE COUNTY COUNCIL,Public Sector,Current grant paid to local authorities within the aggregate external funding total,4000072572,"15,906.00"
Department for Education,DEPARTMENT FOR EDUCATION,23/02/2012,Current Grants,Children Young People and Families Early Years Extended Schools and Special Needs Group,OLDHAM MBC,Public Sector,Current grant paid to local authorities within the aggregate external funding total,4000072573,"37,500.00"
Department for Education,DEPARTMENT FOR EDUCATION,23/02/2012,Current Grants,Children Young People and Families Early Years Extended Schools and Special Needs Group,PORTSMOUTH CITY COUNCIL,Public Sector,Current grant paid to local authorities within the aggregate external funding total,4000072578,"-4,032.00"
Department for Education,DEPARTMENT FOR EDUCATION,23/02/2012,Current Grants,Children Young People and Families Early Years Extended Schools and Special Needs Group,ROCHDALE MBC,Public Sector,Current grant paid to local authorities within the aggregate external funding total,4000072581,"37,470.00"
Department for Education,DEPARTMENT FOR EDUCATION,23/02/2012,Current Grants,Children Young People and Families Early Years Extended Schools and Special Needs Group,RUTLAND COUNTY COUNCIL,Public Sector,Current grant paid to local authorities within the aggregate external funding total,4000072584,"-56,191.00"
Department for Education,DEPARTMENT FOR EDUCATION,23/02/2012,Current Grants,Children Young People and Families Early Years Extended Schools and Special Needs Group,SANDWELL MBC,Public Sector,Current grant paid to local authorities within the aggregate external funding total,4000072586,"-64,030.00"
Department for Education,DEPARTMENT FOR EDUCATION,23/02/2012,Current Grants,Children Young People and Families Early Years Extended Schools and Special Needs Group,SHEFFIELD CITY COUNCIL,Public Sector,Current grant paid to local authorities within the aggregate external funding total,4000072588,"-1,180.00"
Department for Education,DEPARTMENT FOR EDUCATION,23/02/2012,Current Grants,Children Young People and Families Early Years Extended Schools and Special Needs Group,SOLIHULL MBC,Public Sector,Current grant paid to local authorities within the aggregate external funding total,4000072591,"37,500.00"
Department for Education,DEPARTMENT FOR EDUCATION,23/02/2012,Current Grants,Children Young People and Families Early Years Extended Schools and Special Needs Group,SOMERSET COUNTY COUNCIL,Public Sector,Current grant paid to local authorities within the aggregate external funding total,4000072592,"-69,041.00"
Department for Education,DEPARTMENT FOR EDUCATION,23/02/2012,Current Grants,Children Young People and Families Early Years Extended Schools and Special Needs Group,SOUTH GLOUCEST,Public Sector,Current grant paid to local authorities within the aggregate external funding total,4000072593,-86
Department for Education,DEPARTMENT FOR EDUCATION,23/02/2012,Current Grants,Children Young People and Families Early Years Extended Schools and Special Needs Group,SOUTHAMPTON CITY COUNCIL,Public Sector,Current grant paid to local authorities within the aggregate external funding total,4000072595,"37,500.00"
Department for Education,DEPARTMENT FOR EDUCATION,23/02/2012,Current Grants,Children Young People and Families Early Years Extended Schools and Special Needs Group,STOCKPORT MBC,Public Sector,Current grant paid to local authorities within the aggregate external funding total,4000072599,"-93,402.00"
Department for Education,DEPARTMENT FOR EDUCATION,23/02/2012,Current Grants,Children Young People and Families Early Years Extended Schools and Special Needs Group,SURREY COUNTY COUNCIL,Public Sector,Current grant paid to local authorities within the aggregate external funding total,4000072604,"9,224.00"
Department for Education,DEPARTMENT FOR EDUCATION,23/02/2012,Current Grants,Children Young People and Families Early Years Extended Schools and Special Needs Group,THE ROYAL BOROUGH OF KENSINGTON & CHELSEA COUNCIL,Public Sector,Current grant paid to local authorities within the aggregate external funding total,4000072609,"-10,830.00"
Department for Education,DEPARTMENT FOR EDUCATION,23/02/2012,Current Grants,Children Young People and Families Early Years Extended Schools and Special Needs Group,TORBAY COUNCIL,Public Sector,Current grant paid to local authorities within the aggregate external funding total,4000072612,"-2,715.00"
Department for Education,DEPARTMENT FOR EDUCATION,23/02/2012,Current Grants,Children Young People and Families Early Years Extended Schools and Special Needs Group,TRAFFORD MB COUNCIL,Public Sector,Current grant paid to local authorities within the aggregate external funding total,4000072613,"37,500.00"
Department for Education,DEPARTMENT FOR EDUCATION,23/02/2012,Current Grants,Children Young People and Families Early Years Extended Schools and Special Needs Group,WALSALL MBC,Public Sector,Current grant paid to local authorities within the aggregate external funding total,4000072615,"-5,081.00"
Department for Education,DEPARTMENT FOR EDUCATION,23/02/2012,Current Grants,Children Young People and Families Early Years Extended Schools and Special Needs Group,WARRINGTON BOROUGH COUNCIL,Public Sector,Current grant paid to local authorities within the aggregate external funding total,4000072616,-30
Department for Education,DEPARTMENT FOR EDUCATION,23/02/2012,Current Grants,Children Young People and Families Early Years Extended Schools and Special Needs Group,WEST SUSSEX COUNTY COUNCIL,Public Sector,Current grant paid to local authorities within the aggregate external funding total,4000072619,"37,500.00"
Department for Education,DEPARTMENT FOR EDUCATION,23/02/2012,Current Grants,Children Young People and Families Early Years Extended Schools and Special Needs Group,WIGAN MBC,Public Sector,Current grant paid to local authorities within the aggregate external funding total,4000072620,"25,383.00"
Department for Education,DEPARTMENT FOR EDUCATION,23/02/2012,Current Grants,Children Young People and Families Early Years Extended Schools and Special Needs Group,WILTSHIRE COUNCIL,Public Sector,Current grant paid to local authorities within the aggregate external funding total,4000072621,"37,500.00"
Department for Education,DEPARTMENT FOR EDUCATION,23/02/2012,Current Grants,Children Young People and Families Early Years Extended Schools and Special Needs Group,WOKINGHAM BOROUGH COUNCIL,Public Sector,Current grant paid to local authorities within the aggregate external funding total,4000072622,"-1,228.00"
Department for Education,DEPARTMENT FOR EDUCATION,23/02/2012,Current Grants,Children Young People and Families Early Years Extended Schools and Special Needs Group,WOLVERHAMPTON CITY COUNCIL,Public Sector,Current grant paid to local authorities within the aggregate external funding total,4000072623,"-12,052.00"
Department for Education,DEPARTMENT FOR EDUCATION,17/02/2012,Current Grants,Families Group,BOOK TRUST,VCS,Current grant to third sector organisation / not for profit organisation,4000072052,"482,835.00"
Department for Education,DEPARTMENT FOR EDUCATION,02/02/2012,Current Grants to Arms Length Bodies,Families Group,CAFCASS,Public Sector,Funding to arms length bodies for DfE's contribution to fund activity,2000531,"10,711,263.00"
Department for Education,DEPARTMENT FOR EDUCATION,16/02/2012,Marketing and Media,Families Group,PROLOG,Commercial,Publications and related services,4000071992,334.89
Department for Education,DEPARTMENT FOR EDUCATION,13/02/2012,DfE Programme Costs,Children Young People and Families Early Years Extended Schools and Special Needs Group,SERCO LTD,Commercial,Funding to deliver DfE policies (excluding consultancy) paid to third parties via a service delivery contract,4000071685,"-8,947.73"
Department for Education,DEPARTMENT FOR EDUCATION,16/02/2012,Marketing and Media,Children Young People and Families Early Years Extended Schools and Special Needs Group,PROLOG,Commercial,Publications and related services,4000071992,153.27
Department for Education,DEPARTMENT FOR EDUCATION,24/02/2012,DfE Programme Costs,Children Young People and Families Early Years Extended Schools and Special Needs Group,EC HARRIS LLP,Commercial,Funding to deliver DfE policies (excluding consultancy) paid to third parties via a service delivery contract,4000072713,"4,980.00"
Department for Education,DEPARTMENT FOR EDUCATION,16/02/2012,Marketing and Media,Children Young People and Families Safeguarding Group,PROLOG,Commercial,Publications and related services,4000071992,"5,833.84"
Department for Education,DEPARTMENT FOR EDUCATION,16/02/2012,Marketing and Media,Children Young People and Families Early Years Extended Schools and Special Needs Group,PROLOG,Commercial,Publications and related services,4000071992,265.85
Department for Education,DEPARTMENT FOR EDUCATION,13/02/2012,DfE Programme Costs,Children Young People and Families Early Years Extended Schools and Special Needs Group,CONTACT A FAMILY,VCS,Funding to deliver DfE policies (excluding consultancy) paid to third parties via a service delivery contract,4000071648,"157,410.00"
Department for Education,DEPARTMENT FOR EDUCATION,14/02/2012,Personnel Related,Children Young People and Families Early Years Extended Schools and Special Needs Group,THE MEDIA GROUP TMG TV LTD,Commercial,Costs related to staff expenses including membership fees to professional bodies and CRB checks,4000071813,"172,690.60"
Department for Education,DEPARTMENT FOR EDUCATION,15/02/2012,Personnel Related,Children Young People and Families Early Years Extended Schools and Special Needs Group,CAPITA EDUCATION RESOURCING,Commercial,Costs related to staff expenses including membership fees to professional bodies and CRB checks,4000071878,"160,003.00"
Department for Education,DEPARTMENT FOR EDUCATION,17/02/2012,Personnel Related,Children Young People and Families Early Years Extended Schools and Special Needs Group,ATLANTIC DATA LTD,Commercial,Costs related to staff expenses including membership fees to professional bodies and CRB checks,4000072047,"50,377.23"
Department for Education,DEPARTMENT FOR EDUCATION,23/02/2012,DfE Programme Costs,Children Young People and Families Early Years Extended Schools and Special Needs Group,CRIMINAL RECORDS BUREAU,Public Sector,Funding to deliver DfE policies (excluding consultancy) paid to third parties via a service delivery contract,4000072635,"196,020.00"
Department for Education,DEPARTMENT FOR EDUCATION,15/02/2012,Professional Services Temporary Staff,People and Change,CAPITA RESOURCING LTD,Commercial,Costs related to temporary workers,4000071879,"7,383.00"
Department for Education,DEPARTMENT FOR EDUCATION,23/02/2012,Current Grants,Children Young People and Families Early Years Extended Schools and Special Needs Group,BARNSLEY MBC,Public Sector,Current grant for Sure Start payments to local authorities,4000072479,-829
Department for Education,DEPARTMENT FOR EDUCATION,23/02/2012,Current Grants,Children Young People and Families Early Years Extended Schools and Special Needs Group,BATH & NORTH EAST SOMERSET COUNCIL,Public Sector,Current grant for Sure Start payments to local authorities,4000072480,"-14,720.00"
Department for Education,DEPARTMENT FOR EDUCATION,23/02/2012,Current Grants,Children Young People and Families Early Years Extended Schools and Special Needs Group,BEDFORD BOROUGH COUNCIL,Public Sector,Current grant for Sure Start payments to local authorities,4000072481,-5
Department for Education,DEPARTMENT FOR EDUCATION,23/02/2012,Current Grants,Children Young People and Families Early Years Extended Schools and Special Needs Group,BRISTOL CITY COUNCIL,Public Sector,Current grant for Sure Start payments to local authorities,4000072489,"-1,846.00"
Department for Education,DEPARTMENT FOR EDUCATION,23/02/2012,Current Grants,Children Young People and Families Early Years Extended Schools and Special Needs Group,BURY MBC,Public Sector,Current grant for Sure Start payments to local authorities,4000072491,-6
Department for Education,DEPARTMENT FOR EDUCATION,23/02/2012,Current Grants,Children Young People and Families Early Years Extended Schools and Special Needs Group,CALDERDALE MBC,Public Sector,Current grant for Sure Start payments to local authorities,4000072492,"-89,362.00"
Department for Education,DEPARTMENT FOR EDUCATION,23/02/2012,Current Grants,Children Young People and Families Early Years Extended Schools and Special Needs Group,CAMBRIDGESHIRE COUNTY COUNCIL,Public Sector,Current grant for Sure Start payments to local authorities,4000072493,-148
Department for Education,DEPARTMENT FOR EDUCATION,23/02/2012,Current Grants,Children Young People and Families Early Years Extended Schools and Special Needs Group,CENTRAL BEDFORDSHIRE COUNCIL,Public Sector,Current grant for Sure Start payments to local authorities,4000072494,"-5,952.00"
Department for Education,DEPARTMENT FOR EDUCATION,23/02/2012,Current Grants,Children Young People and Families Early Years Extended Schools and Special Needs Group,CITY OF BRADFORD METROPOLITAN DISTRICT COUNCIL,Public Sector,Current grant for Sure Start payments to local authorities,4000072497,-145
Department for Education,DEPARTMENT FOR EDUCATION,23/02/2012,Current Grants,Children Young People and Families Early Years Extended Schools and Special Needs Group,CORPORATION OF LONDON,Public Sector,Current grant for Sure Start payments to local authorities,4000072499,"-1,362.00"
Department for Education,DEPARTMENT FOR EDUCATION,23/02/2012,Current Grants,Children Young People and Families Early Years Extended Schools and Special Needs Group,CUMBRIA COUNTY COUNCIL,Public Sector,Current grant for Sure Start payments to local authorities,4000072501,-606
Department for Education,DEPARTMENT FOR EDUCATION,23/02/2012,Current Grants,Children Young People and Families Early Years Extended Schools and Special Needs Group,DARLINGTON BOROUGH COUNCIL,Public Sector,Current grant for Sure Start payments to local authorities,4000072502,-17
Department for Education,DEPARTMENT FOR EDUCATION,23/02/2012,Current Grants,Children Young People and Families Early Years Extended Schools and Special Needs Group,DERBY CITY COUNCIL,Public Sector,Current grant for Sure Start payments to local authorities,4000072503,"-4,535.00"
Department for Education,DEPARTMENT FOR EDUCATION,23/02/2012,Current Grants,Children Young People and Families Early Years Extended Schools and Special Needs Group,DERBYSHIRE COUNTY COUNCIL,Public Sector,Current grant for Sure Start payments to local authorities,4000072504,"-44,351.00"
Department for Education,DEPARTMENT FOR EDUCATION,23/02/2012,Current Grants,Children Young People and Families Early Years Extended Schools and Special Needs Group,DONCASTER MBC,Public Sector,Current grant for Sure Start payments to local authorities,4000072506,"-37,580.00"
Department for Education,DEPARTMENT FOR EDUCATION,23/02/2012,Current Grants,Children Young People and Families Early Years Extended Schools and Special Needs Group,DUDLEY MBC,Public Sector,Current grant for Sure Start payments to local authorities,4000072508,-992
Department for Education,DEPARTMENT FOR EDUCATION,23/02/2012,Current Grants,Children Young People and Families Early Years Extended Schools and Special Needs Group,DURHAM COUNTY COUNCIL,Public Sector,Current grant for Sure Start payments to local authorities,4000072509,-44
Department for Education,DEPARTMENT FOR EDUCATION,23/02/2012,Current Grants,Children Young People and Families Early Years Extended Schools and Special Needs Group,EAST SUSSEX COUNTY COUNCIL,Public Sector,Current grant for Sure Start payments to local authorities,4000072511,"-9,360.00"
Department for Education,DEPARTMENT FOR EDUCATION,23/02/2012,Current Grants,Children Young People and Families Early Years Extended Schools and Special Needs Group,GLOUCESTERSHIRE COUNTY COUNCIL,Public Sector,Current grant for Sure Start payments to local authorities,4000072513,-59
Department for Education,DEPARTMENT FOR EDUCATION,23/02/2012,Current Grants,Children Young People and Families Early Years Extended Schools and Special Needs Group,HALTON BOROUGH COUNCIL,Public Sector,Current grant for Sure Start payments to local authorities,4000072514,"-6,993.00"
Department for Education,DEPARTMENT FOR EDUCATION,23/02/2012,Current Grants,Children Young People and Families Early Years Extended Schools and Special Needs Group,HAMPSHIRE COUNTY COUNCIL,Public Sector,Current grant for Sure Start payments to local authorities,4000072515,-49
Department for Education,DEPARTMENT FOR EDUCATION,23/02/2012,Current Grants,Children Young People and Families Early Years Extended Schools and Special Needs Group,HEREFORDSHIRE COUNCIL,Public Sector,Current grant for Sure Start payments to local authorities,4000072517,"-23,468.00"
Department for Education,DEPARTMENT FOR EDUCATION,23/02/2012,Current Grants,Children Young People and Families Early Years Extended Schools and Special Needs Group,ISLE OF WIGHT COUNCIL,Public Sector,Current grant for Sure Start payments to local authorities,4000072519,"-7,633.00"
Department for Education,DEPARTMENT FOR EDUCATION,23/02/2012,Current Grants,Children Young People and Families Early Years Extended Schools and Special Needs Group,KENT COUNTY COUNCIL,Public Sector,Current grant for Sure Start payments to local authorities,4000072520,-10
Department for Education,DEPARTMENT FOR EDUCATION,23/02/2012,Current Grants,Children Young People and Families Early Years Extended Schools and Special Needs Group,KIRKLEES COUNCIL,Public Sector,Current grant for Sure Start payments to local authorities,4000072521,"-6,834.00"
Department for Education,DEPARTMENT FOR EDUCATION,23/02/2012,Current Grants,Children Young People and Families Early Years Extended Schools and Special Needs Group,LANCASHIRE COUNTY COUNCIL,Public Sector,Current grant for Sure Start payments to local authorities,4000072523,"-71,986.00"
Department for Education,DEPARTMENT FOR EDUCATION,23/02/2012,Current Grants,Children Young People and Families Early Years Extended Schools and Special Needs Group,LEICESTER CITY COUNCIL,Public Sector,Current grant for Sure Start payments to local authorities,4000072525,"-34,129.00"
Department for Education,DEPARTMENT FOR EDUCATION,23/02/2012,Current Grants,Children Young People and Families Early Years Extended Schools and Special Needs Group,LEICESTERSHIRE COUNTY COUNCIL,Public Sector,Current grant for Sure Start payments to local authorities,4000072526,"-28,405.00"
Department for Education,DEPARTMENT FOR EDUCATION,23/02/2012,Current Grants,Children Young People and Families Early Years Extended Schools and Special Needs Group,LIVERPOOL CITY COUNCIL,Public Sector,Current grant for Sure Start payments to local authorities,4000072528,"-2,458.00"
Department for Education,DEPARTMENT FOR EDUCATION,23/02/2012,Current Grants,Children Young People and Families Early Years Extended Schools and Special Needs Group,LONDON BOROUGH OF BARKING & DAGENHAM COUNCIL,Public Sector,Current grant for Sure Start payments to local authorities,4000072529,-304
Department for Education,DEPARTMENT FOR EDUCATION,23/02/2012,Current Grants,Children Young People and Families Early Years Extended Schools and Special Needs Group,LONDON BOROUGH OF CROYDON COUNCIL,Public Sector,Current grant for Sure Start payments to local authorities,4000072535,"-5,043.00"
Department for Education,DEPARTMENT FOR EDUCATION,23/02/2012,Current Grants,Children Young People and Families Early Years Extended Schools and Special Needs Group,LONDON BOROUGH OF EALING COUNCIL,Public Sector,Current grant for Sure Start payments to local authorities,4000072536,"-17,897.00"
Department for Education,DEPARTMENT FOR EDUCATION,23/02/2012,Current Grants,Children Young People and Families Early Years Extended Schools and Special Needs Group,LONDON BOROUGH OF GREENWICH,Public Sector,Current grant for Sure Start payments to local authorities,4000072538,"-6,603.00"
Department for Education,DEPARTMENT FOR EDUCATION,23/02/2012,Current Grants,Children Young People and Families Early Years Extended Schools and Special Needs Group,LONDON BOROUGH OF HAVERING COUNCIL,Public Sector,Current grant for Sure Start payments to local authorities,4000072541,"-3,174.00"
Department for Education,DEPARTMENT FOR EDUCATION,23/02/2012,Current Grants,Children Young People and Families Early Years Extended Schools and Special Needs Group,LONDON BOROUGH OF HILLINGDON  COUNCIL,Public Sector,Current grant for Sure Start payments to local authorities,4000072542,"-2,258.00"
Department for Education,DEPARTMENT FOR EDUCATION,23/02/2012,Current Grants,Children Young People and Families Early Years Extended Schools and Special Needs Group,LONDON BOROUGH OF HOUNSLOW COUNCIL,Public Sector,Current grant for Sure Start payments to local authorities,4000072543,"-21,229.00"
Department for Education,DEPARTMENT FOR EDUCATION,23/02/2012,Current Grants,Children Young People and Families Early Years Extended Schools and Special Needs Group,LONDON BOROUGH OF NEWHAM,Public Sector,Current grant for Sure Start payments to local authorities,4000072548,"-6,199.00"
Department for Education,DEPARTMENT FOR EDUCATION,23/02/2012,Current Grants,Children Young People and Families Early Years Extended Schools and Special Needs Group,LONDON BOROUGH OF REDBRIDGE,Public Sector,Current grant for Sure Start payments to local authorities,4000072549,"-10,276.00"
Department for Education,DEPARTMENT FOR EDUCATION,23/02/2012,Current Grants,Children Young People and Families Early Years Extended Schools and Special Needs Group,LONDON BOROUGH OF RICHMOND UPON THAMES,Public Sector,Current grant for Sure Start payments to local authorities,4000072550,"-4,201.00"
Department for Education,DEPARTMENT FOR EDUCATION,23/02/2012,Current Grants,Children Young People and Families Early Years Extended Schools and Special Needs Group,LONDON BOROUGH OF SOUTHWARK COUNCIL,Public Sector,Current grant for Sure Start payments to local authorities,4000072551,"-1,529.00"
Department for Education,DEPARTMENT FOR EDUCATION,23/02/2012,Current Grants,Children Young People and Families Early Years Extended Schools and Special Needs Group,LONDON BOROUGH OF WALTHAM FOREST COUNCIL,Public Sector,Current grant for Sure Start payments to local authorities,4000072554,"-5,760.00"
Department for Education,DEPARTMENT FOR EDUCATION,23/02/2012,Current Grants,Children Young People and Families Early Years Extended Schools and Special Needs Group,LUTON BOROUGH COUNCIL,Public Sector,Current grant for Sure Start payments to local authorities,4000072556,-10
Department for Education,DEPARTMENT FOR EDUCATION,23/02/2012,Current Grants,Children Young People and Families Early Years Extended Schools and Special Needs Group,MANCHESTER CITY COUNCIL,Public Sector,Current grant for Sure Start payments to local authorities,4000072557,"-25,182.00"
Department for Education,DEPARTMENT FOR EDUCATION,23/02/2012,Current Grants,Children Young People and Families Early Years Extended Schools and Special Needs Group,METROPOLITAN BOROUGH OF WIRRAL,Public Sector,Current grant for Sure Start payments to local authorities,4000072559,"-1,941.00"
Department for Education,DEPARTMENT FOR EDUCATION,23/02/2012,Current Grants,Children Young People and Families Early Years Extended Schools and Special Needs Group,MIDDLESBROUGH COUNCIL,Public Sector,Current grant for Sure Start payments to local authorities,4000072560,"-1,472.00"
Department for Education,DEPARTMENT FOR EDUCATION,23/02/2012,Current Grants,Children Young People and Families Early Years Extended Schools and Special Needs Group,NEWCASTLE CITY COUNCIL,Public Sector,Current grant for Sure Start payments to local authorities,4000072562,"-1,847.00"
Department for Education,DEPARTMENT FOR EDUCATION,23/02/2012,Current Grants,Children Young People and Families Early Years Extended Schools and Special Needs Group,NORTH LINCOLNSHIRE COUNCIL,Public Sector,Current grant for Sure Start payments to local authorities,4000072565,"-17,686.00"
Department for Education,DEPARTMENT FOR EDUCATION,23/02/2012,Current Grants,Children Young People and Families Early Years Extended Schools and Special Needs Group,NOTTINGHAMSHIRE COUNTY COUNCIL,Public Sector,Current grant for Sure Start payments to local authorities,4000072572,"-23,962.00"
Department for Education,DEPARTMENT FOR EDUCATION,23/02/2012,Current Grants,Children Young People and Families Early Years Extended Schools and Special Needs Group,OXFORDSHIRE COUNTY COUNCIL,Public Sector,Current grant for Sure Start payments to local authorities,4000072574,-284
Department for Education,DEPARTMENT FOR EDUCATION,23/02/2012,Current Grants,Children Young People and Families Early Years Extended Schools and Special Needs Group,POOLE BOROUGH COUNCIL,Public Sector,Current grant for Sure Start payments to local authorities,4000072577,-359
Department for Education,DEPARTMENT FOR EDUCATION,23/02/2012,Current Grants,Children Young People and Families Early Years Extended Schools and Special Needs Group,PORTSMOUTH CITY COUNCIL,Public Sector,Current grant for Sure Start payments to local authorities,4000072578,"-2,451.00"
Department for Education,DEPARTMENT FOR EDUCATION,23/02/2012,Current Grants,Children Young People and Families Early Years Extended Schools and Special Needs Group,READING BOROUGH COUNCIL,Public Sector,Current grant for Sure Start payments to local authorities,4000072579,"-14,377.00"
Department for Education,DEPARTMENT FOR EDUCATION,23/02/2012,Current Grants,Children Young People and Families Early Years Extended Schools and Special Needs Group,ROCHDALE MBC,Public Sector,Current grant for Sure Start payments to local authorities,4000072581,"-1,292.00"
Department for Education,DEPARTMENT FOR EDUCATION,23/02/2012,Current Grants,Children Young People and Families Early Years Extended Schools and Special Needs Group,ROYAL BOROUGH OF KINGSTON UPON THAMES COUNCIL,Public Sector,Current grant for Sure Start payments to local authorities,4000072583,"-2,688.00"
Department for Education,DEPARTMENT FOR EDUCATION,23/02/2012,Current Grants,Children Young People and Families Early Years Extended Schools and Special Needs Group,RUTLAND COUNTY COUNCIL,Public Sector,Current grant for Sure Start payments to local authorities,4000072584,"-4,831.00"
Department for Education,DEPARTMENT FOR EDUCATION,23/02/2012,Current Grants,Children Young People and Families Early Years Extended Schools and Special Needs Group,SALFORD CITY COUNCIL,Public Sector,Current grant for Sure Start payments to local authorities,4000072585,-533
Department for Education,DEPARTMENT FOR EDUCATION,23/02/2012,Current Grants,Children Young People and Families Early Years Extended Schools and Special Needs Group,SANDWELL MBC,Public Sector,Current grant for Sure Start payments to local authorities,4000072586,"-15,835.00"
Department for Education,DEPARTMENT FOR EDUCATION,23/02/2012,Current Grants,Children Young People and Families Early Years Extended Schools and Special Needs Group,SEFTON COUNCIL,Public Sector,Current grant for Sure Start payments to local authorities,4000072587,"-61,025.00"
Department for Education,DEPARTMENT FOR EDUCATION,23/02/2012,Current Grants,Children Young People and Families Early Years Extended Schools and Special Needs Group,SHEFFIELD CITY COUNCIL,Public Sector,Current grant for Sure Start payments to local authorities,4000072588,-32
Department for Education,DEPARTMENT FOR EDUCATION,23/02/2012,Current Grants,Children Young People and Families Early Years Extended Schools and Special Needs Group,SOUTHAMPTON CITY COUNCIL,Public Sector,Current grant for Sure Start payments to local authorities,4000072595,"-7,234.00"
Department for Education,DEPARTMENT FOR EDUCATION,23/02/2012,Current Grants,Children Young People and Families Early Years Extended Schools and Special Needs Group,STAFFORDSHIRE COUNCIL,Public Sector,Current grant for Sure Start payments to local authorities,4000072598,"-119,149.00"
Department for Education,DEPARTMENT FOR EDUCATION,23/02/2012,Current Grants,Children Young People and Families Early Years Extended Schools and Special Needs Group,STOCKTON ON TEES,Public Sector,Current grant for Sure Start payments to local authorities,4000072600,"-17,244.00"
Department for Education,DEPARTMENT FOR EDUCATION,23/02/2012,Current Grants,Children Young People and Families Early Years Extended Schools and Special Needs Group,THE ROYAL BOROUGH OF KENSINGTON & CHELSEA COUNCIL,Public Sector,Current grant for Sure Start payments to local authorities,4000072609,-41
Department for Education,DEPARTMENT FOR EDUCATION,23/02/2012,Current Grants,Children Young People and Families Early Years Extended Schools and Special Needs Group,THURROCK COUNCIL,Public Sector,Current grant for Sure Start payments to local authorities,4000072611,-2
Department for Education,DEPARTMENT FOR EDUCATION,23/02/2012,Current Grants,Children Young People and Families Early Years Extended Schools and Special Needs Group,TORBAY COUNCIL,Public Sector,Current grant for Sure Start payments to local authorities,4000072612,"-2,053.00"
Department for Education,DEPARTMENT FOR EDUCATION,23/02/2012,Current Grants,Children Young People and Families Early Years Extended Schools and Special Needs Group,WALSALL MBC,Public Sector,Current grant for Sure Start payments to local authorities,4000072615,"-11,661.00"
Department for Education,DEPARTMENT FOR EDUCATION,23/02/2012,Current Grants,Children Young People and Families Early Years Extended Schools and Special Needs Group,WARWICKSHIRE COUNTY COUNCIL,Public Sector,Current grant for Sure Start payments to local authorities,4000072617,"-18,118.00"
Department for Education,DEPARTMENT FOR EDUCATION,23/02/2012,Current Grants,Children Young People and Families Early Years Extended Schools and Special Needs Group,WEST SUSSEX COUNTY COUNCIL,Public Sector,Current grant for Sure Start payments to local authorities,4000072619,-724
Department for Education,DEPARTMENT FOR EDUCATION,23/02/2012,Current Grants,Children Young People and Families Early Years Extended Schools and Special Needs Group,WIGAN MBC,Public Sector,Current grant for Sure Start payments to local authorities,4000072620,"-5,880.00"
Department for Education,DEPARTMENT FOR EDUCATION,23/02/2012,Current Grants,Children Young People and Families Early Years Extended Schools and Special Needs Group,WILTSHIRE COUNCIL,Public Sector,Current grant for Sure Start payments to local authorities,4000072621,"-11,017.00"
Department for Education,DEPARTMENT FOR EDUCATION,23/02/2012,Current Grants,Children Young People and Families Early Years Extended Schools and Special Needs Group,WOLVERHAMPTON CITY COUNCIL,Public Sector,Current grant for Sure Start payments to local authorities,4000072623,"-1,287.00"
Department for Education,DEPARTMENT FOR EDUCATION,16/02/2012,Marketing and Media,Children Young People and Families Early Years Extended Schools and Special Needs Group,PROLOG,Commercial,Publications and related services,4000071992,74.46
Department for Education,DEPARTMENT FOR EDUCATION,23/02/2012,Current Grants,Children Young People and Families Directorate,BARNSLEY MBC,Public Sector,Current grant paid to local authorities,4000072479,"2,883,787.00"
Department for Education,DEPARTMENT FOR EDUCATION,23/02/2012,Current Grants,Children Young People and Families Directorate,BATH & NORTH EAST SOMERSET COUNCIL,Public Sector,Current grant paid to local authorities,4000072480,"1,480,066.00"
Department for Education,DEPARTMENT FOR EDUCATION,23/02/2012,Current Grants,Children Young People and Families Directorate,BEDFORD BOROUGH COUNCIL,Public Sector,Current grant paid to local authorities,4000072481,"1,640,002.00"
Department for Education,DEPARTMENT FOR EDUCATION,23/02/2012,Current Grants,Children Young People and Families Directorate,BIRMINGHAM CITY COUNCIL,Public Sector,Current grant paid to local authorities,4000072482,"15,672,344.00"
Department for Education,DEPARTMENT FOR EDUCATION,23/02/2012,Current Grants,Children Young People and Families Directorate,BLACKBURN WITH DARWEN BOROUGH COUNCIL,Public Sector,Current grant paid to local authorities,4000072483,"3,006,280.00"
Department for Education,DEPARTMENT FOR EDUCATION,23/02/2012,Current Grants,Children Young People and Families Directorate,BLACKPOOL BOROUGH COUNCIL,Public Sector,Current grant paid to local authorities,4000072484,"2,211,134.00"
Department for Education,DEPARTMENT FOR EDUCATION,23/02/2012,Current Grants,Children Young People and Families Directorate,BOLTON MBC,Public Sector,Current grant paid to local authorities,4000072485,"3,746,948.00"
Department for Education,DEPARTMENT FOR EDUCATION,23/02/2012,Current Grants,Children Young People and Families Directorate,BOURNEMOUTH BOROUGH COUNCIL,Public Sector,Current grant paid to local authorities,4000072486,"1,724,150.00"
Department for Education,DEPARTMENT FOR EDUCATION,23/02/2012,Current Grants,Children Young People and Families Directorate,BRACKNELL FOREST BOROUGH COUNCIL,Public Sector,Current grant paid to local authorities,4000072487,"1,097,565.00"
Department for Education,DEPARTMENT FOR EDUCATION,23/02/2012,Current Grants,Children Young People and Families Directorate,BRIGHTON & HOVE CITY COUNCIL,Public Sector,Current grant paid to local authorities,4000072488,"2,698,967.00"
Department for Education,DEPARTMENT FOR EDUCATION,23/02/2012,Current Grants,Children Young People and Families Directorate,BRISTOL CITY COUNCIL,Public Sector,Current grant paid to local authorities,4000072489,"4,758,748.00"
Department for Education,DEPARTMENT FOR EDUCATION,23/02/2012,Current Grants,Children Young People and Families Directorate,BUCKINGHAMSHIRE COUNTY COUNCIL,Public Sector,Current grant paid to local authorities,4000072490,"4,067,581.00"
Department for Education,DEPARTMENT FOR EDUCATION,23/02/2012,Current Grants,Children Young People and Families Directorate,BURY MBC,Public Sector,Current grant paid to local authorities,4000072491,"2,028,679.00"
Department for Education,DEPARTMENT FOR EDUCATION,23/02/2012,Current Grants,Children Young People and Families Directorate,CALDERDALE MBC,Public Sector,Current grant paid to local authorities,4000072492,"2,603,023.00"
Department for Education,DEPARTMENT FOR EDUCATION,23/02/2012,Current Grants,Children Young People and Families Directorate,CAMBRIDGESHIRE COUNTY COUNCIL,Public Sector,Current grant paid to local authorities,4000072493,"4,848,856.00"
Department for Education,DEPARTMENT FOR EDUCATION,23/02/2012,Current Grants,Children Young People and Families Directorate,CENTRAL BEDFORDSHIRE COUNCIL,Public Sector,Current grant paid to local authorities,4000072494,"2,265,548.00"
Department for Education,DEPARTMENT FOR EDUCATION,23/02/2012,Current Grants,Children Young People and Families Directorate,CHESHIRE EAST COUNCIL,Public Sector,Current grant paid to local authorities,4000072495,"2,991,177.00"
Department for Education,DEPARTMENT FOR EDUCATION,23/02/2012,Current Grants,Children Young People and Families Directorate,CHESHIRE WEST & CHESTER COUNCIL,Public Sector,Current grant paid to local authorities,4000072496,"3,090,722.00"
Department for Education,DEPARTMENT FOR EDUCATION,23/02/2012,Current Grants,Children Young People and Families Directorate,CITY OF BRADFORD METROPOLITAN DISTRICT COUNCIL,Public Sector,Current grant paid to local authorities,4000072497,"7,441,535.00"
Department for Education,DEPARTMENT FOR EDUCATION,23/02/2012,Current Grants,Children Young People and Families Directorate,CORNWALL COUNCIL,Public Sector,Current grant paid to local authorities,4000072498,"4,916,025.00"
Department for Education,DEPARTMENT FOR EDUCATION,23/02/2012,Current Grants,Children Young People and Families Directorate,CORPORATION OF LONDON,Public Sector,Current grant paid to local authorities,4000072499,"295,030.00"
Department for Education,DEPARTMENT FOR EDUCATION,23/02/2012,Current Grants,Children Young People and Families Directorate,COVENTRY CITY COUNCIL,Public Sector,Current grant paid to local authorities,4000072500,"3,778,671.00"
Department for Education,DEPARTMENT FOR EDUCATION,23/02/2012,Current Grants,Children Young People and Families Directorate,CUMBRIA COUNTY COUNCIL,Public Sector,Current grant paid to local authorities,4000072501,"4,621,739.00"
Department for Education,DEPARTMENT FOR EDUCATION,23/02/2012,Current Grants,Children Young People and Families Directorate,DARLINGTON BOROUGH COUNCIL,Public Sector,Current grant paid to local authorities,4000072502,"1,411,976.00"
Department for Education,DEPARTMENT FOR EDUCATION,23/02/2012,Current Grants,Children Young People and Families Directorate,DERBY CITY COUNCIL,Public Sector,Current grant paid to local authorities,4000072503,"2,971,082.00"
Department for Education,DEPARTMENT FOR EDUCATION,23/02/2012,Current Grants,Children Young People and Families Directorate,DERBYSHIRE COUNTY COUNCIL,Public Sector,Current grant paid to local authorities,4000072504,"6,870,394.00"
Department for Education,DEPARTMENT FOR EDUCATION,23/02/2012,Current Grants,Children Young People and Families Directorate,DEVON COUNTY COUNCIL,Public Sector,Current grant paid to local authorities,4000072505,"5,814,029.00"
Department for Education,DEPARTMENT FOR EDUCATION,23/02/2012,Current Grants,Children Young People and Families Directorate,DONCASTER MBC,Public Sector,Current grant paid to local authorities,4000072506,"3,781,954.00"
Department for Education,DEPARTMENT FOR EDUCATION,23/02/2012,Current Grants,Children Young People and Families Directorate,DORSET COUNTY COUNCIL,Public Sector,Current grant paid to local authorities,4000072507,"2,861,895.00"
Department for Education,DEPARTMENT FOR EDUCATION,23/02/2012,Current Grants,Children Young People and Families Directorate,DUDLEY MBC,Public Sector,Current grant paid to local authorities,4000072508,"3,192,866.00"
Department for Education,DEPARTMENT FOR EDUCATION,23/02/2012,Current Grants,Children Young People and Families Directorate,DURHAM COUNTY COUNCIL,Public Sector,Current grant paid to local authorities,4000072509,"5,983,905.00"
Department for Education,DEPARTMENT FOR EDUCATION,23/02/2012,Current Grants,Children Young People and Families Directorate,EAST RIDING OF YORKSHIRE,Public Sector,Current grant paid to local authorities,4000072510,"2,580,825.00"
Department for Education,DEPARTMENT FOR EDUCATION,23/02/2012,Current Grants,Children Young People and Families Directorate,EAST SUSSEX COUNTY COUNCIL,Public Sector,Current grant paid to local authorities,4000072511,"4,573,076.00"
Department for Education,DEPARTMENT FOR EDUCATION,23/02/2012,Current Grants,Children Young People and Families Directorate,GATESHEAD MBC,Public Sector,Current grant paid to local authorities,4000072512,"2,570,832.00"
Department for Education,DEPARTMENT FOR EDUCATION,23/02/2012,Current Grants,Children Young People and Families Directorate,GLOUCESTERSHIRE COUNTY COUNCIL,Public Sector,Current grant paid to local authorities,4000072513,"4,846,796.00"
Department for Education,DEPARTMENT FOR EDUCATION,23/02/2012,Current Grants,Children Young People and Families Directorate,HALTON BOROUGH COUNCIL,Public Sector,Current grant paid to local authorities,4000072514,"2,246,821.00"
Department for Education,DEPARTMENT FOR EDUCATION,23/02/2012,Current Grants,Children Young People and Families Directorate,HAMPSHIRE COUNTY COUNCIL,Public Sector,Current grant paid to local authorities,4000072515,"9,610,881.00"
Department for Education,DEPARTMENT FOR EDUCATION,23/02/2012,Current Grants,Children Young People and Families Directorate,HARTLEPOOL BOROUGH COUNCIL,Public Sector,Current grant paid to local authorities,4000072516,"1,774,058.00"
Department for Education,DEPARTMENT FOR EDUCATION,23/02/2012,Current Grants,Children Young People and Families Directorate,HEREFORDSHIRE COUNCIL,Public Sector,Current grant paid to local authorities,4000072517,"1,657,521.00"
Department for Education,DEPARTMENT FOR EDUCATION,23/02/2012,Current Grants,Children Young People and Families Directorate,HERTFORDSHIRE,Public Sector,Current grant paid to local authorities,4000072518,"8,442,041.00"
Department for Education,DEPARTMENT FOR EDUCATION,23/02/2012,Current Grants,Children Young People and Families Directorate,ISLE OF WIGHT COUNCIL,Public Sector,Current grant paid to local authorities,4000072519,"1,346,108.00"
Department for Education,DEPARTMENT FOR EDUCATION,23/02/2012,Current Grants,Children Young People and Families Directorate,KENT COUNTY COUNCIL,Public Sector,Current grant paid to local authorities,4000072520,"12,621,437.00"
Department for Education,DEPARTMENT FOR EDUCATION,23/02/2012,Current Grants,Children Young People and Families Directorate,KIRKLEES COUNCIL,Public Sector,Current grant paid to local authorities,4000072521,"5,166,462.00"
Department for Education,DEPARTMENT FOR EDUCATION,23/02/2012,Current Grants,Children Young People and Families Directorate,KNOWSLEY MBC,Public Sector,Current grant paid to local authorities,4000072522,"2,804,760.00"
Department for Education,DEPARTMENT FOR EDUCATION,23/02/2012,Current Grants,Children Young People and Families Directorate,LANCASHIRE COUNTY COUNCIL,Public Sector,Current grant paid to local authorities,4000072523,"11,896,973.00"
Department for Education,DEPARTMENT FOR EDUCATION,23/02/2012,Current Grants,Children Young People and Families Directorate,LEEDS CITY COUNCIL,Public Sector,Current grant paid to local authorities,4000072524,"7,746,829.00"
Department for Education,DEPARTMENT FOR EDUCATION,23/02/2012,Current Grants,Children Young People and Families Directorate,LEICESTER CITY COUNCIL,Public Sector,Current grant paid to local authorities,4000072525,"4,668,233.00"
Department for Education,DEPARTMENT FOR EDUCATION,23/02/2012,Current Grants,Children Young People and Families Directorate,LEICESTERSHIRE COUNTY COUNCIL,Public Sector,Current grant paid to local authorities,4000072526,"4,752,945.00"
Department for Education,DEPARTMENT FOR EDUCATION,23/02/2012,Current Grants,Children Young People and Families Directorate,LINCOLNSHIRE COUNTY COUNCIL,Public Sector,Current grant paid to local authorities,4000072527,"6,111,535.00"
Department for Education,DEPARTMENT FOR EDUCATION,23/02/2012,Current Grants,Children Young People and Families Directorate,LIVERPOOL CITY COUNCIL,Public Sector,Current grant paid to local authorities,4000072528,"6,817,996.00"
Department for Education,DEPARTMENT FOR EDUCATION,23/02/2012,Current Grants,Children Young People and Families Directorate,LONDON BOROUGH OF BARKING & DAGENHAM COUNCIL,Public Sector,Current grant paid to local authorities,4000072529,"3,364,495.00"
Department for Education,DEPARTMENT FOR EDUCATION,23/02/2012,Current Grants,Children Young People and Families Directorate,LONDON BOROUGH OF BARNET COUNCIL,Public Sector,Current grant paid to local authorities,4000072530,"3,329,426.00"
Department for Education,DEPARTMENT FOR EDUCATION,23/02/2012,Current Grants,Children Young People and Families Directorate,LONDON BOROUGH OF BEXLEY COUNCIL,Public Sector,Current grant paid to local authorities,4000072531,"2,247,620.00"
Department for Education,DEPARTMENT FOR EDUCATION,23/02/2012,Current Grants,Children Young People and Families Directorate,LONDON BOROUGH OF BRENT,Public Sector,Current grant paid to local authorities,4000072532,"3,588,811.00"
Department for Education,DEPARTMENT FOR EDUCATION,23/02/2012,Current Grants,Children Young People and Families Directorate,LONDON BOROUGH OF BROMLEY COUNCIL,Public Sector,Current grant paid to local authorities,4000072533,"2,771,935.00"
Department for Education,DEPARTMENT FOR EDUCATION,23/02/2012,Current Grants,Children Young People and Families Directorate,LONDON BOROUGH OF CAMDEN,Public Sector,Current grant paid to local authorities,4000072534,"3,277,695.00"
Department for Education,DEPARTMENT FOR EDUCATION,23/02/2012,Current Grants,Children Young People and Families Directorate,LONDON BOROUGH OF CROYDON COUNCIL,Public Sector,Current grant paid to local authorities,4000072535,"4,000,966.00"
Department for Education,DEPARTMENT FOR EDUCATION,23/02/2012,Current Grants,Children Young People and Families Directorate,LONDON BOROUGH OF EALING COUNCIL,Public Sector,Current grant paid to local authorities,4000072536,"3,912,544.00"
Department for Education,DEPARTMENT FOR EDUCATION,23/02/2012,Current Grants,Children Young People and Families Directorate,LONDON BOROUGH OF ENFIELD COUNCIL,Public Sector,Current grant paid to local authorities,4000072537,"3,660,602.00"
Department for Education,DEPARTMENT FOR EDUCATION,23/02/2012,Current Grants,Children Young People and Families Directorate,LONDON BOROUGH OF GREENWICH,Public Sector,Current grant paid to local authorities,4000072538,"4,198,695.00"
Department for Education,DEPARTMENT FOR EDUCATION,23/02/2012,Current Grants,Children Young People and Families Directorate,LONDON BOROUGH OF HAMMERSMITH & FULHAM COUNCIL,Public Sector,Current grant paid to local authorities,4000072539,"2,390,250.00"
Department for Education,DEPARTMENT FOR EDUCATION,23/02/2012,Current Grants,Children Young People and Families Directorate,LONDON BOROUGH OF HARINGEY,Public Sector,Current grant paid to local authorities,4000072540,"3,987,353.00"
Department for Education,DEPARTMENT FOR EDUCATION,23/02/2012,Current Grants,Children Young People and Families Directorate,LONDON BOROUGH OF HARROW COUNCIL,Public Sector,Current grant paid to local authorities,4000072652,"1,975,700.00"
Department for Education,DEPARTMENT FOR EDUCATION,23/02/2012,Current Grants,Children Young People and Families Directorate,LONDON BOROUGH OF HAVERING COUNCIL,Public Sector,Current grant paid to local authorities,4000072541,"2,081,427.00"
Department for Education,DEPARTMENT FOR EDUCATION,23/02/2012,Current Grants,Children Young People and Families Directorate,LONDON BOROUGH OF HILLINGDON  COUNCIL,Public Sector,Current grant paid to local authorities,4000072542,"2,748,278.00"
Department for Education,DEPARTMENT FOR EDUCATION,23/02/2012,Current Grants,Children Young People and Families Directorate,LONDON BOROUGH OF HOUNSLOW COUNCIL,Public Sector,Current grant paid to local authorities,4000072543,"2,922,584.00"
Department for Education,DEPARTMENT FOR EDUCATION,23/02/2012,Current Grants,Children Young People and Families Directorate,LONDON BOROUGH OF ISLINGTON COUNCIL,Public Sector,Current grant paid to local authorities,4000072544,"3,583,490.00"
Department for Education,DEPARTMENT FOR EDUCATION,23/02/2012,Current Grants,Children Young People and Families Directorate,LONDON BOROUGH OF LAMBETH COUNCIL,Public Sector,Current grant paid to local authorities,4000072545,"4,957,916.00"
Department for Education,DEPARTMENT FOR EDUCATION,23/02/2012,Current Grants,Children Young People and Families Directorate,LONDON BOROUGH OF LEWISHAM,Public Sector,Current grant paid to local authorities,4000072546,"4,525,133.00"
Department for Education,DEPARTMENT FOR EDUCATION,23/02/2012,Current Grants,Children Young People and Families Directorate,LONDON BOROUGH OF MERTON COUNCIL,Public Sector,Current grant paid to local authorities,4000072547,"1,940,400.00"
Department for Education,DEPARTMENT FOR EDUCATION,23/02/2012,Current Grants,Children Young People and Families Directorate,LONDON BOROUGH OF NEWHAM,Public Sector,Current grant paid to local authorities,4000072548,"5,658,050.00"
Department for Education,DEPARTMENT FOR EDUCATION,23/02/2012,Current Grants,Children Young People and Families Directorate,LONDON BOROUGH OF REDBRIDGE,Public Sector,Current grant paid to local authorities,4000072549,"2,529,631.00"
Department for Education,DEPARTMENT FOR EDUCATION,23/02/2012,Current Grants,Children Young People and Families Directorate,LONDON BOROUGH OF RICHMOND UPON THAMES,Public Sector,Current grant paid to local authorities,4000072550,"1,524,562.00"
Department for Education,DEPARTMENT FOR EDUCATION,23/02/2012,Current Grants,Children Young People and Families Directorate,LONDON BOROUGH OF SOUTHWARK COUNCIL,Public Sector,Current grant paid to local authorities,4000072551,"4,930,986.00"
Department for Education,DEPARTMENT FOR EDUCATION,23/02/2012,Current Grants,Children Young People and Families Directorate,LONDON BOROUGH OF SUTTON,Public Sector,Current grant paid to local authorities,4000072552,"2,015,240.00"
Department for Education,DEPARTMENT FOR EDUCATION,23/02/2012,Current Grants,Children Young People and Families Directorate,LONDON BOROUGH OF TOWER HAMLETS COUNCIL,Public Sector,Current grant paid to local authorities,4000072553,"5,151,593.00"
Department for Education,DEPARTMENT FOR EDUCATION,23/02/2012,Current Grants,Children Young People and Families Directorate,LONDON BOROUGH OF WALTHAM FOREST COUNCIL,Public Sector,Current grant paid to local authorities,4000072554,"3,655,231.00"
Department for Education,DEPARTMENT FOR EDUCATION,23/02/2012,Current Grants,Children Young People and Families Directorate,LONDON BOROUGH OF WANDSWORTH COUNCIL,Public Sector,Current grant paid to local authorities,4000072555,"3,258,480.00"
Department for Education,DEPARTMENT FOR EDUCATION,23/02/2012,Current Grants,Children Young People and Families Directorate,LUTON BOROUGH COUNCIL,Public Sector,Current grant paid to local authorities,4000072556,"2,806,970.00"
Department for Education,DEPARTMENT FOR EDUCATION,23/02/2012,Current Grants,Children Young People and Families Directorate,MANCHESTER CITY COUNCIL,Public Sector,Current grant paid to local authorities,4000072557,"7,513,726.00"
Department for Education,DEPARTMENT FOR EDUCATION,23/02/2012,Current Grants,Children Young People and Families Directorate,MEDWAY COUNCIL,Public Sector,Current grant paid to local authorities,4000072558,"2,602,515.00"
Department for Education,DEPARTMENT FOR EDUCATION,23/02/2012,Current Grants,Children Young People and Families Directorate,METROPOLITAN BOROUGH OF WIRRAL,Public Sector,Current grant paid to local authorities,4000072559,"3,816,172.00"
Department for Education,DEPARTMENT FOR EDUCATION,23/02/2012,Current Grants,Children Young People and Families Directorate,MIDDLESBROUGH COUNCIL,Public Sector,Current grant paid to local authorities,4000072560,"2,607,775.00"
Department for Education,DEPARTMENT FOR EDUCATION,23/02/2012,Current Grants,Children Young People and Families Directorate,MILTON KEYNES COUNCIL,Public Sector,Current grant paid to local authorities,4000072561,"2,571,291.00"
Department for Education,DEPARTMENT FOR EDUCATION,23/02/2012,Current Grants,Children Young People and Families Directorate,NEWCASTLE CITY COUNCIL,Public Sector,Current grant paid to local authorities,4000072562,"3,630,954.00"
Department for Education,DEPARTMENT FOR EDUCATION,23/02/2012,Current Grants,Children Young People and Families Directorate,NORFOLK COUNTY COUNCIL,Public Sector,Current grant paid to local authorities,4000072563,"7,448,462.00"
Department for Education,DEPARTMENT FOR EDUCATION,23/02/2012,Current Grants,Children Young People and Families Directorate,NORTH EAST LINCOLNSHIRE COUNCIL,Public Sector,Current grant paid to local authorities,4000072564,"2,397,470.00"
Department for Education,DEPARTMENT FOR EDUCATION,23/02/2012,Current Grants,Children Young People and Families Directorate,NORTH LINCOLNSHIRE COUNCIL,Public Sector,Current grant paid to local authorities,4000072565,"1,826,181.00"
Department for Education,DEPARTMENT FOR EDUCATION,23/02/2012,Current Grants,Children Young People and Families Directorate,NORTH SOMERSET COUNCIL,Public Sector,Current grant paid to local authorities,4000072566,"1,720,081.00"
Department for Education,DEPARTMENT FOR EDUCATION,23/02/2012,Current Grants,Children Young People and Families Directorate,NORTH TYNESIDE,Public Sector,Current grant paid to local authorities,4000072567,"2,206,884.00"
Department for Education,DEPARTMENT FOR EDUCATION,23/02/2012,Current Grants,Children Young People and Families Directorate,NORTH YORKSHIRE COUNTY COUNCIL,Public Sector,Current grant paid to local authorities,4000072568,"4,695,553.00"
Department for Education,DEPARTMENT FOR EDUCATION,23/02/2012,Current Grants,Children Young People and Families Directorate,NORTHAMPTONSHIRE COUNTY COUNCIL,Public Sector,Current grant paid to local authorities,4000072569,"6,555,927.00"
Department for Education,DEPARTMENT FOR EDUCATION,23/02/2012,Current Grants,Children Young People and Families Directorate,NORTHUMBERLAND COUNTY COUNCIL,Public Sector,Current grant paid to local authorities,4000072570,"3,127,335.00"
Department for Education,DEPARTMENT FOR EDUCATION,23/02/2012,Current Grants,Children Young People and Families Directorate,NOTTINGHAM CITY COUNCIL,Public Sector,Current grant paid to local authorities,4000072571,"4,307,556.00"
Department for Education,DEPARTMENT FOR EDUCATION,23/02/2012,Current Grants,Children Young People and Families Directorate,NOTTINGHAMSHIRE COUNTY COUNCIL,Public Sector,Current grant paid to local authorities,4000072572,"7,307,253.00"
Department for Education,DEPARTMENT FOR EDUCATION,23/02/2012,Current Grants,Children Young People and Families Directorate,OLDHAM MBC,Public Sector,Current grant paid to local authorities,4000072573,"3,650,211.00"
Department for Education,DEPARTMENT FOR EDUCATION,23/02/2012,Current Grants,Children Young People and Families Directorate,OXFORDSHIRE COUNTY COUNCIL,Public Sector,Current grant paid to local authorities,4000072574,"5,377,884.00"
Department for Education,DEPARTMENT FOR EDUCATION,23/02/2012,Current Grants,Children Young People and Families Directorate,PETERBOROUGH CITY COUNCIL,Public Sector,Current grant paid to local authorities,4000072575,"2,507,128.00"
Department for Education,DEPARTMENT FOR EDUCATION,23/02/2012,Current Grants,Children Young People and Families Directorate,PLYMOUTH CITY COUNCIL,Public Sector,Current grant paid to local authorities,4000072576,"2,920,404.00"
Department for Education,DEPARTMENT FOR EDUCATION,23/02/2012,Current Grants,Children Young People and Families Directorate,POOLE BOROUGH COUNCIL,Public Sector,Current grant paid to local authorities,4000072577,"1,229,439.00"
Department for Education,DEPARTMENT FOR EDUCATION,23/02/2012,Current Grants,Children Young People and Families Directorate,PORTSMOUTH CITY COUNCIL,Public Sector,Current grant paid to local authorities,4000072578,"2,407,227.00"
Department for Education,DEPARTMENT FOR EDUCATION,23/02/2012,Current Grants,Children Young People and Families Directorate,READING BOROUGH COUNCIL,Public Sector,Current grant paid to local authorities,4000072579,"1,785,002.00"
Department for Education,DEPARTMENT FOR EDUCATION,23/02/2012,Current Grants,Children Young People and Families Directorate,REDCAR & CLEVELAND BOROUGH COUNCIL,Public Sector,Current grant paid to local authorities,4000072580,"2,185,067.00"
Department for Education,DEPARTMENT FOR EDUCATION,23/02/2012,Current Grants,Children Young People and Families Directorate,ROCHDALE MBC,Public Sector,Current grant paid to local authorities,4000072581,"3,275,487.00"
Department for Education,DEPARTMENT FOR EDUCATION,23/02/2012,Current Grants,Children Young People and Families Directorate,ROTHERHAM MBC,Public Sector,Current grant paid to local authorities,4000072582,"3,128,047.00"
Department for Education,DEPARTMENT FOR EDUCATION,23/02/2012,Current Grants,Children Young People and Families Directorate,ROYAL BOROUGH OF KINGSTON UPON THAMES COUNCIL,Public Sector,Current grant paid to local authorities,4000072583,"1,297,216.00"
Department for Education,DEPARTMENT FOR EDUCATION,23/02/2012,Current Grants,Children Young People and Families Directorate,RUTLAND COUNTY COUNCIL,Public Sector,Current grant paid to local authorities,4000072584,"469,753.00"
Department for Education,DEPARTMENT FOR EDUCATION,23/02/2012,Current Grants,Children Young People and Families Directorate,SALFORD CITY COUNCIL,Public Sector,Current grant paid to local authorities,4000072585,"3,310,712.00"
Department for Education,DEPARTMENT FOR EDUCATION,23/02/2012,Current Grants,Children Young People and Families Directorate,SANDWELL MBC,Public Sector,Current grant paid to local authorities,4000072586,"4,563,441.00"
Department for Education,DEPARTMENT FOR EDUCATION,23/02/2012,Current Grants,Children Young People and Families Directorate,SEFTON COUNCIL,Public Sector,Current grant paid to local authorities,4000072587,"2,874,849.00"
Department for Education,DEPARTMENT FOR EDUCATION,23/02/2012,Current Grants,Children Young People and Families Directorate,SHEFFIELD CITY COUNCIL,Public Sector,Current grant paid to local authorities,4000072588,"6,085,350.00"
Department for Education,DEPARTMENT FOR EDUCATION,23/02/2012,Current Grants,Children Young People and Families Directorate,SHROPSHIRE COUNCIL,Public Sector,Current grant paid to local authorities,4000072589,"2,498,284.00"
Department for Education,DEPARTMENT FOR EDUCATION,23/02/2012,Current Grants,Children Young People and Families Directorate,SLOUGH BOROUGH COUNCIL,Public Sector,Current grant paid to local authorities,4000072590,"1,814,945.00"
Department for Education,DEPARTMENT FOR EDUCATION,23/02/2012,Current Grants,Children Young People and Families Directorate,SOLIHULL MBC,Public Sector,Current grant paid to local authorities,4000072591,"2,230,859.00"
Department for Education,DEPARTMENT FOR EDUCATION,23/02/2012,Current Grants,Children Young People and Families Directorate,SOMERSET COUNTY COUNCIL,Public Sector,Current grant paid to local authorities,4000072592,"4,500,333.00"
Department for Education,DEPARTMENT FOR EDUCATION,23/02/2012,Current Grants,Children Young People and Families Directorate,SOUTH GLOUCEST,Public Sector,Current grant paid to local authorities,4000072593,"2,040,125.00"
Department for Education,DEPARTMENT FOR EDUCATION,23/02/2012,Current Grants,Children Young People and Families Directorate,SOUTH TYNESIDE,Public Sector,Current grant paid to local authorities,4000072594,"2,412,472.00"
Department for Education,DEPARTMENT FOR EDUCATION,23/02/2012,Current Grants,Children Young People and Families Directorate,SOUTHAMPTON CITY COUNCIL,Public Sector,Current grant paid to local authorities,4000072595,"2,656,119.00"
Department for Education,DEPARTMENT FOR EDUCATION,23/02/2012,Current Grants,Children Young People and Families Directorate,SOUTHEND ON SEA BOROUGH COUNCIL,Public Sector,Current grant paid to local authorities,4000072596,"1,968,429.00"
Department for Education,DEPARTMENT FOR EDUCATION,23/02/2012,Current Grants,Children Young People and Families Directorate,ST HELENS MBC,Public Sector,Current grant paid to local authorities,4000072597,"2,535,680.00"
Department for Education,DEPARTMENT FOR EDUCATION,23/02/2012,Current Grants,Children Young People and Families Directorate,STAFFORDSHIRE COUNCIL,Public Sector,Current grant paid to local authorities,4000072598,"6,905,640.00"
Department for Education,DEPARTMENT FOR EDUCATION,23/02/2012,Current Grants,Children Young People and Families Directorate,STOCKPORT MBC,Public Sector,Current grant paid to local authorities,4000072599,"2,709,253.00"
Department for Education,DEPARTMENT FOR EDUCATION,23/02/2012,Current Grants,Children Young People and Families Directorate,STOCKTON ON TEES,Public Sector,Current grant paid to local authorities,4000072600,"2,368,701.00"
Department for Education,DEPARTMENT FOR EDUCATION,23/02/2012,Current Grants,Children Young People and Families Directorate,STOKE ON TRENT CITY COUNCIL,Public Sector,Current grant paid to local authorities,4000072601,"3,494,116.00"
Department for Education,DEPARTMENT FOR EDUCATION,23/02/2012,Current Grants,Children Young People and Families Directorate,SUFFOLK COUNTY COUNCIL,Public Sector,Current grant paid to local authorities,4000072602,"5,994,864.00"
Department for Education,DEPARTMENT FOR EDUCATION,23/02/2012,Current Grants,Children Young People and Families Directorate,SUNDERLAND CITY COUNCIL,Public Sector,Current grant paid to local authorities,4000072603,"3,952,944.00"
Department for Education,DEPARTMENT FOR EDUCATION,23/02/2012,Current Grants,Children Young People and Families Directorate,SURREY COUNTY COUNCIL,Public Sector,Current grant paid to local authorities,4000072604,"7,630,161.00"
Department for Education,DEPARTMENT FOR EDUCATION,23/02/2012,Current Grants,Children Young People and Families Directorate,SWINDON BOROUGH COUNCIL,Public Sector,Current grant paid to local authorities,4000072605,"2,033,135.00"
Department for Education,DEPARTMENT FOR EDUCATION,23/02/2012,Current Grants,Children Young People and Families Directorate,TAMESIDE MBC,Public Sector,Current grant paid to local authorities,4000072606,"2,959,113.00"
Department for Education,DEPARTMENT FOR EDUCATION,23/02/2012,Current Grants,Children Young People and Families Directorate,TELFORD & WREKIN COUNCIL,Public Sector,Current grant paid to local authorities,4000072607,"2,024,922.00"
Department for Education,DEPARTMENT FOR EDUCATION,23/02/2012,Current Grants,Children Young People and Families Directorate,THE LONDON BOROUGH OF HACKNEY,Public Sector,Current grant paid to local authorities,4000072608,"5,061,346.00"
Department for Education,DEPARTMENT FOR EDUCATION,23/02/2012,Current Grants,Children Young People and Families Directorate,THE ROYAL BOROUGH OF KENSINGTON & CHELSEA COUNCIL,Public Sector,Current grant paid to local authorities,4000072609,"1,713,735.00"
Department for Education,DEPARTMENT FOR EDUCATION,23/02/2012,Current Grants,Children Young People and Families Directorate,THE ROYAL BOROUGH OF WINDSOR & MAIDENHEAD,Public Sector,Current grant paid to local authorities,4000072610,"1,247,115.00"
Department for Education,DEPARTMENT FOR EDUCATION,23/02/2012,Current Grants,Children Young People and Families Directorate,THURROCK COUNCIL,Public Sector,Current grant paid to local authorities,4000072611,"1,881,067.00"
Department for Education,DEPARTMENT FOR EDUCATION,23/02/2012,Current Grants,Children Young People and Families Directorate,TORBAY COUNCIL,Public Sector,Current grant paid to local authorities,4000072612,"1,540,928.00"
Department for Education,DEPARTMENT FOR EDUCATION,23/02/2012,Current Grants,Children Young People and Families Directorate,TRAFFORD MB COUNCIL,Public Sector,Current grant paid to local authorities,4000072613,"2,200,917.00"
Department for Education,DEPARTMENT FOR EDUCATION,23/02/2012,Current Grants,Children Young People and Families Directorate,WAKEFIELD MDC,Public Sector,Current grant paid to local authorities,4000072614,"3,694,610.00"
Department for Education,DEPARTMENT FOR EDUCATION,23/02/2012,Current Grants,Children Young People and Families Directorate,WALSALL MBC,Public Sector,Current grant paid to local authorities,4000072615,"3,736,922.00"
Department for Education,DEPARTMENT FOR EDUCATION,23/02/2012,Current Grants,Children Young People and Families Directorate,WARRINGTON BOROUGH COUNCIL,Public Sector,Current grant paid to local authorities,4000072616,"2,119,553.00"
Department for Education,DEPARTMENT FOR EDUCATION,23/02/2012,Current Grants,Children Young People and Families Directorate,WARWICKSHIRE COUNTY COUNCIL,Public Sector,Current grant paid to local authorities,4000072617,"4,385,162.00"
Department for Education,DEPARTMENT FOR EDUCATION,23/02/2012,Current Grants,Children Young People and Families Directorate,WEST BERKSHIRE COUNCIL,Public Sector,Current grant paid to local authorities,4000072618,"1,385,587.00"
Department for Education,DEPARTMENT FOR EDUCATION,23/02/2012,Current Grants,Children Young People and Families Directorate,WEST SUSSEX COUNTY COUNCIL,Public Sector,Current grant paid to local authorities,4000072619,"5,769,024.00"
Department for Education,DEPARTMENT FOR EDUCATION,23/02/2012,Current Grants,Children Young People and Families Directorate,WIGAN MBC,Public Sector,Current grant paid to local authorities,4000072620,"3,518,106.00"
Department for Education,DEPARTMENT FOR EDUCATION,23/02/2012,Current Grants,Children Young People and Families Directorate,WILTSHIRE COUNCIL,Public Sector,Current grant paid to local authorities,4000072621,"3,698,244.00"
Department for Education,DEPARTMENT FOR EDUCATION,23/02/2012,Current Grants,Children Young People and Families Directorate,WOKINGHAM BOROUGH COUNCIL,Public Sector,Current grant paid to local authorities,4000072622,"1,232,565.00"
Department for Education,DEPARTMENT FOR EDUCATION,23/02/2012,Current Grants,Children Young People and Families Directorate,WOLVERHAMPTON CITY COUNCIL,Public Sector,Current grant paid to local authorities,4000072623,"3,341,153.00"
Department for Education,DEPARTMENT FOR EDUCATION,23/02/2012,Current Grants,Children Young People and Families Directorate,WORCESTERSHIRE COUNTY COUNCIL,Public Sector,Current grant paid to local authorities,4000072624,"4,776,977.00"
Department for Education,DEPARTMENT FOR EDUCATION,23/02/2012,Current Grants,Children Young People and Families Directorate,YORK CITY COUNCIL,Public Sector,Current grant paid to local authorities,4000072625,"1,626,948.00"
Department for Education,DEPARTMENT FOR EDUCATION,16/02/2012,Marketing and Media,Children Young People and Families Early Years Extended Schools and Special Needs Group,PROLOG,Commercial,Publications and related services,4000071992,"1,149.70"
Department for Education,DEPARTMENT FOR EDUCATION,23/02/2012,Current Grants,Children Young People and Families Early Years Extended Schools and Special Needs Group,BARNSLEY MBC,Public Sector,Current grant paid to local authorities,4000072479,"54,750.00"
Department for Education,DEPARTMENT FOR EDUCATION,23/02/2012,Current Grants,Children Young People and Families Early Years Extended Schools and Special Needs Group,BLACKPOOL BOROUGH COUNCIL,Public Sector,Current grant paid to local authorities,4000072484,"37,000.00"
Department for Education,DEPARTMENT FOR EDUCATION,23/02/2012,Current Grants,Children Young People and Families Early Years Extended Schools and Special Needs Group,BOLTON MBC,Public Sector,Current grant paid to local authorities,4000072485,"66,672.00"
Department for Education,DEPARTMENT FOR EDUCATION,23/02/2012,Current Grants,Children Young People and Families Early Years Extended Schools and Special Needs Group,BUCKINGHAMSHIRE COUNTY COUNCIL,Public Sector,Current grant paid to local authorities,4000072490,"69,750.00"
Department for Education,DEPARTMENT FOR EDUCATION,23/02/2012,Current Grants,Children Young People and Families Early Years Extended Schools and Special Needs Group,CALDERDALE MBC,Public Sector,Current grant paid to local authorities,4000072492,"66,334.00"
Department for Education,DEPARTMENT FOR EDUCATION,23/02/2012,Current Grants,Children Young People and Families Early Years Extended Schools and Special Needs Group,DARLINGTON BOROUGH COUNCIL,Public Sector,Current grant paid to local authorities,4000072502,"52,638.00"
Department for Education,DEPARTMENT FOR EDUCATION,23/02/2012,Current Grants,Children Young People and Families Early Years Extended Schools and Special Needs Group,DEVON COUNTY COUNCIL,Public Sector,Current grant paid to local authorities,4000072505,"38,637.00"
Department for Education,DEPARTMENT FOR EDUCATION,23/02/2012,Current Grants,Children Young People and Families Early Years Extended Schools and Special Needs Group,EAST RIDING OF YORKSHIRE,Public Sector,Current grant paid to local authorities,4000072510,"62,683.00"
Department for Education,DEPARTMENT FOR EDUCATION,23/02/2012,Current Grants,Children Young People and Families Early Years Extended Schools and Special Needs Group,GLOUCESTERSHIRE COUNTY COUNCIL,Public Sector,Current grant paid to local authorities,4000072513,"33,319.00"
Department for Education,DEPARTMENT FOR EDUCATION,23/02/2012,Current Grants,Children Young People and Families Early Years Extended Schools and Special Needs Group,HERTFORDSHIRE,Public Sector,Current grant paid to local authorities,4000072518,"89,513.00"
Department for Education,DEPARTMENT FOR EDUCATION,23/02/2012,Current Grants,Children Young People and Families Early Years Extended Schools and Special Needs Group,KNOWSLEY MBC,Public Sector,Current grant paid to local authorities,4000072522,"60,000.00"
Department for Education,DEPARTMENT FOR EDUCATION,23/02/2012,Current Grants,Children Young People and Families Early Years Extended Schools and Special Needs Group,LIVERPOOL CITY COUNCIL,Public Sector,Current grant paid to local authorities,4000072528,"69,094.00"
Department for Education,DEPARTMENT FOR EDUCATION,23/02/2012,Current Grants,Children Young People and Families Early Years Extended Schools and Special Needs Group,LONDON BOROUGH OF BARKING & DAGENHAM COUNCIL,Public Sector,Current grant paid to local authorities,4000072529,"42,155.00"
Department for Education,DEPARTMENT FOR EDUCATION,23/02/2012,Current Grants,Children Young People and Families Early Years Extended Schools and Special Needs Group,LONDON BOROUGH OF BRENT,Public Sector,Current grant paid to local authorities,4000072532,"80,000.00"
Department for Education,DEPARTMENT FOR EDUCATION,23/02/2012,Current Grants,Children Young People and Families Early Years Extended Schools and Special Needs Group,LONDON BOROUGH OF CROYDON COUNCIL,Public Sector,Current grant paid to local authorities,4000072535,"50,250.00"
Department for Education,DEPARTMENT FOR EDUCATION,23/02/2012,Current Grants,Children Young People and Families Early Years Extended Schools and Special Needs Group,LONDON BOROUGH OF LAMBETH COUNCIL,Public Sector,Current grant paid to local authorities,4000072545,"70,000.00"
Department for Education,DEPARTMENT FOR EDUCATION,23/02/2012,Current Grants,Children Young People and Families Early Years Extended Schools and Special Needs Group,LONDON BOROUGH OF LEWISHAM,Public Sector,Current grant paid to local authorities,4000072546,"30,100.00"
Department for Education,DEPARTMENT FOR EDUCATION,23/02/2012,Current Grants,Children Young People and Families Early Years Extended Schools and Special Needs Group,METROPOLITAN BOROUGH OF WIRRAL,Public Sector,Current grant paid to local authorities,4000072559,"31,300.00"
Department for Education,DEPARTMENT FOR EDUCATION,23/02/2012,Current Grants,Children Young People and Families Early Years Extended Schools and Special Needs Group,OLDHAM MBC,Public Sector,Current grant paid to local authorities,4000072573,"47,500.00"
Department for Education,DEPARTMENT FOR EDUCATION,23/02/2012,Current Grants,Children Young People and Families Early Years Extended Schools and Special Needs Group,OXFORDSHIRE COUNTY COUNCIL,Public Sector,Current grant paid to local authorities,4000072574,"37,500.00"
Department for Education,DEPARTMENT FOR EDUCATION,23/02/2012,Current Grants,Children Young People and Families Early Years Extended Schools and Special Needs Group,PLYMOUTH CITY COUNCIL,Public Sector,Current grant paid to local authorities,4000072576,"40,182.00"
Department for Education,DEPARTMENT FOR EDUCATION,23/02/2012,Current Grants,Children Young People and Families Early Years Extended Schools and Special Needs Group,SHROPSHIRE COUNCIL,Public Sector,Current grant paid to local authorities,4000072589,"44,820.00"
Department for Education,DEPARTMENT FOR EDUCATION,23/02/2012,Current Grants,Children Young People and Families Early Years Extended Schools and Special Needs Group,SOUTHAMPTON CITY COUNCIL,Public Sector,Current grant paid to local authorities,4000072595,"10,568.00"
Department for Education,DEPARTMENT FOR EDUCATION,23/02/2012,Current Grants,Children Young People and Families Early Years Extended Schools and Special Needs Group,SWINDON BOROUGH COUNCIL,Public Sector,Current grant paid to local authorities,4000072605,"54,401.00"
Department for Education,DEPARTMENT FOR EDUCATION,14/02/2012,ICT,Children Young People and Families Safeguarding Group,CAPGEMINI UK PLC,Commercial,Costs related to the provision of computer equipment and components (non capital),4000071753,"102,272.40"
Department for Education,DEPARTMENT FOR EDUCATION,21/02/2012,ICT,Children Young People and Families Safeguarding Group,CAPGEMINI UK PLC,Commercial,Costs related to the provision of computer equipment and components (non capital),4000072351,"105,007.20"
Department for Education,DEPARTMENT FOR EDUCATION,17/02/2012,ICT,Children Young People and Families Improving Information Sharing and Management Group,LOGICA UK LTD,Commercial,Costs related to the provision of IT costs,4000072074,"199,062.19"
Department for Education,DEPARTMENT FOR EDUCATION,16/02/2012,Marketing and Media,Children Young People and Families Early Years Extended Schools and Special Needs Group,PROLOG,Commercial,Publications and related services,4000071992,207
Department for Education,DEPARTMENT FOR EDUCATION,16/02/2012,Marketing and Media,Children Young People and Families Early Years Extended Schools and Special Needs Group,PROLOG,Commercial,Publications and related services,4000071992,8.28
Department for Education,DEPARTMENT FOR EDUCATION,01/02/2012,Current Grants,Children Young People and Families Early Years Extended Schools and Special Needs Group,NATIONAL CHILDMINDING ASSOC,VCS,Current grant to third sector organisation / not for profit organisation,4000071020,"67,000.00"
Department for Education,DEPARTMENT FOR EDUCATION,01/02/2012,Current Grants,Children Young People and Families Early Years Extended Schools and Special Needs Group,PEN GREEN RESEARCH,Commercial,Current grant to third sector organisation / not for profit organisation,4000071025,"30,199.00"
Department for Education,DEPARTMENT FOR EDUCATION,09/02/2012,Current Grants,Children Young People and Families Early Years Extended Schools and Special Needs Group,NCB,VCS,Current grant to third sector organisation / not for profit organisation,4000071519,"151,500.00"
Department for Education,DEPARTMENT FOR EDUCATION,15/02/2012,Current Grants,Families Group,CAFCASS,Public Sector,"Current grant paid to organisations including agencies, arms length bodies and educational establishments",4000071876,"733,616.04"
Department for Education,DEPARTMENT FOR EDUCATION,16/02/2012,Marketing and Media,Families Group,PROLOG,Commercial,Publications and related services,4000071992,291.6
Department for Education,DEPARTMENT FOR EDUCATION,16/02/2012,Marketing and Media,Families Group,PROLOG,Commercial,Publications and related services,4000071992,92.05
Department for Education,DEPARTMENT FOR EDUCATION,22/02/2012,DfE Programme Costs,Families Group,THE FOSTERING NETWORK,VCS,Funding to deliver DfE policies (excluding consultancy) paid to third parties via a service delivery contract,4000072443,"86,306.97"
Department for Education,DEPARTMENT FOR EDUCATION,23/02/2012,Current Grants,Children Young People and Families Early Years Extended Schools and Special Needs Group,BARNSLEY MBC,Public Sector,Current grant for Sure Start payments to local authorities,4000072479,"-9,639.00"
Department for Education,DEPARTMENT FOR EDUCATION,23/02/2012,Current Grants,Children Young People and Families Early Years Extended Schools and Special Needs Group,BATH & NORTH EAST SOMERSET COUNCIL,Public Sector,Current grant for Sure Start payments to local authorities,4000072480,"-79,917.00"
Department for Education,DEPARTMENT FOR EDUCATION,23/02/2012,Current Grants,Children Young People and Families Early Years Extended Schools and Special Needs Group,BEDFORD BOROUGH COUNCIL,Public Sector,Current grant for Sure Start payments to local authorities,4000072481,"-12,703.00"
Department for Education,DEPARTMENT FOR EDUCATION,23/02/2012,Current Grants,Children Young People and Families Early Years Extended Schools and Special Needs Group,BIRMINGHAM CITY COUNCIL,Public Sector,Current grant for Sure Start payments to local authorities,4000072482,"-913,653.00"
Department for Education,DEPARTMENT FOR EDUCATION,23/02/2012,Current Grants,Children Young People and Families Early Years Extended Schools and Special Needs Group,BOLTON MBC,Public Sector,Current grant for Sure Start payments to local authorities,4000072485,"-3,764.00"
Department for Education,DEPARTMENT FOR EDUCATION,23/02/2012,Current Grants,Children Young People and Families Early Years Extended Schools and Special Needs Group,BUCKINGHAMSHIRE COUNTY COUNCIL,Public Sector,Current grant for Sure Start payments to local authorities,4000072490,"-6,713.00"
Department for Education,DEPARTMENT FOR EDUCATION,23/02/2012,Current Grants,Children Young People and Families Early Years Extended Schools and Special Needs Group,CALDERDALE MBC,Public Sector,Current grant for Sure Start payments to local authorities,4000072492,-21
Department for Education,DEPARTMENT FOR EDUCATION,23/02/2012,Current Grants,Children Young People and Families Early Years Extended Schools and Special Needs Group,CAMBRIDGESHIRE COUNTY COUNCIL,Public Sector,Current grant for Sure Start payments to local authorities,4000072493,"-20,066.00"
Department for Education,DEPARTMENT FOR EDUCATION,23/02/2012,Current Grants,Children Young People and Families Early Years Extended Schools and Special Needs Group,CENTRAL BEDFORDSHIRE COUNCIL,Public Sector,Current grant for Sure Start payments to local authorities,4000072494,"-34,471.00"
Department for Education,DEPARTMENT FOR EDUCATION,23/02/2012,Current Grants,Children Young People and Families Early Years Extended Schools and Special Needs Group,CHESHIRE WEST & CHESTER COUNCIL,Public Sector,Current grant for Sure Start payments to local authorities,4000072496,"-66,634.00"
Department for Education,DEPARTMENT FOR EDUCATION,23/02/2012,Current Grants,Children Young People and Families Early Years Extended Schools and Special Needs Group,CITY OF BRADFORD METROPOLITAN DISTRICT COUNCIL,Public Sector,Current grant for Sure Start payments to local authorities,4000072497,"-128,767.00"
Department for Education,DEPARTMENT FOR EDUCATION,23/02/2012,Current Grants,Children Young People and Families Early Years Extended Schools and Special Needs Group,CORNWALL COUNCIL,Public Sector,Current grant for Sure Start payments to local authorities,4000072498,"-34,199.00"
Department for Education,DEPARTMENT FOR EDUCATION,23/02/2012,Current Grants,Children Young People and Families Early Years Extended Schools and Special Needs Group,CORPORATION OF LONDON,Public Sector,Current grant for Sure Start payments to local authorities,4000072499,"-145,954.00"
Department for Education,DEPARTMENT FOR EDUCATION,23/02/2012,Current Grants,Children Young People and Families Early Years Extended Schools and Special Needs Group,COVENTRY CITY COUNCIL,Public Sector,Current grant for Sure Start payments to local authorities,4000072500,"-1,213.00"
Department for Education,DEPARTMENT FOR EDUCATION,23/02/2012,Current Grants,Children Young People and Families Early Years Extended Schools and Special Needs Group,CUMBRIA COUNTY COUNCIL,Public Sector,Current grant for Sure Start payments to local authorities,4000072501,-209
Department for Education,DEPARTMENT FOR EDUCATION,23/02/2012,Current Grants,Children Young People and Families Early Years Extended Schools and Special Needs Group,DARLINGTON BOROUGH COUNCIL,Public Sector,Current grant for Sure Start payments to local authorities,4000072502,"-1,792.00"
Department for Education,DEPARTMENT FOR EDUCATION,23/02/2012,Current Grants,Children Young People and Families Early Years Extended Schools and Special Needs Group,DERBY CITY COUNCIL,Public Sector,Current grant for Sure Start payments to local authorities,4000072503,"-44,738.00"
Department for Education,DEPARTMENT FOR EDUCATION,23/02/2012,Current Grants,Children Young People and Families Early Years Extended Schools and Special Needs Group,DERBYSHIRE COUNTY COUNCIL,Public Sector,Current grant for Sure Start payments to local authorities,4000072504,"-439,854.00"
Department for Education,DEPARTMENT FOR EDUCATION,23/02/2012,Current Grants,Children Young People and Families Early Years Extended Schools and Special Needs Group,DEVON COUNTY COUNCIL,Public Sector,Current grant for Sure Start payments to local authorities,4000072505,"-146,972.00"
Department for Education,DEPARTMENT FOR EDUCATION,23/02/2012,Current Grants,Children Young People and Families Early Years Extended Schools and Special Needs Group,DONCASTER MBC,Public Sector,Current grant for Sure Start payments to local authorities,4000072506,"-35,959.00"
Department for Education,DEPARTMENT FOR EDUCATION,23/02/2012,Current Grants,Children Young People and Families Early Years Extended Schools and Special Needs Group,DUDLEY MBC,Public Sector,Current grant for Sure Start payments to local authorities,4000072508,-267
Department for Education,DEPARTMENT FOR EDUCATION,23/02/2012,Current Grants,Children Young People and Families Early Years Extended Schools and Special Needs Group,DURHAM COUNTY COUNCIL,Public Sector,Current grant for Sure Start payments to local authorities,4000072509,"-145,245.00"
Department for Education,DEPARTMENT FOR EDUCATION,23/02/2012,Current Grants,Children Young People and Families Early Years Extended Schools and Special Needs Group,EAST RIDING OF YORKSHIRE,Public Sector,Current grant for Sure Start payments to local authorities,4000072510,"-32,242.00"
Department for Education,DEPARTMENT FOR EDUCATION,23/02/2012,Current Grants,Children Young People and Families Early Years Extended Schools and Special Needs Group,EAST SUSSEX COUNTY COUNCIL,Public Sector,Current grant for Sure Start payments to local authorities,4000072511,"-82,877.00"
Department for Education,DEPARTMENT FOR EDUCATION,23/02/2012,Current Grants,Children Young People and Families Early Years Extended Schools and Special Needs Group,GLOUCESTERSHIRE COUNTY COUNCIL,Public Sector,Current grant for Sure Start payments to local authorities,4000072513,"-37,166.00"
Department for Education,DEPARTMENT FOR EDUCATION,23/02/2012,Current Grants,Children Young People and Families Early Years Extended Schools and Special Needs Group,HALTON BOROUGH COUNCIL,Public Sector,Current grant for Sure Start payments to local authorities,4000072514,"-4,556.00"
Department for Education,DEPARTMENT FOR EDUCATION,23/02/2012,Current Grants,Children Young People and Families Early Years Extended Schools and Special Needs Group,HAMPSHIRE COUNTY COUNCIL,Public Sector,Current grant for Sure Start payments to local authorities,4000072515,"-83,585.00"
Department for Education,DEPARTMENT FOR EDUCATION,23/02/2012,Current Grants,Children Young People and Families Early Years Extended Schools and Special Needs Group,HARTLEPOOL BOROUGH COUNCIL,Public Sector,Current grant for Sure Start payments to local authorities,4000072516,-966
Department for Education,DEPARTMENT FOR EDUCATION,23/02/2012,Current Grants,Children Young People and Families Early Years Extended Schools and Special Needs Group,HEREFORDSHIRE COUNCIL,Public Sector,Current grant for Sure Start payments to local authorities,4000072517,"-39,222.00"
Department for Education,DEPARTMENT FOR EDUCATION,23/02/2012,Current Grants,Children Young People and Families Early Years Extended Schools and Special Needs Group,ISLE OF WIGHT COUNCIL,Public Sector,Current grant for Sure Start payments to local authorities,4000072519,"-9,289.00"
Department for Education,DEPARTMENT FOR EDUCATION,23/02/2012,Current Grants,Children Young People and Families Early Years Extended Schools and Special Needs Group,KENT COUNTY COUNCIL,Public Sector,Current grant for Sure Start payments to local authorities,4000072520,"-89,956.00"
Department for Education,DEPARTMENT FOR EDUCATION,23/02/2012,Current Grants,Children Young People and Families Early Years Extended Schools and Special Needs Group,KIRKLEES COUNCIL,Public Sector,Current grant for Sure Start payments to local authorities,4000072521,"-54,348.00"
Department for Education,DEPARTMENT FOR EDUCATION,23/02/2012,Current Grants,Children Young People and Families Early Years Extended Schools and Special Needs Group,KNOWSLEY MBC,Public Sector,Current grant for Sure Start payments to local authorities,4000072522,-838
Department for Education,DEPARTMENT FOR EDUCATION,23/02/2012,Current Grants,Children Young People and Families Early Years Extended Schools and Special Needs Group,LEEDS CITY COUNCIL,Public Sector,Current grant for Sure Start payments to local authorities,4000072524,"-104,421.00"
Department for Education,DEPARTMENT FOR EDUCATION,23/02/2012,Current Grants,Children Young People and Families Early Years Extended Schools and Special Needs Group,LEICESTERSHIRE COUNTY COUNCIL,Public Sector,Current grant for Sure Start payments to local authorities,4000072526,"-52,467.00"
Department for Education,DEPARTMENT FOR EDUCATION,23/02/2012,Current Grants,Children Young People and Families Early Years Extended Schools and Special Needs Group,LINCOLNSHIRE COUNTY COUNCIL,Public Sector,Current grant for Sure Start payments to local authorities,4000072527,"-3,588.00"
Department for Education,DEPARTMENT FOR EDUCATION,23/02/2012,Current Grants,Children Young People and Families Early Years Extended Schools and Special Needs Group,LONDON BOROUGH OF BARNET COUNCIL,Public Sector,Current grant for Sure Start payments to local authorities,4000072530,-165
Department for Education,DEPARTMENT FOR EDUCATION,23/02/2012,Current Grants,Children Young People and Families Early Years Extended Schools and Special Needs Group,LONDON BOROUGH OF BEXLEY COUNCIL,Public Sector,Current grant for Sure Start payments to local authorities,4000072531,"-4,354.00"
Department for Education,DEPARTMENT FOR EDUCATION,23/02/2012,Current Grants,Children Young People and Families Early Years Extended Schools and Special Needs Group,LONDON BOROUGH OF BRENT,Public Sector,Current grant for Sure Start payments to local authorities,4000072532,"-119,124.00"
Department for Education,DEPARTMENT FOR EDUCATION,23/02/2012,Current Grants,Children Young People and Families Early Years Extended Schools and Special Needs Group,LONDON BOROUGH OF CAMDEN,Public Sector,Current grant for Sure Start payments to local authorities,4000072534,"-211,333.00"
Department for Education,DEPARTMENT FOR EDUCATION,23/02/2012,Current Grants,Children Young People and Families Early Years Extended Schools and Special Needs Group,LONDON BOROUGH OF CROYDON COUNCIL,Public Sector,Current grant for Sure Start payments to local authorities,4000072535,"-131,052.00"
Department for Education,DEPARTMENT FOR EDUCATION,23/02/2012,Current Grants,Children Young People and Families Early Years Extended Schools and Special Needs Group,LONDON BOROUGH OF EALING COUNCIL,Public Sector,Current grant for Sure Start payments to local authorities,4000072536,"-323,958.00"
Department for Education,DEPARTMENT FOR EDUCATION,23/02/2012,Current Grants,Children Young People and Families Early Years Extended Schools and Special Needs Group,LONDON BOROUGH OF ENFIELD COUNCIL,Public Sector,Current grant for Sure Start payments to local authorities,4000072537,"-90,366.00"
Department for Education,DEPARTMENT FOR EDUCATION,23/02/2012,Current Grants,Children Young People and Families Early Years Extended Schools and Special Needs Group,LONDON BOROUGH OF GREENWICH,Public Sector,Current grant for Sure Start payments to local authorities,4000072538,"-295,612.00"
Department for Education,DEPARTMENT FOR EDUCATION,23/02/2012,Current Grants,Children Young People and Families Early Years Extended Schools and Special Needs Group,LONDON BOROUGH OF HAMMERSMITH & FULHAM COUNCIL,Public Sector,Current grant for Sure Start payments to local authorities,4000072539,"-39,509.00"
Department for Education,DEPARTMENT FOR EDUCATION,23/02/2012,Current Grants,Children Young People and Families Early Years Extended Schools and Special Needs Group,LONDON BOROUGH OF HARINGEY,Public Sector,Current grant for Sure Start payments to local authorities,4000072540,-374
Department for Education,DEPARTMENT FOR EDUCATION,23/02/2012,Current Grants,Children Young People and Families Early Years Extended Schools and Special Needs Group,LONDON BOROUGH OF HARROW COUNCIL,Public Sector,Current grant for Sure Start payments to local authorities,4000072652,"-96,563.00"
Department for Education,DEPARTMENT FOR EDUCATION,23/02/2012,Current Grants,Children Young People and Families Early Years Extended Schools and Special Needs Group,LONDON BOROUGH OF HAVERING COUNCIL,Public Sector,Current grant for Sure Start payments to local authorities,4000072541,"-32,230.00"
Department for Education,DEPARTMENT FOR EDUCATION,23/02/2012,Current Grants,Children Young People and Families Early Years Extended Schools and Special Needs Group,LONDON BOROUGH OF HOUNSLOW COUNCIL,Public Sector,Current grant for Sure Start payments to local authorities,4000072543,-40
Department for Education,DEPARTMENT FOR EDUCATION,23/02/2012,Current Grants,Children Young People and Families Early Years Extended Schools and Special Needs Group,LONDON BOROUGH OF LEWISHAM,Public Sector,Current grant for Sure Start payments to local authorities,4000072546,"-332,126.00"
Department for Education,DEPARTMENT FOR EDUCATION,23/02/2012,Current Grants,Children Young People and Families Early Years Extended Schools and Special Needs Group,LONDON BOROUGH OF NEWHAM,Public Sector,Current grant for Sure Start payments to local authorities,4000072548,"-575,288.00"
Department for Education,DEPARTMENT FOR EDUCATION,23/02/2012,Current Grants,Children Young People and Families Early Years Extended Schools and Special Needs Group,LONDON BOROUGH OF REDBRIDGE,Public Sector,Current grant for Sure Start payments to local authorities,4000072549,"-30,739.00"
Department for Education,DEPARTMENT FOR EDUCATION,23/02/2012,Current Grants,Children Young People and Families Early Years Extended Schools and Special Needs Group,LONDON BOROUGH OF SOUTHWARK COUNCIL,Public Sector,Current grant for Sure Start payments to local authorities,4000072551,"-137,975.00"
Department for Education,DEPARTMENT FOR EDUCATION,23/02/2012,Current Grants,Children Young People and Families Early Years Extended Schools and Special Needs Group,LONDON BOROUGH OF TOWER HAMLETS COUNCIL,Public Sector,Current grant for Sure Start payments to local authorities,4000072553,"-177,203.00"
Department for Education,DEPARTMENT FOR EDUCATION,23/02/2012,Current Grants,Children Young People and Families Early Years Extended Schools and Special Needs Group,LONDON BOROUGH OF WALTHAM FOREST COUNCIL,Public Sector,Current grant for Sure Start payments to local authorities,4000072554,"-23,534.00"
Department for Education,DEPARTMENT FOR EDUCATION,23/02/2012,Current Grants,Children Young People and Families Early Years Extended Schools and Special Needs Group,LUTON BOROUGH COUNCIL,Public Sector,Current grant for Sure Start payments to local authorities,4000072556,-813
Department for Education,DEPARTMENT FOR EDUCATION,23/02/2012,Current Grants,Children Young People and Families Early Years Extended Schools and Special Needs Group,MANCHESTER CITY COUNCIL,Public Sector,Current grant for Sure Start payments to local authorities,4000072557,"-151,933.00"
Department for Education,DEPARTMENT FOR EDUCATION,23/02/2012,Current Grants,Children Young People and Families Early Years Extended Schools and Special Needs Group,MIDDLESBROUGH COUNCIL,Public Sector,Current grant for Sure Start payments to local authorities,4000072560,"-51,269.00"
Department for Education,DEPARTMENT FOR EDUCATION,23/02/2012,Current Grants,Children Young People and Families Early Years Extended Schools and Special Needs Group,MILTON KEYNES COUNCIL,Public Sector,Current grant for Sure Start payments to local authorities,4000072561,"-50,429.00"
Department for Education,DEPARTMENT FOR EDUCATION,23/02/2012,Current Grants,Children Young People and Families Early Years Extended Schools and Special Needs Group,NORTH EAST LINCOLNSHIRE COUNCIL,Public Sector,Current grant for Sure Start payments to local authorities,4000072564,"-55,656.00"
Department for Education,DEPARTMENT FOR EDUCATION,23/02/2012,Current Grants,Children Young People and Families Early Years Extended Schools and Special Needs Group,NORTH SOMERSET COUNCIL,Public Sector,Current grant for Sure Start payments to local authorities,4000072566,"-15,297.00"
Department for Education,DEPARTMENT FOR EDUCATION,23/02/2012,Current Grants,Children Young People and Families Early Years Extended Schools and Special Needs Group,NORTHAMPTONSHIRE COUNTY COUNCIL,Public Sector,Current grant for Sure Start payments to local authorities,4000072569,"-288,193.00"
Department for Education,DEPARTMENT FOR EDUCATION,23/02/2012,Current Grants,Children Young People and Families Early Years Extended Schools and Special Needs Group,NORTHUMBERLAND COUNTY COUNCIL,Public Sector,Current grant for Sure Start payments to local authorities,4000072570,"-12,605.00"
Department for Education,DEPARTMENT FOR EDUCATION,23/02/2012,Current Grants,Children Young People and Families Early Years Extended Schools and Special Needs Group,NOTTINGHAM CITY COUNCIL,Public Sector,Current grant for Sure Start payments to local authorities,4000072571,-189
Department for Education,DEPARTMENT FOR EDUCATION,23/02/2012,Current Grants,Children Young People and Families Early Years Extended Schools and Special Needs Group,NOTTINGHAMSHIRE COUNTY COUNCIL,Public Sector,Current grant for Sure Start payments to local authorities,4000072572,"-47,016.00"
Department for Education,DEPARTMENT FOR EDUCATION,23/02/2012,Current Grants,Children Young People and Families Early Years Extended Schools and Special Needs Group,PORTSMOUTH CITY COUNCIL,Public Sector,Current grant for Sure Start payments to local authorities,4000072578,"-4,000.00"
Department for Education,DEPARTMENT FOR EDUCATION,23/02/2012,Current Grants,Children Young People and Families Early Years Extended Schools and Special Needs Group,ROCHDALE MBC,Public Sector,Current grant for Sure Start payments to local authorities,4000072581,"-73,860.00"
Department for Education,DEPARTMENT FOR EDUCATION,23/02/2012,Current Grants,Children Young People and Families Early Years Extended Schools and Special Needs Group,ROYAL BOROUGH OF KINGSTON UPON THAMES COUNCIL,Public Sector,Current grant for Sure Start payments to local authorities,4000072583,"-38,787.00"
Department for Education,DEPARTMENT FOR EDUCATION,23/02/2012,Current Grants,Children Young People and Families Early Years Extended Schools and Special Needs Group,RUTLAND COUNTY COUNCIL,Public Sector,Current grant for Sure Start payments to local authorities,4000072584,"-133,207.00"
Department for Education,DEPARTMENT FOR EDUCATION,23/02/2012,Current Grants,Children Young People and Families Early Years Extended Schools and Special Needs Group,SALFORD CITY COUNCIL,Public Sector,Current grant for Sure Start payments to local authorities,4000072585,-56
Department for Education,DEPARTMENT FOR EDUCATION,23/02/2012,Current Grants,Children Young People and Families Early Years Extended Schools and Special Needs Group,SANDWELL MBC,Public Sector,Current grant for Sure Start payments to local authorities,4000072586,"-58,384.00"
Department for Education,DEPARTMENT FOR EDUCATION,23/02/2012,Current Grants,Children Young People and Families Early Years Extended Schools and Special Needs Group,SEFTON COUNCIL,Public Sector,Current grant for Sure Start payments to local authorities,4000072587,-8
Department for Education,DEPARTMENT FOR EDUCATION,23/02/2012,Current Grants,Children Young People and Families Early Years Extended Schools and Special Needs Group,SLOUGH BOROUGH COUNCIL,Public Sector,Current grant for Sure Start payments to local authorities,4000072590,"-461,113.00"
Department for Education,DEPARTMENT FOR EDUCATION,23/02/2012,Current Grants,Children Young People and Families Early Years Extended Schools and Special Needs Group,SOLIHULL MBC,Public Sector,Current grant for Sure Start payments to local authorities,4000072591,-275
Department for Education,DEPARTMENT FOR EDUCATION,23/02/2012,Current Grants,Children Young People and Families Early Years Extended Schools and Special Needs Group,SOMERSET COUNTY COUNCIL,Public Sector,Current grant for Sure Start payments to local authorities,4000072592,"-20,670.00"
Department for Education,DEPARTMENT FOR EDUCATION,23/02/2012,Current Grants,Children Young People and Families Early Years Extended Schools and Special Needs Group,SOUTH GLOUCEST,Public Sector,Current grant for Sure Start payments to local authorities,4000072593,-930
Department for Education,DEPARTMENT FOR EDUCATION,23/02/2012,Current Grants,Children Young People and Families Early Years Extended Schools and Special Needs Group,SOUTHAMPTON CITY COUNCIL,Public Sector,Current grant for Sure Start payments to local authorities,4000072595,"-23,995.00"
Department for Education,DEPARTMENT FOR EDUCATION,23/02/2012,Current Grants,Children Young People and Families Early Years Extended Schools and Special Needs Group,SOUTHEND ON SEA BOROUGH COUNCIL,Public Sector,Current grant for Sure Start payments to local authorities,4000072596,"-3,879.00"
Department for Education,DEPARTMENT FOR EDUCATION,23/02/2012,Current Grants,Children Young People and Families Early Years Extended Schools and Special Needs Group,STAFFORDSHIRE COUNCIL,Public Sector,Current grant for Sure Start payments to local authorities,4000072598,"-239,129.00"
Department for Education,DEPARTMENT FOR EDUCATION,23/02/2012,Current Grants,Children Young People and Families Early Years Extended Schools and Special Needs Group,STOCKTON ON TEES,Public Sector,Current grant for Sure Start payments to local authorities,4000072600,"-9,084.00"
Department for Education,DEPARTMENT FOR EDUCATION,23/02/2012,Current Grants,Children Young People and Families Early Years Extended Schools and Special Needs Group,STOKE ON TRENT CITY COUNCIL,Public Sector,Current grant for Sure Start payments to local authorities,4000072601,"-8,787.00"
Department for Education,DEPARTMENT FOR EDUCATION,23/02/2012,Current Grants,Children Young People and Families Early Years Extended Schools and Special Needs Group,SURREY COUNTY COUNCIL,Public Sector,Current grant for Sure Start payments to local authorities,4000072604,"-48,878.00"
Department for Education,DEPARTMENT FOR EDUCATION,23/02/2012,Current Grants,Children Young People and Families Early Years Extended Schools and Special Needs Group,THE LONDON BOROUGH OF HACKNEY,Public Sector,Current grant for Sure Start payments to local authorities,4000072608,"-49,884.00"
Department for Education,DEPARTMENT FOR EDUCATION,23/02/2012,Current Grants,Children Young People and Families Early Years Extended Schools and Special Needs Group,THE ROYAL BOROUGH OF WINDSOR & MAIDENHEAD,Public Sector,Current grant for Sure Start payments to local authorities,4000072610,"-33,917.00"
Department for Education,DEPARTMENT FOR EDUCATION,23/02/2012,Current Grants,Children Young People and Families Early Years Extended Schools and Special Needs Group,TORBAY COUNCIL,Public Sector,Current grant for Sure Start payments to local authorities,4000072612,-450
Department for Education,DEPARTMENT FOR EDUCATION,23/02/2012,Current Grants,Children Young People and Families Early Years Extended Schools and Special Needs Group,WAKEFIELD MDC,Public Sector,Current grant for Sure Start payments to local authorities,4000072614,"-16,564.00"
Department for Education,DEPARTMENT FOR EDUCATION,23/02/2012,Current Grants,Children Young People and Families Early Years Extended Schools and Special Needs Group,WALSALL MBC,Public Sector,Current grant for Sure Start payments to local authorities,4000072615,-3
Department for Education,DEPARTMENT FOR EDUCATION,23/02/2012,Current Grants,Children Young People and Families Early Years Extended Schools and Special Needs Group,WARWICKSHIRE COUNTY COUNCIL,Public Sector,Current grant for Sure Start payments to local authorities,4000072617,"-9,886.00"
Department for Education,DEPARTMENT FOR EDUCATION,23/02/2012,Current Grants,Children Young People and Families Early Years Extended Schools and Special Needs Group,WIGAN MBC,Public Sector,Current grant for Sure Start payments to local authorities,4000072620,"-5,168.00"
Department for Education,DEPARTMENT FOR EDUCATION,23/02/2012,Current Grants,Children Young People and Families Early Years Extended Schools and Special Needs Group,WOKINGHAM BOROUGH COUNCIL,Public Sector,Current grant for Sure Start payments to local authorities,4000072622,"-14,665.00"
Department for Education,DEPARTMENT FOR EDUCATION,23/02/2012,Current Grants,Children Young People and Families Early Years Extended Schools and Special Needs Group,WOLVERHAMPTON CITY COUNCIL,Public Sector,Current grant for Sure Start payments to local authorities,4000072623,-980
Department for Education,DEPARTMENT FOR EDUCATION,23/02/2012,Current Grants,Children Young People and Families Early Years Extended Schools and Special Needs Group,BARNSLEY MBC,Public Sector,Current grant for Sure Start payments to local authorities,4000072479,"-57,356.00"
Department for Education,DEPARTMENT FOR EDUCATION,23/02/2012,Current Grants,Children Young People and Families Early Years Extended Schools and Special Needs Group,BEDFORD BOROUGH COUNCIL,Public Sector,Current grant for Sure Start payments to local authorities,4000072481,"-173,421.00"
Department for Education,DEPARTMENT FOR EDUCATION,23/02/2012,Current Grants,Children Young People and Families Early Years Extended Schools and Special Needs Group,BIRMINGHAM CITY COUNCIL,Public Sector,Current grant for Sure Start payments to local authorities,4000072482,"-2,101.00"
Department for Education,DEPARTMENT FOR EDUCATION,23/02/2012,Current Grants,Children Young People and Families Early Years Extended Schools and Special Needs Group,BLACKPOOL BOROUGH COUNCIL,Public Sector,Current grant for Sure Start payments to local authorities,4000072484,"-67,693.00"
Department for Education,DEPARTMENT FOR EDUCATION,23/02/2012,Current Grants,Children Young People and Families Early Years Extended Schools and Special Needs Group,BOLTON MBC,Public Sector,Current grant for Sure Start payments to local authorities,4000072485,-410
Department for Education,DEPARTMENT FOR EDUCATION,23/02/2012,Current Grants,Children Young People and Families Early Years Extended Schools and Special Needs Group,BRACKNELL FOREST BOROUGH COUNCIL,Public Sector,Current grant for Sure Start payments to local authorities,4000072487,-1
Department for Education,DEPARTMENT FOR EDUCATION,23/02/2012,Current Grants,Children Young People and Families Early Years Extended Schools and Special Needs Group,BRISTOL CITY COUNCIL,Public Sector,Current grant for Sure Start payments to local authorities,4000072489,-1
Department for Education,DEPARTMENT FOR EDUCATION,23/02/2012,Current Grants,Children Young People and Families Early Years Extended Schools and Special Needs Group,BUCKINGHAMSHIRE COUNTY COUNCIL,Public Sector,Current grant for Sure Start payments to local authorities,4000072490,-237
Department for Education,DEPARTMENT FOR EDUCATION,23/02/2012,Current Grants,Children Young People and Families Early Years Extended Schools and Special Needs Group,CENTRAL BEDFORDSHIRE COUNCIL,Public Sector,Current grant for Sure Start payments to local authorities,4000072494,"-311,266.00"
Department for Education,DEPARTMENT FOR EDUCATION,23/02/2012,Current Grants,Children Young People and Families Early Years Extended Schools and Special Needs Group,CITY OF BRADFORD METROPOLITAN DISTRICT COUNCIL,Public Sector,Current grant for Sure Start payments to local authorities,4000072497,"-1,074,544.00"
Department for Education,DEPARTMENT FOR EDUCATION,23/02/2012,Current Grants,Children Young People and Families Early Years Extended Schools and Special Needs Group,CORNWALL COUNCIL,Public Sector,Current grant for Sure Start payments to local authorities,4000072498,"-118,195.00"
Department for Education,DEPARTMENT FOR EDUCATION,23/02/2012,Current Grants,Children Young People and Families Early Years Extended Schools and Special Needs Group,CORPORATION OF LONDON,Public Sector,Current grant for Sure Start payments to local authorities,4000072499,"-12,862.00"
Department for Education,DEPARTMENT FOR EDUCATION,23/02/2012,Current Grants,Children Young People and Families Early Years Extended Schools and Special Needs Group,CUMBRIA COUNTY COUNCIL,Public Sector,Current grant for Sure Start payments to local authorities,4000072501,"-361,678.00"
Department for Education,DEPARTMENT FOR EDUCATION,23/02/2012,Current Grants,Children Young People and Families Early Years Extended Schools and Special Needs Group,DARLINGTON BOROUGH COUNCIL,Public Sector,Current grant for Sure Start payments to local authorities,4000072502,"-79,237.00"
Department for Education,DEPARTMENT FOR EDUCATION,23/02/2012,Current Grants,Children Young People and Families Early Years Extended Schools and Special Needs Group,DERBY CITY COUNCIL,Public Sector,Current grant for Sure Start payments to local authorities,4000072503,"-405,007.00"
Department for Education,DEPARTMENT FOR EDUCATION,23/02/2012,Current Grants,Children Young People and Families Early Years Extended Schools and Special Needs Group,DEVON COUNTY COUNCIL,Public Sector,Current grant for Sure Start payments to local authorities,4000072505,"-202,907.00"
Department for Education,DEPARTMENT FOR EDUCATION,23/02/2012,Current Grants,Children Young People and Families Early Years Extended Schools and Special Needs Group,DONCASTER MBC,Public Sector,Current grant for Sure Start payments to local authorities,4000072506,"-454,136.00"
Department for Education,DEPARTMENT FOR EDUCATION,23/02/2012,Current Grants,Children Young People and Families Early Years Extended Schools and Special Needs Group,DURHAM COUNTY COUNCIL,Public Sector,Current grant for Sure Start payments to local authorities,4000072509,"-24,397.00"
Department for Education,DEPARTMENT FOR EDUCATION,23/02/2012,Current Grants,Children Young People and Families Early Years Extended Schools and Special Needs Group,GATESHEAD MBC,Public Sector,Current grant for Sure Start payments to local authorities,4000072512,"-4,253.00"
Department for Education,DEPARTMENT FOR EDUCATION,23/02/2012,Current Grants,Children Young People and Families Early Years Extended Schools and Special Needs Group,HAMPSHIRE COUNTY COUNCIL,Public Sector,Current grant for Sure Start payments to local authorities,4000072515,"-50,050.00"
Department for Education,DEPARTMENT FOR EDUCATION,23/02/2012,Current Grants,Children Young People and Families Early Years Extended Schools and Special Needs Group,HEREFORDSHIRE COUNCIL,Public Sector,Current grant for Sure Start payments to local authorities,4000072517,"-13,200.00"
Department for Education,DEPARTMENT FOR EDUCATION,23/02/2012,Current Grants,Children Young People and Families Early Years Extended Schools and Special Needs Group,ISLE OF WIGHT COUNCIL,Public Sector,Current grant for Sure Start payments to local authorities,4000072519,"-3,221.00"
Department for Education,DEPARTMENT FOR EDUCATION,23/02/2012,Current Grants,Children Young People and Families Early Years Extended Schools and Special Needs Group,KENT COUNTY COUNCIL,Public Sector,Current grant for Sure Start payments to local authorities,4000072520,-473
Department for Education,DEPARTMENT FOR EDUCATION,23/02/2012,Current Grants,Children Young People and Families Early Years Extended Schools and Special Needs Group,KIRKLEES COUNCIL,Public Sector,Current grant for Sure Start payments to local authorities,4000072521,"-32,037.00"
Department for Education,DEPARTMENT FOR EDUCATION,23/02/2012,Current Grants,Children Young People and Families Early Years Extended Schools and Special Needs Group,LINCOLNSHIRE COUNTY COUNCIL,Public Sector,Current grant for Sure Start payments to local authorities,4000072527,"-1,446.00"
Department for Education,DEPARTMENT FOR EDUCATION,23/02/2012,Current Grants,Children Young People and Families Early Years Extended Schools and Special Needs Group,LIVERPOOL CITY COUNCIL,Public Sector,Current grant for Sure Start payments to local authorities,4000072528,"-2,085.00"
Department for Education,DEPARTMENT FOR EDUCATION,23/02/2012,Current Grants,Children Young People and Families Early Years Extended Schools and Special Needs Group,LONDON BOROUGH OF BARKING & DAGENHAM COUNCIL,Public Sector,Current grant for Sure Start payments to local authorities,4000072529,-200
Department for Education,DEPARTMENT FOR EDUCATION,23/02/2012,Current Grants,Children Young People and Families Early Years Extended Schools and Special Needs Group,LONDON BOROUGH OF BEXLEY COUNCIL,Public Sector,Current grant for Sure Start payments to local authorities,4000072531,"-14,447.00"
Department for Education,DEPARTMENT FOR EDUCATION,23/02/2012,Current Grants,Children Young People and Families Early Years Extended Schools and Special Needs Group,LONDON BOROUGH OF CAMDEN,Public Sector,Current grant for Sure Start payments to local authorities,4000072534,"-1,005,509.00"
Department for Education,DEPARTMENT FOR EDUCATION,23/02/2012,Current Grants,Children Young People and Families Early Years Extended Schools and Special Needs Group,LONDON BOROUGH OF ENFIELD COUNCIL,Public Sector,Current grant for Sure Start payments to local authorities,4000072537,-9
Department for Education,DEPARTMENT FOR EDUCATION,23/02/2012,Current Grants,Children Young People and Families Early Years Extended Schools and Special Needs Group,LONDON BOROUGH OF GREENWICH,Public Sector,Current grant for Sure Start payments to local authorities,4000072538,"-9,519.00"
Department for Education,DEPARTMENT FOR EDUCATION,23/02/2012,Current Grants,Children Young People and Families Early Years Extended Schools and Special Needs Group,LONDON BOROUGH OF HAMMERSMITH & FULHAM COUNCIL,Public Sector,Current grant for Sure Start payments to local authorities,4000072539,"-242,272.00"
Department for Education,DEPARTMENT FOR EDUCATION,23/02/2012,Current Grants,Children Young People and Families Early Years Extended Schools and Special Needs Group,LONDON BOROUGH OF HARINGEY,Public Sector,Current grant for Sure Start payments to local authorities,4000072540,"-40,152.00"
Department for Education,DEPARTMENT FOR EDUCATION,23/02/2012,Current Grants,Children Young People and Families Early Years Extended Schools and Special Needs Group,LONDON BOROUGH OF HAVERING COUNCIL,Public Sector,Current grant for Sure Start payments to local authorities,4000072541,"-97,954.00"
Department for Education,DEPARTMENT FOR EDUCATION,23/02/2012,Current Grants,Children Young People and Families Early Years Extended Schools and Special Needs Group,LONDON BOROUGH OF HILLINGDON  COUNCIL,Public Sector,Current grant for Sure Start payments to local authorities,4000072542,-1
Department for Education,DEPARTMENT FOR EDUCATION,23/02/2012,Current Grants,Children Young People and Families Early Years Extended Schools and Special Needs Group,LONDON BOROUGH OF HOUNSLOW COUNCIL,Public Sector,Current grant for Sure Start payments to local authorities,4000072543,"-6,000.00"
Department for Education,DEPARTMENT FOR EDUCATION,23/02/2012,Current Grants,Children Young People and Families Early Years Extended Schools and Special Needs Group,LONDON BOROUGH OF ISLINGTON COUNCIL,Public Sector,Current grant for Sure Start payments to local authorities,4000072544,-1
Department for Education,DEPARTMENT FOR EDUCATION,23/02/2012,Current Grants,Children Young People and Families Early Years Extended Schools and Special Needs Group,LONDON BOROUGH OF LEWISHAM,Public Sector,Current grant for Sure Start payments to local authorities,4000072546,"-686,035.00"
Department for Education,DEPARTMENT FOR EDUCATION,23/02/2012,Current Grants,Children Young People and Families Early Years Extended Schools and Special Needs Group,LONDON BOROUGH OF NEWHAM,Public Sector,Current grant for Sure Start payments to local authorities,4000072548,"-183,601.00"
Department for Education,DEPARTMENT FOR EDUCATION,23/02/2012,Current Grants,Children Young People and Families Early Years Extended Schools and Special Needs Group,LONDON BOROUGH OF RICHMOND UPON THAMES,Public Sector,Current grant for Sure Start payments to local authorities,4000072550,"-34,856.00"
Department for Education,DEPARTMENT FOR EDUCATION,23/02/2012,Current Grants,Children Young People and Families Early Years Extended Schools and Special Needs Group,LONDON BOROUGH OF SUTTON,Public Sector,Current grant for Sure Start payments to local authorities,4000072552,-1
Department for Education,DEPARTMENT FOR EDUCATION,23/02/2012,Current Grants,Children Young People and Families Early Years Extended Schools and Special Needs Group,LONDON BOROUGH OF WALTHAM FOREST COUNCIL,Public Sector,Current grant for Sure Start payments to local authorities,4000072554,"-14,007.00"
Department for Education,DEPARTMENT FOR EDUCATION,23/02/2012,Current Grants,Children Young People and Families Early Years Extended Schools and Special Needs Group,LONDON BOROUGH OF WANDSWORTH COUNCIL,Public Sector,Current grant for Sure Start payments to local authorities,4000072555,"-5,706.00"
Department for Education,DEPARTMENT FOR EDUCATION,23/02/2012,Current Grants,Children Young People and Families Early Years Extended Schools and Special Needs Group,LUTON BOROUGH COUNCIL,Public Sector,Current grant for Sure Start payments to local authorities,4000072556,"-19,759.00"
Department for Education,DEPARTMENT FOR EDUCATION,23/02/2012,Current Grants,Children Young People and Families Early Years Extended Schools and Special Needs Group,MANCHESTER CITY COUNCIL,Public Sector,Current grant for Sure Start payments to local authorities,4000072557,"-2,123,716.00"
Department for Education,DEPARTMENT FOR EDUCATION,23/02/2012,Current Grants,Children Young People and Families Early Years Extended Schools and Special Needs Group,METROPOLITAN BOROUGH OF WIRRAL,Public Sector,Current grant for Sure Start payments to local authorities,4000072559,"-13,484.00"
Department for Education,DEPARTMENT FOR EDUCATION,23/02/2012,Current Grants,Children Young People and Families Early Years Extended Schools and Special Needs Group,NEWCASTLE CITY COUNCIL,Public Sector,Current grant for Sure Start payments to local authorities,4000072562,"-40,775.00"
Department for Education,DEPARTMENT FOR EDUCATION,23/02/2012,Current Grants,Children Young People and Families Early Years Extended Schools and Special Needs Group,NORTH LINCOLNSHIRE COUNCIL,Public Sector,Current grant for Sure Start payments to local authorities,4000072565,"-247,188.00"
Department for Education,DEPARTMENT FOR EDUCATION,23/02/2012,Current Grants,Children Young People and Families Early Years Extended Schools and Special Needs Group,NORTH SOMERSET COUNCIL,Public Sector,Current grant for Sure Start payments to local authorities,4000072566,"-55,930.00"
Department for Education,DEPARTMENT FOR EDUCATION,23/02/2012,Current Grants,Children Young People and Families Early Years Extended Schools and Special Needs Group,NORTHAMPTONSHIRE COUNTY COUNCIL,Public Sector,Current grant for Sure Start payments to local authorities,4000072569,"-215,284.00"
Department for Education,DEPARTMENT FOR EDUCATION,23/02/2012,Current Grants,Children Young People and Families Early Years Extended Schools and Special Needs Group,NOTTINGHAM CITY COUNCIL,Public Sector,Current grant for Sure Start payments to local authorities,4000072571,"-85,564.00"
Department for Education,DEPARTMENT FOR EDUCATION,23/02/2012,Current Grants,Children Young People and Families Early Years Extended Schools and Special Needs Group,NOTTINGHAMSHIRE COUNTY COUNCIL,Public Sector,Current grant for Sure Start payments to local authorities,4000072572,"-5,190.00"
Department for Education,DEPARTMENT FOR EDUCATION,23/02/2012,Current Grants,Children Young People and Families Early Years Extended Schools and Special Needs Group,POOLE BOROUGH COUNCIL,Public Sector,Current grant for Sure Start payments to local authorities,4000072577,"-97,376.00"
Department for Education,DEPARTMENT FOR EDUCATION,23/02/2012,Current Grants,Children Young People and Families Early Years Extended Schools and Special Needs Group,PORTSMOUTH CITY COUNCIL,Public Sector,Current grant for Sure Start payments to local authorities,4000072578,"-30,828.00"
Department for Education,DEPARTMENT FOR EDUCATION,23/02/2012,Current Grants,Children Young People and Families Early Years Extended Schools and Special Needs Group,RUTLAND COUNTY COUNCIL,Public Sector,Current grant for Sure Start payments to local authorities,4000072584,-60
Department for Education,DEPARTMENT FOR EDUCATION,23/02/2012,Current Grants,Children Young People and Families Early Years Extended Schools and Special Needs Group,SALFORD CITY COUNCIL,Public Sector,Current grant for Sure Start payments to local authorities,4000072585,-418
Department for Education,DEPARTMENT FOR EDUCATION,23/02/2012,Current Grants,Children Young People and Families Early Years Extended Schools and Special Needs Group,SANDWELL MBC,Public Sector,Current grant for Sure Start payments to local authorities,4000072586,"-144,759.00"
Department for Education,DEPARTMENT FOR EDUCATION,23/02/2012,Current Grants,Children Young People and Families Early Years Extended Schools and Special Needs Group,SEFTON COUNCIL,Public Sector,Current grant for Sure Start payments to local authorities,4000072587,"-422,177.00"
Department for Education,DEPARTMENT FOR EDUCATION,23/02/2012,Current Grants,Children Young People and Families Early Years Extended Schools and Special Needs Group,SHEFFIELD CITY COUNCIL,Public Sector,Current grant for Sure Start payments to local authorities,4000072588,-475
Department for Education,DEPARTMENT FOR EDUCATION,23/02/2012,Current Grants,Children Young People and Families Early Years Extended Schools and Special Needs Group,SLOUGH BOROUGH COUNCIL,Public Sector,Current grant for Sure Start payments to local authorities,4000072590,"-730,562.00"
Department for Education,DEPARTMENT FOR EDUCATION,23/02/2012,Current Grants,Children Young People and Families Early Years Extended Schools and Special Needs Group,SOLIHULL MBC,Public Sector,Current grant for Sure Start payments to local authorities,4000072591,"-7,971.00"
Department for Education,DEPARTMENT FOR EDUCATION,23/02/2012,Current Grants,Children Young People and Families Early Years Extended Schools and Special Needs Group,SOMERSET COUNTY COUNCIL,Public Sector,Current grant for Sure Start payments to local authorities,4000072592,"-2,273.00"
Department for Education,DEPARTMENT FOR EDUCATION,23/02/2012,Current Grants,Children Young People and Families Early Years Extended Schools and Special Needs Group,SOUTH GLOUCEST,Public Sector,Current grant for Sure Start payments to local authorities,4000072593,"-26,982.00"
Department for Education,DEPARTMENT FOR EDUCATION,23/02/2012,Current Grants,Children Young People and Families Early Years Extended Schools and Special Needs Group,SOUTHAMPTON CITY COUNCIL,Public Sector,Current grant for Sure Start payments to local authorities,4000072595,"-224,530.00"
Department for Education,DEPARTMENT FOR EDUCATION,23/02/2012,Current Grants,Children Young People and Families Early Years Extended Schools and Special Needs Group,STAFFORDSHIRE COUNCIL,Public Sector,Current grant for Sure Start payments to local authorities,4000072598,"-115,185.00"
Department for Education,DEPARTMENT FOR EDUCATION,23/02/2012,Current Grants,Children Young People and Families Early Years Extended Schools and Special Needs Group,STOCKPORT MBC,Public Sector,Current grant for Sure Start payments to local authorities,4000072599,"-8,664.00"
Department for Education,DEPARTMENT FOR EDUCATION,23/02/2012,Current Grants,Children Young People and Families Early Years Extended Schools and Special Needs Group,STOKE ON TRENT CITY COUNCIL,Public Sector,Current grant for Sure Start payments to local authorities,4000072601,"-4,444.00"
Department for Education,DEPARTMENT FOR EDUCATION,23/02/2012,Current Grants,Children Young People and Families Early Years Extended Schools and Special Needs Group,SURREY COUNTY COUNCIL,Public Sector,Current grant for Sure Start payments to local authorities,4000072604,"-765,374.00"
Department for Education,DEPARTMENT FOR EDUCATION,23/02/2012,Current Grants,Children Young People and Families Early Years Extended Schools and Special Needs Group,TELFORD & WREKIN COUNCIL,Public Sector,Current grant for Sure Start payments to local authorities,4000072607,-6
Department for Education,DEPARTMENT FOR EDUCATION,23/02/2012,Current Grants,Children Young People and Families Early Years Extended Schools and Special Needs Group,THE LONDON BOROUGH OF HACKNEY,Public Sector,Current grant for Sure Start payments to local authorities,4000072608,"-36,365.00"
Department for Education,DEPARTMENT FOR EDUCATION,23/02/2012,Current Grants,Children Young People and Families Early Years Extended Schools and Special Needs Group,THE ROYAL BOROUGH OF KENSINGTON & CHELSEA COUNCIL,Public Sector,Current grant for Sure Start payments to local authorities,4000072609,"-97,711.00"
Department for Education,DEPARTMENT FOR EDUCATION,23/02/2012,Current Grants,Children Young People and Families Early Years Extended Schools and Special Needs Group,TORBAY COUNCIL,Public Sector,Current grant for Sure Start payments to local authorities,4000072612,-468
Department for Education,DEPARTMENT FOR EDUCATION,23/02/2012,Current Grants,Children Young People and Families Early Years Extended Schools and Special Needs Group,WARWICKSHIRE COUNTY COUNCIL,Public Sector,Current grant for Sure Start payments to local authorities,4000072617,"-56,434.00"
Department for Education,DEPARTMENT FOR EDUCATION,23/02/2012,Current Grants,Children Young People and Families Early Years Extended Schools and Special Needs Group,WIGAN MBC,Public Sector,Current grant for Sure Start payments to local authorities,4000072620,"-3,906.00"
Department for Education,DEPARTMENT FOR EDUCATION,23/02/2012,Current Grants,Children Young People and Families Early Years Extended Schools and Special Needs Group,WOLVERHAMPTON CITY COUNCIL,Public Sector,Current grant for Sure Start payments to local authorities,4000072623,"-88,071.00"
Department for Education,DEPARTMENT FOR EDUCATION,23/02/2012,Current Grants,Children Young People and Families Early Years Extended Schools and Special Needs Group,ISLE OF WIGHT COUNCIL,Public Sector,Current grant for Sure Start payments to local authorities,4000072519,-19
Department for Education,DEPARTMENT FOR EDUCATION,23/02/2012,Current Grants,Children Young People and Families Early Years Extended Schools and Special Needs Group,STAFFORDSHIRE COUNCIL,Public Sector,Current grant for Sure Start payments to local authorities,4000072598,-265
Department for Education,DEPARTMENT FOR EDUCATION,02/02/2012,Capital Grants,Children Young People and Families Early Years Extended Schools and Special Needs Group,OXFORDSHIRE COUNTY COUNCIL,Public Sector,Capital grants paid to Local Authorities,4000071092,"909,635.00"
Department for Education,DEPARTMENT FOR EDUCATION,23/02/2012,Capital Grants,Children Young People and Families Early Years Extended Schools and Special Needs Group,BARNSLEY MBC,Public Sector,Capital grants paid to Local Authorities,4000072479,-69
Department for Education,DEPARTMENT FOR EDUCATION,23/02/2012,Capital Grants,Children Young People and Families Early Years Extended Schools and Special Needs Group,BIRMINGHAM CITY COUNCIL,Public Sector,Capital grants paid to Local Authorities,4000072482,"-270,299.00"
Department for Education,DEPARTMENT FOR EDUCATION,23/02/2012,Capital Grants,Children Young People and Families Early Years Extended Schools and Special Needs Group,BLACKPOOL BOROUGH COUNCIL,Public Sector,Capital grants paid to Local Authorities,4000072484,-411
Department for Education,DEPARTMENT FOR EDUCATION,23/02/2012,Capital Grants,Children Young People and Families Early Years Extended Schools and Special Needs Group,BOURNEMOUTH BOROUGH COUNCIL,Public Sector,Capital grants paid to Local Authorities,4000072486,"-6,646.00"
Department for Education,DEPARTMENT FOR EDUCATION,23/02/2012,Capital Grants,Children Young People and Families Early Years Extended Schools and Special Needs Group,BRACKNELL FOREST BOROUGH COUNCIL,Public Sector,Capital grants paid to Local Authorities,4000072487,-12
Department for Education,DEPARTMENT FOR EDUCATION,23/02/2012,Capital Grants,Children Young People and Families Early Years Extended Schools and Special Needs Group,BRISTOL CITY COUNCIL,Public Sector,Capital grants paid to Local Authorities,4000072489,"1,067,654.00"
Department for Education,DEPARTMENT FOR EDUCATION,23/02/2012,Capital Grants,Children Young People and Families Early Years Extended Schools and Special Needs Group,BUCKINGHAMSHIRE COUNTY COUNCIL,Public Sector,Capital grants paid to Local Authorities,4000072490,"2,463.00"
Department for Education,DEPARTMENT FOR EDUCATION,23/02/2012,Capital Grants,Children Young People and Families Early Years Extended Schools and Special Needs Group,CENTRAL BEDFORDSHIRE COUNCIL,Public Sector,Capital grants paid to Local Authorities,4000072494,"-25,842.00"
Department for Education,DEPARTMENT FOR EDUCATION,23/02/2012,Capital Grants,Children Young People and Families Early Years Extended Schools and Special Needs Group,CORPORATION OF LONDON,Public Sector,Capital grants paid to Local Authorities,4000072499,"65,589.00"
Department for Education,DEPARTMENT FOR EDUCATION,23/02/2012,Capital Grants,Children Young People and Families Early Years Extended Schools and Special Needs Group,COVENTRY CITY COUNCIL,Public Sector,Capital grants paid to Local Authorities,4000072500,"5,094.00"
Department for Education,DEPARTMENT FOR EDUCATION,23/02/2012,Capital Grants,Children Young People and Families Early Years Extended Schools and Special Needs Group,DERBYSHIRE COUNTY COUNCIL,Public Sector,Capital grants paid to Local Authorities,4000072504,244
Department for Education,DEPARTMENT FOR EDUCATION,23/02/2012,Capital Grants,Children Young People and Families Early Years Extended Schools and Special Needs Group,HALTON BOROUGH COUNCIL,Public Sector,Capital grants paid to Local Authorities,4000072514,"-43,991.00"
Department for Education,DEPARTMENT FOR EDUCATION,23/02/2012,Capital Grants,Children Young People and Families Early Years Extended Schools and Special Needs Group,HARTLEPOOL BOROUGH COUNCIL,Public Sector,Capital grants paid to Local Authorities,4000072516,"-2,538.00"
Department for Education,DEPARTMENT FOR EDUCATION,23/02/2012,Capital Grants,Children Young People and Families Early Years Extended Schools and Special Needs Group,ISLE OF WIGHT COUNCIL,Public Sector,Capital grants paid to Local Authorities,4000072519,-774
Department for Education,DEPARTMENT FOR EDUCATION,23/02/2012,Capital Grants,Children Young People and Families Early Years Extended Schools and Special Needs Group,KIRKLEES COUNCIL,Public Sector,Capital grants paid to Local Authorities,4000072521,2
Department for Education,DEPARTMENT FOR EDUCATION,23/02/2012,Capital Grants,Children Young People and Families Early Years Extended Schools and Special Needs Group,LEICESTER CITY COUNCIL,Public Sector,Capital grants paid to Local Authorities,4000072525,"128,714.00"
Department for Education,DEPARTMENT FOR EDUCATION,23/02/2012,Capital Grants,Children Young People and Families Early Years Extended Schools and Special Needs Group,LIVERPOOL CITY COUNCIL,Public Sector,Capital grants paid to Local Authorities,4000072528,-52
Department for Education,DEPARTMENT FOR EDUCATION,23/02/2012,Capital Grants,Children Young People and Families Early Years Extended Schools and Special Needs Group,LONDON BOROUGH OF BRENT,Public Sector,Capital grants paid to Local Authorities,4000072532,1
Department for Education,DEPARTMENT FOR EDUCATION,23/02/2012,Capital Grants,Children Young People and Families Early Years Extended Schools and Special Needs Group,LONDON BOROUGH OF EALING COUNCIL,Public Sector,Capital grants paid to Local Authorities,4000072536,-1
Department for Education,DEPARTMENT FOR EDUCATION,23/02/2012,Capital Grants,Children Young People and Families Early Years Extended Schools and Special Needs Group,LONDON BOROUGH OF HARINGEY,Public Sector,Capital grants paid to Local Authorities,4000072540,-186
Department for Education,DEPARTMENT FOR EDUCATION,23/02/2012,Capital Grants,Children Young People and Families Early Years Extended Schools and Special Needs Group,LONDON BOROUGH OF HARROW COUNCIL,Public Sector,Capital grants paid to Local Authorities,4000072652,"-132,495.00"
Department for Education,DEPARTMENT FOR EDUCATION,23/02/2012,Capital Grants,Children Young People and Families Early Years Extended Schools and Special Needs Group,LONDON BOROUGH OF RICHMOND UPON THAMES,Public Sector,Capital grants paid to Local Authorities,4000072550,"36,766.00"
Department for Education,DEPARTMENT FOR EDUCATION,23/02/2012,Capital Grants,Children Young People and Families Early Years Extended Schools and Special Needs Group,LONDON BOROUGH OF SOUTHWARK COUNCIL,Public Sector,Capital grants paid to Local Authorities,4000072551,1
Department for Education,DEPARTMENT FOR EDUCATION,23/02/2012,Capital Grants,Children Young People and Families Early Years Extended Schools and Special Needs Group,LONDON BOROUGH OF WALTHAM FOREST COUNCIL,Public Sector,Capital grants paid to Local Authorities,4000072554,-1
Department for Education,DEPARTMENT FOR EDUCATION,23/02/2012,Capital Grants,Children Young People and Families Early Years Extended Schools and Special Needs Group,LONDON BOROUGH OF WANDSWORTH COUNCIL,Public Sector,Capital grants paid to Local Authorities,4000072555,"5,911.00"
Department for Education,DEPARTMENT FOR EDUCATION,23/02/2012,Capital Grants,Children Young People and Families Early Years Extended Schools and Special Needs Group,METROPOLITAN BOROUGH OF WIRRAL,Public Sector,Capital grants paid to Local Authorities,4000072559,-20
Department for Education,DEPARTMENT FOR EDUCATION,23/02/2012,Capital Grants,Children Young People and Families Early Years Extended Schools and Special Needs Group,MILTON KEYNES COUNCIL,Public Sector,Capital grants paid to Local Authorities,4000072561,"-1,399.00"
Department for Education,DEPARTMENT FOR EDUCATION,23/02/2012,Capital Grants,Children Young People and Families Early Years Extended Schools and Special Needs Group,OLDHAM MBC,Public Sector,Capital grants paid to Local Authorities,4000072573,1
Department for Education,DEPARTMENT FOR EDUCATION,23/02/2012,Capital Grants,Children Young People and Families Early Years Extended Schools and Special Needs Group,ROTHERHAM MBC,Public Sector,Capital grants paid to Local Authorities,4000072582,-1
Department for Education,DEPARTMENT FOR EDUCATION,23/02/2012,Capital Grants,Children Young People and Families Early Years Extended Schools and Special Needs Group,ROYAL BOROUGH OF KINGSTON UPON THAMES COUNCIL,Public Sector,Capital grants paid to Local Authorities,4000072583,"-4,150.00"
Department for Education,DEPARTMENT FOR EDUCATION,23/02/2012,Capital Grants,Children Young People and Families Early Years Extended Schools and Special Needs Group,SHEFFIELD CITY COUNCIL,Public Sector,Capital grants paid to Local Authorities,4000072588,-1
Department for Education,DEPARTMENT FOR EDUCATION,23/02/2012,Capital Grants,Children Young People and Families Early Years Extended Schools and Special Needs Group,SLOUGH BOROUGH COUNCIL,Public Sector,Capital grants paid to Local Authorities,4000072590,-17
Department for Education,DEPARTMENT FOR EDUCATION,23/02/2012,Capital Grants,Children Young People and Families Early Years Extended Schools and Special Needs Group,SOUTH GLOUCEST,Public Sector,Capital grants paid to Local Authorities,4000072593,"-15,711.00"
Department for Education,DEPARTMENT FOR EDUCATION,23/02/2012,Capital Grants,Children Young People and Families Early Years Extended Schools and Special Needs Group,TAMESIDE MBC,Public Sector,Capital grants paid to Local Authorities,4000072606,"-176,210.00"
Department for Education,DEPARTMENT FOR EDUCATION,23/02/2012,Capital Grants,Children Young People and Families Early Years Extended Schools and Special Needs Group,THE LONDON BOROUGH OF HACKNEY,Public Sector,Capital grants paid to Local Authorities,4000072608,-1
Department for Education,DEPARTMENT FOR EDUCATION,23/02/2012,Capital Grants,Children Young People and Families Early Years Extended Schools and Special Needs Group,THE ROYAL BOROUGH OF WINDSOR & MAIDENHEAD,Public Sector,Capital grants paid to Local Authorities,4000072610,1
Department for Education,DEPARTMENT FOR EDUCATION,23/02/2012,Capital Grants,Children Young People and Families Early Years Extended Schools and Special Needs Group,WEST BERKSHIRE COUNCIL,Public Sector,Capital grants paid to Local Authorities,4000072618,"-110,914.00"
Department for Education,DEPARTMENT FOR EDUCATION,23/02/2012,Capital Grants,Children Young People and Families Early Years Extended Schools and Special Needs Group,WEST SUSSEX COUNTY COUNCIL,Public Sector,Capital grants paid to Local Authorities,4000072619,"9,691,376.00"
Department for Education,DEPARTMENT FOR EDUCATION,23/02/2012,Capital Grants,Children Young People and Families Early Years Extended Schools and Special Needs Group,WILTSHIRE COUNCIL,Public Sector,Capital grants paid to Local Authorities,4000072621,"733,611.00"
Department for Education,DEPARTMENT FOR EDUCATION,23/02/2012,Capital Grants,Children Young People and Families Early Years Extended Schools and Special Needs Group,WOLVERHAMPTON CITY COUNCIL,Public Sector,Capital grants paid to Local Authorities,4000072623,"-101,156.00"
Department for Education,DEPARTMENT FOR EDUCATION,23/02/2012,Capital Grants,Children Young People and Families Early Years Extended Schools and Special Needs Group,YORK CITY COUNCIL,Public Sector,Capital grants paid to Local Authorities,4000072625,"141,970.00"
Department for Education,DEPARTMENT FOR EDUCATION,23/02/2012,Current Grants,Children Young People and Families Early Years Extended Schools and Special Needs Group,BARNSLEY MBC,Public Sector,Current grant for Sure Start payments to local authorities,4000072479,-2
Department for Education,DEPARTMENT FOR EDUCATION,23/02/2012,Current Grants,Children Young People and Families Early Years Extended Schools and Special Needs Group,BEDFORD BOROUGH COUNCIL,Public Sector,Current grant for Sure Start payments to local authorities,4000072481,-139
Department for Education,DEPARTMENT FOR EDUCATION,23/02/2012,Current Grants,Children Young People and Families Early Years Extended Schools and Special Needs Group,BURY MBC,Public Sector,Current grant for Sure Start payments to local authorities,4000072491,"-1,774.00"
Department for Education,DEPARTMENT FOR EDUCATION,23/02/2012,Current Grants,Children Young People and Families Early Years Extended Schools and Special Needs Group,CITY OF BRADFORD METROPOLITAN DISTRICT COUNCIL,Public Sector,Current grant for Sure Start payments to local authorities,4000072497,"-5,093.00"
Department for Education,DEPARTMENT FOR EDUCATION,23/02/2012,Current Grants,Children Young People and Families Early Years Extended Schools and Special Needs Group,CORNWALL COUNCIL,Public Sector,Current grant for Sure Start payments to local authorities,4000072498,"-16,722.00"
Department for Education,DEPARTMENT FOR EDUCATION,23/02/2012,Current Grants,Children Young People and Families Early Years Extended Schools and Special Needs Group,CUMBRIA COUNTY COUNCIL,Public Sector,Current grant for Sure Start payments to local authorities,4000072501,"-35,769.00"
Department for Education,DEPARTMENT FOR EDUCATION,23/02/2012,Current Grants,Children Young People and Families Early Years Extended Schools and Special Needs Group,DORSET COUNTY COUNCIL,Public Sector,Current grant for Sure Start payments to local authorities,4000072507,"-457,248.00"
Department for Education,DEPARTMENT FOR EDUCATION,23/02/2012,Current Grants,Children Young People and Families Early Years Extended Schools and Special Needs Group,DUDLEY MBC,Public Sector,Current grant for Sure Start payments to local authorities,4000072508,-15
Department for Education,DEPARTMENT FOR EDUCATION,23/02/2012,Current Grants,Children Young People and Families Early Years Extended Schools and Special Needs Group,DURHAM COUNTY COUNCIL,Public Sector,Current grant for Sure Start payments to local authorities,4000072509,-351
Department for Education,DEPARTMENT FOR EDUCATION,23/02/2012,Current Grants,Children Young People and Families Early Years Extended Schools and Special Needs Group,EAST SUSSEX COUNTY COUNCIL,Public Sector,Current grant for Sure Start payments to local authorities,4000072511,"-20,000.00"
Department for Education,DEPARTMENT FOR EDUCATION,23/02/2012,Current Grants,Children Young People and Families Early Years Extended Schools and Special Needs Group,KIRKLEES COUNCIL,Public Sector,Current grant for Sure Start payments to local authorities,4000072521,"-1,742.00"
Department for Education,DEPARTMENT FOR EDUCATION,23/02/2012,Current Grants,Children Young People and Families Early Years Extended Schools and Special Needs Group,LONDON BOROUGH OF BEXLEY COUNCIL,Public Sector,Current grant for Sure Start payments to local authorities,4000072531,"-1,524.00"
Department for Education,DEPARTMENT FOR EDUCATION,23/02/2012,Current Grants,Children Young People and Families Early Years Extended Schools and Special Needs Group,LONDON BOROUGH OF BRENT,Public Sector,Current grant for Sure Start payments to local authorities,4000072532,"-36,213.00"
Department for Education,DEPARTMENT FOR EDUCATION,23/02/2012,Current Grants,Children Young People and Families Early Years Extended Schools and Special Needs Group,LONDON BOROUGH OF CAMDEN,Public Sector,Current grant for Sure Start payments to local authorities,4000072534,"-220,030.00"
Department for Education,DEPARTMENT FOR EDUCATION,23/02/2012,Current Grants,Children Young People and Families Early Years Extended Schools and Special Needs Group,LONDON BOROUGH OF HAMMERSMITH & FULHAM COUNCIL,Public Sector,Current grant for Sure Start payments to local authorities,4000072539,"-131,522.00"
Department for Education,DEPARTMENT FOR EDUCATION,23/02/2012,Current Grants,Children Young People and Families Early Years Extended Schools and Special Needs Group,LONDON BOROUGH OF HARINGEY,Public Sector,Current grant for Sure Start payments to local authorities,4000072540,"-2,292.00"
Department for Education,DEPARTMENT FOR EDUCATION,23/02/2012,Current Grants,Children Young People and Families Early Years Extended Schools and Special Needs Group,LONDON BOROUGH OF HAVERING COUNCIL,Public Sector,Current grant for Sure Start payments to local authorities,4000072541,"-2,796.00"
Department for Education,DEPARTMENT FOR EDUCATION,23/02/2012,Current Grants,Children Young People and Families Early Years Extended Schools and Special Needs Group,LONDON BOROUGH OF MERTON COUNCIL,Public Sector,Current grant for Sure Start payments to local authorities,4000072547,"-104,407.00"
Department for Education,DEPARTMENT FOR EDUCATION,23/02/2012,Current Grants,Children Young People and Families Early Years Extended Schools and Special Needs Group,LONDON BOROUGH OF NEWHAM,Public Sector,Current grant for Sure Start payments to local authorities,4000072548,"-248,685.00"
Department for Education,DEPARTMENT FOR EDUCATION,23/02/2012,Current Grants,Children Young People and Families Early Years Extended Schools and Special Needs Group,LONDON BOROUGH OF REDBRIDGE,Public Sector,Current grant for Sure Start payments to local authorities,4000072549,"-18,176.00"
Department for Education,DEPARTMENT FOR EDUCATION,23/02/2012,Current Grants,Children Young People and Families Early Years Extended Schools and Special Needs Group,LONDON BOROUGH OF WALTHAM FOREST COUNCIL,Public Sector,Current grant for Sure Start payments to local authorities,4000072554,-204
Department for Education,DEPARTMENT FOR EDUCATION,23/02/2012,Current Grants,Children Young People and Families Early Years Extended Schools and Special Needs Group,METROPOLITAN BOROUGH OF WIRRAL,Public Sector,Current grant for Sure Start payments to local authorities,4000072559,-2
Department for Education,DEPARTMENT FOR EDUCATION,23/02/2012,Current Grants,Children Young People and Families Early Years Extended Schools and Special Needs Group,MILTON KEYNES COUNCIL,Public Sector,Current grant for Sure Start payments to local authorities,4000072561,"-30,948.00"
